{"text_format":"1","workbook":"xlsx","n_sheets":15,"sheets":["Инструкция","Титульный","списки","данные об организации","Техн характер системы","полезный отпуск","отчет по реализации","Смета факт","форма №2","показатели надежн и качества","отчет ПП","Смета 2016","анализ факт сметы","расчет выпадающих","ЭЗ"],"not_rendered":{"charts":0,"images":1,"macros":1,"external_links":1,"defined_names":114,"comments":0,"pivot_tables":0},"unopened":[],"bounds":{"document_bytes":16777216,"sheet_cells":100000,"rows_first":2000,"rows_last":500,"rows_between":2000,"halvings":0,"cell_chars":16384,"cell_head_chars":4096},"cells_cut":0,"cells_raw":0,"read":"whole","date_system":"1900"}

{"sheet":"Инструкция","index":0,"n_rows":151,"n_cols":1,"rows_kept":151,"cut":false,"hidden":false,"merged":[]}
[]
[]
[]
[]
[]
[]
[]
[]
[]
[]
[]
[]
[]
[]
[]
[]
[]
[]
[]
[]
[]
[]
[]
[]
[]
[]
[]
[]
[]
[]
[]
[]
[]
[]
[]
[]
[]
[]
[]
[]
[]
[]
[]
[]
[]
[]
[]
[]
[]
[]
[]
[]
[]
[]
[]
[]
[]
[]
[]
[]
[]
[]
[]
[]
[]
[]
[]
[]
[]
[]
[]
[]
[]
[]
[]
[]
[]
[]
[]
[]
[]
[]
[]
[]
[]
[]
[]
[]
[]
[]
[]
[]
[]
[]
[]
[]
[]
[]
[]
[]
[]
[]
[]
[]
[]
[]
[]
[]
[]
[]
[]
[]
[]
[]
[]
[]
[]
[]
[]
[]
[]
[]
[]
[]
[]
[]
[]
[]
[]
[]
[]
[]
[]
[]
[]
[]
[]
[]
[]
[]
[]
[]
[]
[]
[]
[]
[]
[]
[]
["18dtrTO"]
["18dtrTO18"]

{"sheet":"Титульный","index":1,"n_rows":23,"n_cols":3,"rows_kept":23,"cut":false,"hidden":false,"merged":[]}
[]
[null,null,"ОТЧЕТ О ВЫПОЛНЕНИИ ПРОИЗВОДСТВЕННОЙ ПРОГРАММЫ"]
[]
[null,"Регион РФ","Томская область"]
[]
[null,"Муниципальный район "]
[null,"Муниципальное образование "]
[]
[null,"ИНН "]
[null,"Наименование  организации",{"$f":"IF(Титульный!C9=\"\",\" \",INDEX(списки!M2:O185,MATCH(Титульный!C9,списки!M2:M185,0),3))","v":" "}]
[null,"Наименование филиала"]
[]
[null,"КПП ",{"$f":"IF(Титульный!C9=\"\",\" \",INDEX(списки!M2:O185,MATCH(Титульный!C9,списки!M2:M185,0),2))","v":" "}]
[]
[null,"Вид деятельности","Водоснабжение"]
[]
[null,"период отчета","2016"]
[]
[null,"Вид  тарифа ","горячее водоснабжение"]
[]
[null,"Наименование и адрес котельной (группы котельных)"]
[]
[null,"Система налогообложения","Общая"]

{"sheet":"списки","index":2,"n_rows":185,"n_cols":16,"rows_kept":185,"cut":false,"hidden":true,"merged":[]}
["Районы",null,"Муниципальные образования",null,"Год",null,"Выбор","Вид тарифа","Система налогообложения",null,null,null,"ИНН","КПП","Наименование организации","Имущество"]
[null,null,null,null,null,null,null,null,null,null,1,2,"5116000922","540645001","акционерное общество \"Главное управление жилищно-коммунального хозяйства\"","договор аренды"]
["Александровский",null,"Александровское",null,2011,null,"да","питьевая вода","Общая",1,"прибыль","доходы","7002006723","701701001","муниципальное бюджетное учреждение здравоохранения \"Асиновская центральная районная больница\"","постановление"]
["Асиновский",null,"Анастасьевское",null,2012,null,"нет","питьевая вода (с дополнительной очисткой)","Упрощенная",2,null,"доходы минус расходы","7002010695","700201001","муниципальное унитарное предприятие \"Спецавтохозяйство\"","акт приема-передачи"]
["Бакчарский",null,"Асиновское городское",null,2013,null,null,"техническая вода",null,null,null,null,"7002011508","700201001","муниципальное унитарное предприятие \"Большедороховское жилищно-коммунальное хозяйство\"","иное"]
["Верхнекетский",null,"Базойское",null,2014,null,null,"транспортировка воды",null,null,null,null,"7002011515","700201001","муниципальное унитарное предприятие \"Новокусковское жилищно-коммунальное хозяйство\""]
["г. Кедровый",null,"Бакчарское",null,2015,null,null,"очистка воды",null,null,null,null,"7002011522","700201001","муниципальное унитарное предприятие \"Новиковское жилищно-коммунальное хозяйство\""]
["г. Северск",null,"Баткатское",null,2016,null,null,"подвоз воды",null,null,null,null,"7002011530","700201001","муниципальное унитарное предприятие \"Батуринское жилищно-коммунальное хозяйство\""]
["г. Стрежевой",null,"Батуринское",null,2017,null,null,null,null,null,null,null,"7002011547","700201001","муниципальноте унитарное предприятие \"Ягодное жилищно-коммунальное хозяйство\""]
["г. Томск",null,"Белоярское",null,2018,null,null,null,null,null,null,null,"7002011787","700201001","муниципальное унитарное предприятие \"Новониколаевское жилищно-коммунальное хозяйство\""]
["Зырянский",null,"Белоярское городское",null,2019,null,null,null,null,null,null,null,"7002016312","700201001","общество с ограниченной ответственностью \"Асиновская водяная компания\""]
["Каргасокский",null,"Берегаевское",null,2020,null,null,null,null,null,null,null,"7002016626","700201001","общество с ограниченной ответственностью \"Асиновская тепло-генерирующая компания-№1\""]
["Кожевниковский",null,"Богатыревское",null,null,null,null,null,null,null,null,null,"7002016954","700201001","муниципальное унитарное предприятие \"Новокусковские коммунальные системы\""]
["Колпашевский",null,"Богашевское",null,null,null,null,null,null,null,null,null,"7002017027","700201001","общество с ограниченной ответсвенностью \"Асиновский водоканал\""]
["Кривошеинский",null,"Большедороховское",null,null,null,null,null,null,null,null,null,"7002017059","700201001","общество с ограниченной ответственностью \"АКОС\""]
["Молчановский",null,"Вавиловское",null,null,null,null,null,null,null,null,null,"7002017186","700201001","общество с ограниченной ответственностью \"Теплоэнергоресурс №1\""]
["Парабельский",null,"Вертикосское",null,null,null,null,null,null,null,null,null,"7002017193","700201001","общество с ограниченной ответственностью \"Теплоэнергоресурс №2\""]
["Первомайский",null,"Володинское",null,null,null,null,null,null,null,null,null,"7002017203","700201001","общество с ограниченной ответственностью \"Теплоэнергоресурс №3\""]
["Тегульдетский",null,"Воронинское",null,null,null,null,null,null,null,null,null,"7002017210","700201001","общество с ограниченной ответственностью \"Теплоэнергоресурс №4\""]
["Томский",null,"Высоковское",null,null,null,null,null,null,null,null,null,"7003000227","700301001","муниципальное унитарное предприятие Бакчарского района \"Бакчарский коммунальный комплекс\""]
["Чаинский",null,"Высокоярское",null,null,null,null,null,null,null,null,null,"7003000273","700301001","областное государственное бюджетное образовательное учреждение начального профессионального образования \"Профессиональное училище № 35\""]
["Шегарский",null,"Галкинское",null,null,null,null,null,null,null,null,null,"7003003130","700301001","открытое акционерное общество \"Агропромышленная компания \"Галкинская\""]
[null,null,"г. Кедровый",null,null,null,null,null,null,null,null,null,"7004004746","700401001","общество с ограниченной ответственностью \"Гранит\""]
[null,null,"городской округ \"ЗАТО Северск\"",null,null,null,null,null,null,null,null,null,"7004005323","700401001","общество с ограниченной ответственностью \"БИО ТЭК Верхняя Кеть\""]
[null,null,"городской округ \"Город Стрежевой\"",null,null,null,null,null,null,null,null,null,"7004006052","700401001","общество с ограниченной ответственностью \"БИО ТЭК-С\""]
[null,null,"городской округ \"Город  Томск\"",null,null,null,null,null,null,null,null,null,"700400687080","отсутствует","индивидуальный предприниматель Ковыряхин Юрий Анатольевич"]
[null,null,"Колпашевское городское поселение",null,null,null,null,null,null,null,null,null,"7004007151","700401001","общество с ограниченной ответственностью \"Деметра\""]
[null,null,"Дальненское",null,null,null,null,null,null,null,null,null,"7004007200","700401001","общество с ограниченной ответственностью \"Сайга-Энерго\""]
[null,null,"Дубровское",null,null,null,null,null,null,null,null,null,"7004007240","700401001","общество с ограниченной ответственностью \"Коммунально-жилищный сервис Ягодное\""]
[null,null,"Заводское",null,null,null,null,null,null,null,null,null,"7004007610","700401001","муниципальное унитарное предприятие Степановского сельского поселения \"Степановское\""]
[null,null,"Заречное",null,null,null,null,null,null,null,null,null,"7004007708","700401001","общество с ограниченной ответственностью \"Орловка\""]
[null,null,"Зональненское",null,null,null,null,null,null,null,null,null,"700500339834","отсутствует","индивидуальный предприниматель Маслов Сергей Афанасьевич"]
[null,null,"Зоркальцевское",null,null,null,null,null,null,null,null,null,"7005006305","700501001","муниципальное учреждение - Администрация Чердатского сельского поселения"]
[null,null,"Зырянское",null,null,null,null,null,null,null,null,null,"7005006312","700501001","муниципальное учреждение - Администрация Высоковского сельского поселения"]
[null,null,"Инкинское",null,null,null,null,null,null,null,null,null,"7005006344","700501001","муниципальное учреждение - Администрация Дубровского сельского поселения"]
[null,null,"Итатское",null,null,null,null,null,null,null,null,null,"7005006560","700501001","Михайловское муниципальное унитарное предприятие \"Родник\""]
[null,null,"Иштанское",null,null,null,null,null,null,null,null,null,"7005007193","700501001","общество с ограниченной ответственностью \"Аква-Сервис\""]
[null,null,"Калтайское",null,null,null,null,null,null,null,null,null,"7005007203","700501001","общество с ограниченной ответственностью \"Эко-Транс\""]
[null,null,"Каргасокское",null,null,null,null,null,null,null,null,null,"7005015638","700501001","общество с ограниченной ответственностью \"КомСервис Тегульдет\""]
[null,null,"Катайгинское",null,null,null,null,null,null,null,null,null,"7005016590","700501001","муниципальное унитарное предприятие \"Прогресс\""]
[null,null,"Кидальское",null,null,null,null,null,null,null,null,null,"700501702507","отсутствует","индивидуальный предприниматель Антипин Андрей Федорович"]
[null,null,"Клюквинское",null,null,null,null,null,null,null,null,null,"7006005110","700601001","муниципальное унитарное предприятие \"Каргасокский жилищно=эксплуатационный участок\" Каргасокского сельского поселения"]
[null,null,"Кожевниковское",null,null,null,null,null,null,null,null,null,"7006005632","700601001","муниципальное унитарное предприятие  Каргасокский \"Тепловодоканал\""]
[null,null,"Коломинское",null,null,null,null,null,null,null,null,null,"7006006153","700601001","муниципальное унитарное предприятие \"ЖКХ Сосновское\" муниципального образования \"Сосновское сельское поселение\""]
[null,null,"Комсомольское",null,null,null,null,null,null,null,null,null,"7006006160","700601001","муниципальное унитарное предприятие \"ЖКХ Молодежный\" муниципального образования \"Среднетымское сельское поселение\""]
[null,null,"Копыловское",null,null,null,null,null,null,null,null,null,"7006006298","700601001","муниципальное унитарное предприятие \"ЖКХ Тымское\" муниципального образования \"Тымское сельское поселение\""]
[null,null,"Корниловское",null,null,null,null,null,null,null,null,null,"7006007407","700601001","муниципальное унитарное предприятие \" Нововасюганское\" муниципального образования \"Нововасюганское сельское поселение\""]
[null,null,"Красногорское",null,null,null,null,null,null,null,null,null,"7006008432","700601001","муниципальное унитарное предприятие \"ЖКХ Васюган\" муниципального образования \"Средневасюганское сельское поселение\""]
[null,null,"Красноярское",null,null,null,null,null,null,null,null,null,"700700053744","отсутствует","индивидуальный предприниматель Волшуков Виктор Николаевич"]
[null,null,"Кривошеинское",null,null,null,null,null,null,null,null,null,"7007007583","700701001","общество с ограниченной ответственностью \"Риск\""]
[null,null,"Курлекское",null,null,null,null,null,null,null,null,null,"7007007657","700701001","общество с ограниченной ответственностью \"Заря - Сервис\""]
[null,null,"Куяновское",null,null,null,null,null,null,null,null,null,"7007009950","700701001","общество с ограниченной ответственностью \"Колпашевская тепловая компания\""]
[null,null,"Лукашкин-Ярское",null,null,null,null,null,null,null,null,null,"7007010120","700701001","общество с ограниченной ответственностью \"Водоканал - 2\""]
[null,null,"Макзырское",null,null,null,null,null,null,null,null,null,"7007010138","700701001","общество с ограниченной ответственностью \"Водоканал - 1\""]
[null,null,"Малиновское",null,null,null,null,null,null,null,null,null,"7007011117","700701001","общество с ограниченной ответственностью \"Энергия\""]
[null,null,"Межениновское",null,null,null,null,null,null,null,null,null,"7007011269","700701001","муниципальное унитарное предприятие \"Пламя\""]
[null,null,"Мирнинское",null,null,null,null,null,null,null,null,null,"7007011639","700701001","общество с ограниченной ответственностью \"Колпашевские очистные системы\""]
[null,null,"Михайловское",null,null,null,null,null,null,null,null,null,"700704480874","отсутствует","индивидуальный предприниматель Воронин Сергей Петрович"]
[null,null,"Могочинское",null,null,null,null,null,null,null,null,null,"7008006430","700801001","Кожевниковское районное муниципальное унитарное предприятие \"Коммунальное ремонтно-строительное хозяйство\""]
[null,null,"Молчановское",null,null,null,null,null,null,null,null,null,"7008006448","700801001","общество с ограниченной ответственностью  \"Кожевниковский КОМХОЗ\""]
[null,null,"Моряковское",null,null,null,null,null,null,null,null,null,"7008007554","700801001","общество с ограниченной ответственностью \"Селькомхоз\""]
[null,null,"Назинское",null,null,null,null,null,null,null,null,null,"7009003954","700901001","муниципальное унитарное предприятие \"Жилищно-коммунальное хозяйство Кривошеинского сельского поселения\""]
[null,null,"Наргинское",null,null,null,null,null,null,null,null,null,"7009004027","700901001","общество с ограниченной ответственностью \"H 2 O\""]
[null,null,"Нарымское",null,null,null,null,null,null,null,null,null,"7009004073","700901001","общество с ограниченной ответственностью \"Энергоресурс\""]
[null,null,"Наумовское",null,null,null,null,null,null,null,null,null,"701000127664","отсутствует","индивидуальный предприниматель Сысоев Владимир Геннадьевич"]
[null,null,"Национальное Иванкинское",null,null,null,null,null,null,null,null,null,"7010002296","701001001","общество с ограниченной ответственностью \"Энергия-М\""]
[null,null,"Новиковское",null,null,null,null,null,null,null,null,null,"7010002673","701001001","общество с ограниченной ответственностью \"Компания экологической безопасности\""]
[null,null,"Нововасюганское",null,null,null,null,null,null,null,null,null,"7010002916","701001001","общество с ограниченной ответственностью \"Водовод\""]
[null,null,"Новогоренское",null,null,null,null,null,null,null,null,null,"7010005579","701001001","исполнительно-распорядительный орган муниципального образованияТунгусовского сельского поселения Администрация Тунгусовского сельского поселения"]
[null,null,"Новокривошеинское",null,null,null,null,null,null,null,null,null,"7011003207","701101001","муниципальное унитарное предприятие \"Нарымское жилищно-коммунальное хозяйство\""]
[null,null,"Новокусковское",null,null,null,null,null,null,null,null,null,"7011005155","701101001","муниципальное казенное учреждение Администрация Новосельцевского сельского поселения - исполнительно распорядительный орган муниципального образования Новосельцевского сельского поселения"]
[null,null,"Новомариинское",null,null,null,null,null,null,null,null,null,"7011005162","701101001","муниципальное казенное учреждение Администрация Заводского сельского поселения - исполнительно распорядительный орган муниципального образования Заводского сельского поселения"]
[null,null,"Новониколаевское",null,null,null,null,null,null,null,null,null,"7011006014","700401001","общество с ограниченной ответственностью \"Универсал-Сервис\""]
[null,null,"Новоникольское",null,null,null,null,null,null,null,null,null,"7011006092","701101001","муниципальное унитарное предприятие \"Парабель - Энергокомплекс\""]
[null,null,"Новопокровское",null,null,null,null,null,null,null,null,null,"7011006215","701101001","общество с ограниченной ответственностью \"Строитель\""]
[null,null,"Новорождественское",null,null,null,null,null,null,null,null,null,"701100720660","отсутствует","индивидуальный предприниматель Стрельников Сергей Владимирович"]
[null,null,"Новоселовское",null,null,null,null,null,null,null,null,null,"701101197192","отсутствует","индивидуальный предприниматель Михайлов Андрей Васильевич"]
[null,null,"Новосельцевское",null,null,null,null,null,null,null,null,null,"7012004926","701201001","муниципальное унитарное предприятие \"Сергеевское\""]
[null,null,"Новоюгинское",null,null,null,null,null,null,null,null,null,"7012004958","701201001","муниципальное унитарное предприятие \"Жилкомхоз\""]
[null,null,"Октябрьское",null,null,null,null,null,null,null,null,null,"7012006779","701201001","общество с ограниченной ответственностью \"Луговское\""]
[null,null,"Орловское",null,null,null,null,null,null,null,null,null,"7012007162","701201001","общество с ограниченной ответственностью \"Жилкомфорт\""]
[null,null,"Палочкинское",null,null,null,null,null,null,null,null,null,"7012007170","701201001","общество с ограниченной ответственностью \"Альянс\""]
[null,null,"Парабельское",null,null,null,null,null,null,null,null,null,"7014000490","701701001","открытое акционерное общество \"Томскснаб\""]
[null,null,"Парбигское",null,null,null,null,null,null,null,null,null,"701401371204","отсутствует","индивидуальный предприниматель Тимофеев Юрий Никитович"]
[null,null,"Первомайское",null,null,null,null,null,null,null,null,null,"701401633450","отсутствует","ииндивидуальный предприниматель Градовец Александр Владимирович"]
[null,null,"Песочно-Дубровское",null,null,null,null,null,null,null,null,null,"7014027742","701401001","общество с ограниченной ответственностью \"Межениновская птицефабрика\""]
[null,null,"Петровское",null,null,null,null,null,null,null,null,null,"7014040790","701401001","общество с ограниченной ответственностью \"Тепло-энергетическое предприятие Лоскутовское\""]
[null,null,"Плотниковское",null,null,null,null,null,null,null,null,null,"7014041063","701401001","общество с ограниченной ответственностью \"ЖКХ Рыбаловское\""]
[null,null,"Побединское",null,null,null,null,null,null,null,null,null,"7014041634","701401001","общество с ограниченной ответственностью  \"Санаторий Синий Утес\""]
[null,null,"Подгорнское",null,null,null,null,null,null,null,null,null,"7014043021","701401001","общество с ограниченной ответственностью \"РЕКА+\""]
[null,null,"Поротниковское",null,null,null,null,null,null,null,null,null,"7014044794","701701001","общество с ограниченной ответственностью \"КП \"Ключи\""]
[null,null,"Пудовское",null,null,null,null,null,null,null,null,null,"7014045068","701401001","муниципальное унитарное предприятие Богашевского сельского поселения \"Орион\""]
[null,null,"Рыбаловское",null,null,null,null,null,null,null,null,null,"7014048076","701401001","общество с ограниченной ответственностью \"Восточная Инвестиционная Газовая Компания\""]
[null,null,"Сайгинское",null,null,null,null,null,null,null,null,null,"7014049866","701401001","муниципальное казенное предприятие Томского района \"Технополигон\""]
[null,null,"Саровское",null,null,null,null,null,null,null,null,null,"7014049915","701401001","общество с ограниченной ответственностью \"ЭКМО\""]
[null,null,"Северное",null,null,null,null,null,null,null,null,null,"7014053541","701401001","общество с ограниченной ответственностью \"Ресурс-Т\""]
[null,null,"Сергеевское",null,null,null,null,null,null,null,null,null,"7014054440","701401001","общество с ограниченной ответственностью \"Водоресурс\""]
[null,null,"Сосновское",null,null,null,null,null,null,null,null,null,"7014054979","701401001","муниципальное предприятие Зональненского сельского поселения \"Служба коммунального сервиса\""]
[null,null,"Спасское",null,null,null,null,null,null,null,null,null,"7014055027","701401001","муниципальное унитарное предприятие Мирненского сельского поселения \"ТВК\""]
[null,null,"Средневасюганское",null,null,null,null,null,null,null,null,null,"7014055404","701401001","муниципальное унитарное предприятие жилищно-коммунального хозяйства \"Исток\" Новорождественского сельского поселения"]
[null,null,"Среднетымское",null,null,null,null,null,null,null,null,null,"7014055644","701401001","общество с ограниченной ответственностью \"Управляющая компания \"Томскосельское\""]
[null,null,"Старицынское",null,null,null,null,null,null,null,null,null,"7014055796","701401001","общество с ограниченной ответственностью \"Восточная Водяная Компания\""]
[null,null,"Староювалинское",null,null,null,null,null,null,null,null,null,"7014055806","701401001","общество с ограниченной ответственностью \"Восточная Тепловая Компания\""]
[null,null,"Степановское",null,null,null,null,null,null,null,null,null,"7014055813","701401001","общество с ограниченной ответственностью \"Восточная Компания\""]
[null,null,"Суйгинское",null,null,null,null,null,null,null,null,null,"7014055845","701401001","общество с ограниченной ответственность \"Западная Тепловая Компания\""]
[null,null,"Тевризское",null,null,null,null,null,null,null,null,null,"7014055884","701401001","общество с ограниченной ответственностью \"Южная Тепловая Компания\""]
[null,null,"Тегульдетское",null,null,null,null,null,null,null,null,null,"7014056084","701401001","общество с ограниченной ответственностью \"Теплогазсервис\""]
[null,null,"Тогуровское",null,null,null,null,null,null,null,null,null,"7014056711","701401001","общество с ограниченной ответственностью \"Гарант\""]
[null,null,"Толпаровское",null,null,null,null,null,null,null,null,null,"7014057257","701401001","муниципальное унитарное предприятие Межениновского сельского поселения \"Жилищно-коммунальное хозяйство ВодСервис\""]
[null,null,"Трубоческое",null,null,null,null,null,null,null,null,null,"7014057320","701401001","муниципальное унитарное предприятие \"Жилищное коммунальное хозяйство Октябрьское\""]
[null,null,"Тунгуссовское",null,null,null,null,null,null,null,null,null,"7014057377","701401001","общество с ограниченной ответственностью \"Комсервис+М\""]
[null,null,"Турунтаевское",null,null,null,null,null,null,null,null,null,"7014057715","701401001","муниципальное унитарное предприятие Заречного сельского поселения \"Заречное\""]
[null,null,"Тымское",null,null,null,null,null,null,null,null,null,"7014057754","701701001","общество с ограниченной ответственностью \"Водоканал\""]
[null,null,"Улу-Юльское",null,null,null,null,null,null,null,null,null,"7014057779","701401001","муниципальное унитарное предприятие «ТУРУНТАЕВО-ПАРТНЕР»"]
[null,null,"Уртамское",null,null,null,null,null,null,null,null,null,"7014057916","701401001","муниципальное унитарное предприятие \"Норма\""]
[null,null,"Усть-Бакчарское",null,null,null,null,null,null,null,null,null,"7014059825","701401001","Муниципальное унитарное предприятие Мирненского сельского поселения \"ВК\""]
[null,null,"Усть-Тымское",null,null,null,null,null,null,null,null,null,"7014059920","701401001","муниципальное унитарное предприятие Спасского сельского поселения \"Техник\""]
[null,null,"Усть-Чижапское",null,null,null,null,null,null,null,null,null,"7014061454","701401001","общество с ограниченной ответственностью \"Ресурс\""]
[null,null,"Чажемтовское",null,null,null,null,null,null,null,null,null,"7015000373","701501001","муниципальное унитарное предприятие Чаинского района \"Чаинское производственное объединение жилищно-коммунального хозяйства\""]
[null,null,"Чаинское",null,null,null,null,null,null,null,null,null,"7015000535","701501001","областное государственное бюджетное учреждение здравоохранения \"Чаинская районная больница\""]
[null,null,"Черноярское",null,null,null,null,null,null,null,null,null,"7016000016","701601001","общество с ограниченной ответственностью \"Водоканал\""]
[null,null,"Чернышевское",null,null,null,null,null,null,null,null,null,"7016000030","701601001","общество с ограниченной ответственностью \"Автотранс\""]
[null,null,"Четское",null,null,null,null,null,null,null,null,null,"7016000584","701601001","муниципальное унитарное предприятие \"Комфорт\""]
[null,null,"Чилинское",null,null,null,null,null,null,null,null,null,"7016001098","701601001","областное государственное социальное учреждение \"Дом-интернат для престарелых и инвалидов \"Лесная дача\""]
[null,null,"Шегарское",null,null,null,null,null,null,null,null,null,"7016001620","701601001","областное государственное автономное учреждение \"Шегарский психоневрологический интернат \"ЗАБОТА\""]
[null,null,"Ягоднинское",null,null,null,null,null,null,null,null,null,"7016005617","701601001","общество с ограниченной ответственностью \"Шегарский водоканал\""]
[null,null,"Ягодное",null,null,null,null,null,null,null,null,null,"7016007156","701601001","общество с ограниченной отвественностью Управляющая компания \"Успех\""]
[null,null,null,null,null,null,null,null,null,null,null,null,"7017001968","701701001","онитарное муниципальное предприятие \"Спецавтохозяйство г. Томска\""]
[null,null,null,null,null,null,null,null,null,null,null,null,"7017002136","701701001","онитарное муниципальное предприятие г. Томска \"Комбинат Спецобслуживания\" по организации похорон и предоставлению связанных с ними услуг"]
[null,null,null,null,null,null,null,null,null,null,null,null,"7017004366","701701001","акционерное общество \"Транснефть-Центральная Сибирь\""]
[null,null,null,null,null,null,null,null,null,null,null,null,"7017005289","701702010","общество с ограниченной ответственностью \"Газпром трансгаз Томск\""]
[null,null,null,null,null,null,null,null,null,null,null,null,"7017005289","702243001","общество с ограниченной ответственностью \"Газпром трансгаз Томск\""]
[null,null,null,null,null,null,null,null,null,null,null,null,"7017012254","701401001","закрытое акционерное общество \"Сибирская Аграрная Группа\""]
[null,null,null,null,null,null,null,null,null,null,null,null,"7017063682","701401001","закрытое акционерное общество \"Восточная Инвестиционная Газовая Компания\""]
[null,null,null,null,null,null,null,null,null,null,null,null,"7017071531","701401001","общество с ограниченной ответственностью \"Квинта\""]
[null,null,null,null,null,null,null,null,null,null,null,null,"7017075536","701701001","общество с ограниченной ответственностью \"Томскнефтехим\""]
[null,null,null,null,null,null,null,null,null,null,null,null,"7017095349","701701001","открытое акционерное общество \"Организация \"Технотрон\""]
[null,null,null,null,null,null,null,null,null,null,null,null,"7017098220","701701001","общество с ограниченной ответственностью \"Завод приборных подшипников\""]
[null,null,null,null,null,null,null,null,null,null,null,null,"7017110131","701701001","закрытое акционерное общество Кондитерская фабрика \"Красная звезда\""]
[null,null,null,null,null,null,null,null,null,null,null,null,"7017123606","701701001","общество с ограниченной ответственностью \"Управляющая компания \"Томского приборного завода\""]
[null,null,null,null,null,null,null,null,null,null,null,null,"7017129118","701701001","общество с ограниченной ответственностью \"СетьСервис\""]
[null,null,null,null,null,null,null,null,null,null,null,null,"7017134397","701701001","общество с ограниченной ответственностью \"ГазТехСервис\""]
[null,null,null,null,null,null,null,null,null,null,null,null,"7017213271","701701001","общество с ограниченной ответственностью \"Томлесдрев\""]
[null,null,null,null,null,null,null,null,null,null,null,null,"7017245330","701701001","общество с ограниченной ответственностью \"Сетевая компания ТДСК\""]
[null,null,null,null,null,null,null,null,null,null,null,null,"7017249750","701701001","общество с ограниченной ответственностью «Термо»"]
[null,null,null,null,null,null,null,null,null,null,null,null,"7017253147","700743001","государственное унитарное предприятие Томской области  \"Областное дорожное ремонтно - строительное управление\""]
[null,null,null,null,null,null,null,null,null,null,null,null,"7017253147","701443001","государственное унитарное предприятие Томской области \"Областное дорожное ремонтно - строительное управление\""]
[null,null,null,null,null,null,null,null,null,null,null,null,"7017270664","701701001","общество с ограниченной ответственностью \"Томскводоканал\""]
[null,null,null,null,null,null,null,null,null,null,null,null,"7017291311","701701001","общество с ограниченной ответственностью \"Колос-С\""]
[null,null,null,null,null,null,null,null,null,null,null,null,"7017318531","701701001","общество с ограниченной ответственностью \"ЭнергоТЭК\""]
[null,null,null,null,null,null,null,null,null,null,null,null,"7017323595","701701001","общество с ограниченной ответственностью \"Тепловая компания \"Стандарт\""]
[null,null,null,null,null,null,null,null,null,null,null,null,"7017326170","701401001","общество с ограниченной ответственностью \"Аргентум\""]
[null,null,null,null,null,null,null,null,null,null,null,null,"7017351521","701701001","акционерное общество \"ТомскРТС\""]
[null,null,null,null,null,null,null,null,null,null,null,null,"7017373035","701701001","общество с ограниченной ответственностью \"Энергогарант\""]
[null,null,null,null,null,null,null,null,null,null,null,null,"7017373959","701701001","акционерное общество \"Томская генерация\""]
[null,null,null,null,null,null,null,null,null,null,null,null,"7017374014","701701001","общество с ограниченной ответсвенностью \"Городские очистные сооружения\""]
[null,null,null,null,null,null,null,null,null,null,null,null,"7020008610","702001001","открытое акционерное общество Финансово-строительная компания \"Газ Химстрой Инвест\""]
[null,null,null,null,null,null,null,null,null,null,null,null,"7020035798","701701001","федеральное казенное учреждение \"Исправительная колония № 3 Управления Федеральной службы исполнения наказаний по Томской области\""]
[null,null,null,null,null,null,null,null,null,null,null,null,"7021001569","701701001","федеральное государственное унитарное предприятие \"Комбинат коммунальных предприятий Томского научного центра  Сибирского отделения Российской академии наук\""]
[null,null,null,null,null,null,null,null,null,null,null,null,"7022000310","997150001","открытое акционерное общество \"Томскнефть\" Восточной Нефтяной Компании"]
[null,null,null,null,null,null,null,null,null,null,null,null,"7022010478","702201001","муниципальное унитарное предприятие \"Жилкомсервис\" Александровского сельского поселения"]
[null,null,null,null,null,null,null,null,null,null,null,null,"7022010799","702201001","общество с ограниченной ответственностью \"Энергонефть Томск\""]
[null,null,null,null,null,null,null,null,null,null,null,null,"7022011087","702201001","общество с ограниченной ответственностью \"Стрежевой теплоэнергоснабжение\""]
[null,null,null,null,null,null,null,null,null,null,null,null,"7022014835","702201001","муниципальное унитарное предприятие \"Комсервис\" Лукашкин-Ярского сельского поселения Александровского района Томской области"]
[null,null,null,null,null,null,null,null,null,null,null,null,"7022014842","702201001","муниципальное унитарное предприятие \"Жилищно-коммунальное хозяйство\" села  Назино"]
[null,null,null,null,null,null,null,null,null,null,null,null,"7022014874","702201001","муниципальное унитарное предприятие \"Комсервис\" Александровского района Томской области"]
[null,null,null,null,null,null,null,null,null,null,null,null,"7022017561","702201001","общество с ограниченной ответственностью \"Транспортные коммунальные системы\""]
[null,null,null,null,null,null,null,null,null,null,null,null,"7022018300","702201001","общество с ограниченной ответственностью \"Жилстрой\""]
[null,null,null,null,null,null,null,null,null,null,null,null,"7022019336","702201001","общество с ограниченной ответственностью \"ТРАНССИБ\""]
[null,null,null,null,null,null,null,null,null,null,null,null,"702280350128","отсутствует","индивидуальный предприниматель Голованов Андрей Николаевич"]
[null,null,null,null,null,null,null,null,null,null,null,null,"7023005209","702301001","общество с ограниченной ответственностью \"Северная Тепловая Компания\""]
[null,null,null,null,null,null,null,null,null,null,null,null,"7024021972","701401001","общество с ограниченной ответственностью \"Экополис\""]
[null,null,null,null,null,null,null,null,null,null,null,null,"7024024853","702401001","открытое акционерное общество \"Северский водоканал\""]
[null,null,null,null,null,null,null,null,null,null,null,null,"7024024860","702401001","открытое акционерное общество \"Тепловые сети\""]
[null,null,null,null,null,null,null,null,null,null,null,null,"7024028054","702401001","общество с ограниченной ответственностью \"Полигон твердых бытовых отходов комбината благоустройства\""]
[null,null,null,null,null,null,null,null,null,null,null,null,"7024029499","702401001","акционерное общество \"Сибирский химический комбинат\""]
[null,null,null,null,null,null,null,null,null,null,null,null,"7024032100","702401001","общество с ограниченной ответственностью \"ВКХ\""]
[null,null,null,null,null,null,null,null,null,null,null,null,"7024033488","702401001","общество с ограниченной ответственностью \"Управление энергоснабжения\""]
[null,null,null,null,null,null,null,null,null,null,null,null,"7024037595","702401001","общество с ограниченной ответственностью \"Северские энергетические сети\""]
[null,null,null,null,null,null,null,null,null,null,null,null,"7024038704","702401001","общество с ограниченной ответственностью \"Тепло плюс\""]
[null,null,null,null,null,null,null,null,null,null,null,null,"7024038863","702401001","общество с ограниченной ответственностью \"ВКХ \"Самусь\""]
[null,null,null,null,null,null,null,null,null,null,null,null,"7224031400","701401001","закрытое акционерное общество \"Сибирская Аграрная Группа Мясопереработка\""]
[null,null,null,null,null,null,null,null,null,null,null,null,"7224067981","722401001","общество с ограниченной ответственностью \"Промпереработка\""]
[null,null,null,null,null,null,null,null,null,null,null,null,"7708503727","540775040","Кузбасский территорильный  участокЗападно-Сибирской дирекции по тепловодоснабжению - структурного подразделения Центральной дирекции по тепловодоснабжению-филиал ОАО \"РЖД\""]
[null,null,null,null,null,null,null,null,null,null,null,null,"7722292838","701702001","федеральное государственное унитарное предприятие \"Научно-производственное объединение по медицинским иммунобиологическим препаратам \"Микроген\" Министерства здравоохранения Российской Федерации"]

{"sheet":"данные об организации","index":3,"n_rows":29,"n_cols":10,"rows_kept":29,"cut":false,"hidden":false,"merged":[[13,1,13,2],[11,0,11,3],[11,5,11,9],[0,0,0,9],[2,0,2,1],[3,0,3,1],[4,0,4,1],[5,0,5,1],[7,2,7,9],[6,0,6,1],[7,0,7,1],[2,2,2,9],[3,2,3,9],[4,2,4,9],[5,2,5,9],[6,2,6,9],[15,10,16,10],[17,10,18,10],[15,8,16,8],[17,8,18,8],[15,0,18,0],[15,1,18,2],[15,3,18,3],[15,5,18,5],[15,6,18,6],[25,5,28,5],[15,9,16,9],[17,9,18,9],[19,5,19,7],[21,5,24,5],[21,6,24,6],[21,8,22,8],[21,9,22,9],[23,8,24,8],[23,9,24,9],[25,6,28,6],[25,8,26,8],[27,8,28,8],[27,9,28,9],[25,9,26,9]]}
["Краткие сведения об организации"]
[]
["Наименование организации:",null,{"$f":"Титульный!C10","v":" "}]
["Юридический адрес:"]
["Тел/факс:"]
["E-mail:"]
["Должность руководителя"]
["Ф.И.О. (полностью)"]
[]
[]
[]
["Налогообложение",null,null,null,null,"Сведения об установленных тарифах на 2016 год"]
[]
["система налогообложения","объект налогообложения",null,"налоговая ставка",null,"№ приказа ДТР ТО","дата приказа","срок действия тарифа","величина тарифа, руб/куб.м.","НДС"]
[]
[{"$f":"Титульный!C23","v":"Общая"},null,null,{"$f":"IF(B16=\"доходы\",6,IF(B16=\"доходы минус расходы\",10,20))","v":20},null,null,null,"2016-01-01",null,{"$f":"IF(A16=\"Общая\",\"без учета НДС\",\"НДС не предусмотрен\")","v":"без учета НДС"}]
[null,null,null,null,null,null,null,"2016-06-30"]
[null,null,null,null,null,null,null,"2016-07-01",null,{"$f":"IF(A16=\"Общая\",\"без учета НДС\",\"НДС не предусмотрен\")","v":"без учета НДС"}]
[null,null,null,null,null,null,null,"2016-12-31"]
[null,null,null,null,null,"в том числе по компонентам"]
[null,null,null,null,null,"наименование компонента","ед.изм","срок действия тарифа","ед.изм","величина компоненты"]
[null,null,null,null,null,"холодная вода","руб/куб.м.",{"$f":"H16","v":"2016-01-01"},null,{"$f":"J16","v":"без учета НДС"}]
[null,null,null,null,null,null,null,{"$f":"H17","v":"2016-06-30"}]
[null,null,null,null,null,null,null,{"$f":"H18","v":"2016-07-01"},null,{"$f":"J18","v":"без учета НДС"}]
[null,null,null,null,null,null,null,{"$f":"H19","v":"2016-12-31"}]
[null,null,null,null,null,"тепловая энергия","руб/Гкал",{"$f":"H16","v":"2016-01-01"},null,{"$f":"J16","v":"без учета НДС"}]
[null,null,null,null,null,null,null,{"$f":"H17","v":"2016-06-30"}]
[null,null,null,null,null,null,null,{"$f":"H18","v":"2016-07-01"},null,{"$f":"J18","v":"без учета НДС"}]
[null,null,null,null,null,null,null,{"$f":"H19","v":"2016-12-31"}]

{"sheet":"Техн характер системы","index":4,"n_rows":55,"n_cols":4,"rows_kept":55,"cut":false,"hidden":false,"merged":[[10,0,10,3],[8,0,8,3],[0,0,0,3],[2,0,2,3]]}
[{"$f":"Титульный!C10","v":" "}]
[]
["Имущество, переданное по договору аренды (концессионному соглашению) и (или) принадлежащее на праве собственности"]
[]
["Район",{"$f":"Титульный!C6","v":0}]
[]
["МО",{"$f":"Титульный!C7","v":0}]
[]
[{"$f":"Титульный!C19","v":"горячее водоснабжение"}]
[]
[{"$f":"Титульный!C21","v":0}]
[]
["№ п/п","Показатель","Ед. изм.","Значение"]
["1","Установленная производительность оборудования","куб.м."]
["1.1","оборудование ЦТП","куб.м."]
["1.2","оборудование системы транспортирования воды","куб.м."]
[2,"Фактическая производительность оборудования","куб.м."]
["2.1","оборудование ЦТП","куб.м."]
["2.2","оборудование системы транспортирования воды","куб.м."]
["3","Уровень загрузки производственных мощностей","%",{"$f":"IF(SUM(F21:F22)=0,0,AVERAGE((F21:F22)))","v":0}]
["3.1","оборудование ЦТП","%",{"$f":"(IF(D15=0,0,D18/D15))*100","v":0}]
["3.2","оборудование системы транспортирования воды","%",{"$f":"(IF(D16=0,0,D19/D16))*100","v":0}]
["4","Общая протяженность сетей водоснабжения","м",{"$f":"SUM(D24:D33)","v":0}]
["4.1","диаметр     мм","м"]
["4.2","диаметр     мм","м"]
["4.3","диаметр     мм","м"]
["4.4","диаметр     мм","м"]
["4.5","диаметр     мм","м"]
["4.6",null,"м"]
["4.7",null,"м"]
["4.8",null,"м"]
["4.9",null,"м"]
["4.10",null,"м"]
["5","Количество ЦТП","ед."]
["6","Износ систем коммунальной инфраструктуры, в том числе:","%",{"$f":"IF(SUM(F36:F37)=0,0,AVERAGE((F36:F37)))","v":0}]
["6.1","оборудование ЦТП","%",{"$f":"IF(D42=0,0,D39/D42*100)","v":0}]
["6.2","оборудование системы транспортирования воды","%",{"$f":"IF(D43=0,0,D40/D43*100)","v":0}]
["7","Фактический срок службы оборудования, в том числе:","лет"]
["7.1","оборудование ЦТП","лет"]
["7.2","оборудование системы транспортирования воды","лет"]
["8","Нормативный срок службы оборудования, в том числе:","лет"]
["8.1","оборудование ЦТП","лет"]
["8.2","оборудование системы транспортирования воды","лет"]
["9","Удельный вес сетей, нуждающихся в замене","%",{"$f":"IF(D23=0,0,D45/D23*100)","v":0}]
["10","Протяженность сетей, нуждающихся в замене","м",{"$f":"SUM(D46:D55)","v":0}]
["10.1",{"$f":"B24","v":"диаметр     мм"},"м"]
["10.2",{"$f":"B25","v":"диаметр     мм"},"м"]
["10.3","диаметр     мм","м"]
["10.4","диаметр     мм","м"]
["10.5","диаметр     мм","м"]
["10.6",{"$f":"B29","v":0},"м"]
["10.7",0,"м"]
["10.8",0,"м"]
["10.9",0,"м"]
["10.10",0,"м"]

{"sheet":"полезный отпуск","index":5,"n_rows":26,"n_cols":7,"rows_kept":26,"cut":false,"hidden":false,"merged":[[0,0,0,6],[1,0,1,6],[5,0,12,0],[8,1,12,1],[10,4,12,4],[10,5,12,5],[6,1,7,6],[9,3,9,6],[10,2,12,2],[10,3,12,3],[5,1,5,6],[8,2,8,6],[10,6,12,6]]}
["Сводный отчет об объемах отпущенной воды на собственное потребление и сторонним потребителям"]
[{"$f":"Титульный!C21","v":0}]
["Район",{"$f":"Титульный!C6","v":0}]
[]
[]
["Период","Объем реализации, куб.м."]
[null,"ВСЕГО по тарифу за 2016 год"]
[]
[null,"всего","в том числе:"]
[null,null,"собственное потребление","сторонние потребители"]
[null,null,"Итого","Итого","бюджет","население","прочие"]
[]
[]
["Январь",{"$f":"C14+D14","v":0},null,{"$f":"SUM(E14:G14)","v":0}]
["Февраль",{"$f":"C15+D15","v":0},null,{"$f":"SUM(E15:G15)","v":0}]
["Март",0,null,0]
["Апрель",0,null,0]
["Май",0,null,0]
["Июнь",0,null,0]
["Июль",0,null,0]
["Август",0,null,0]
["Сентябрь",0,null,0]
["Октябрь",0,null,0]
["Ноябрь",0,null,0]
["Декабрь",0,null,0]
["Итого год",{"$f":"SUM(B14:B25)","v":0},{"$f":"SUM(C14:C25)","v":0},{"$f":"SUM(D14:D25)","v":0},{"$f":"SUM(E14:E25)","v":0},{"$f":"SUM(F14:F25)","v":0},{"$f":"SUM(G14:G25)","v":0}]

{"sheet":"отчет по реализации","index":6,"n_rows":77,"n_cols":16,"rows_kept":77,"cut":false,"hidden":false,"merged":[[44,9,69,9],[11,10,36,10],[44,10,69,10],[6,10,8,10],[4,0,4,15],[9,1,9,14],[42,1,42,14],[11,9,36,9],[0,0,0,15],[6,0,8,0],[6,1,8,1],[6,2,8,2],[6,4,6,8],[6,9,8,9],[6,11,6,15],[1,0,1,15],[2,0,2,15],[6,3,7,3],[7,4,7,5],[7,8,8,8],[7,11,7,12],[7,13,7,14],[7,15,8,15],[7,6,7,7]]}
["Сводный отчет по выручке от реализации холодной воды"]
[{"$f":"Титульный!C10","v":" "}]
[{"$f":"Титульный!C19","v":"горячее водоснабжение"}]
[null,"Район",{"$f":"Титульный!C6","v":0},null,"МО",{"$f":"Титульный!C7","v":0}]
[{"$f":"Титульный!C21","v":0}]
[]
["№","Вид потребителя","Степень благоустройства, наименование скота","Нормы потребления горячего водоснабжения, куб.м. в месяц на 1 чел","Фактический годовой объем реализации воды,  куб.м.",null,null,null,null,"тариф на горячую воду, руб/куб.м.","тариф на подогрев холодной воды для нужд ГВС, руб/куб.м.","Сумма, руб"]
[null,null,null,null,"горячая вода",null,"подогрев холодной воды для нужд горячего водоснабжения",null,"ВСЕГО",null,null,"горячая вода",null,"подогрев холодной воды для нужд горячего водоснабжения",null,"ИТОГО"]
[null,null,null,"ГВС","норматив","прибор учета","норматив","прибор учета",null,null,null,"норматив","прибор учета","норматив","прибор учета"]
[null,"1-е полугодие 2016 года"]
["1.","Население "]
["1.1."," хозяйственно-питьевые нужды","Квартиры с ваннами длиной от 1500 до 1700 мм, оборудованными душами",null,null,null,null,null,{"$f":"SUM(E12:H12)","v":0},{"$f":"'данные об организации'!I16","v":0},{"$f":"'данные об организации'!I16-'данные об организации'!I22","v":0},{"$f":"E12*$J$12","v":0},{"$f":"F12*$J$12","v":0},{"$f":"G12*$K$12","v":0},{"$f":"H12*$K$12","v":0},{"$f":"SUM(L12:O12)","v":0}]
["1.2."," хозяйственно-питьевые нужды","Квартиры  без ванн,  без ГВС и кан-ции",null,null,null,null,null,{"$f":"SUM(E13:H13)","v":0},null,null,{"$f":"E13*$J$12","v":0},{"$f":"F13*$J$12","v":0},{"$f":"G13*$K$12","v":0},{"$f":"H13*$K$12","v":0},{"$f":"SUM(L13:O13)","v":0}]
["1.3."," хозяйственно-питьевые нужды","Квартиры с ваннами длиной от 1500 до 1700 мм, оборудованными душами",null,null,null,null,null,0,null,null,0,0,0,0,0]
["1.4."," хозяйственно-питьевые нужды","Квартиры с  общими душами на этаже",null,null,null,null,null,0,null,null,0,0,0,0,0]
["1.5."," хозяйственно-питьевые нужды","Квартиры  с ваннами и местным  ГВС (индивид эл.бойлера)",null,null,null,null,null,0,null,null,0,0,0,0,0]
["1.6."," хозяйственно-питьевые нужды","Квартиры  с ваннами и местным  ГВС (общий т/обменник от отопления 252 дня)",null,null,null,null,null,0,null,null,0,0,0,0,0]
["1.7."," хозяйственно-питьевые нужды","Квартиры с ваннами длиной от 1500 до 1700 мм, оборудованными душами",null,null,null,null,null,0,null,null,0,0,0,0,{"$f":"SUM(L18:O18)","v":0}]
["1.8."," хозяйственно-питьевые нужды","Квартиры  с ваннами и местным  ГВС (индивид эл.бойлера)",null,null,null,null,null,0,null,null,0,0,0,0,0]
["1.9."," хозяйственно-питьевые нужды","Квартиры с ваннами длиной от 1500 до 1700 мм, оборудованными душами",null,null,null,null,null,0,null,null,0,0,0,0,0]
["1.10."," хозяйственно-питьевые нужды","Квартиры с ваннами длиной от 1500 до 1700 мм, оборудованными душами",null,null,null,null,null,0,null,null,0,0,0,0,0]
["1.11."," хозяйственно-питьевые нужды","Квартиры с ваннами сидячими, оборудованными душами",null,null,null,null,null,0,null,null,0,0,0,0,0]
["1.12."," хозяйственно-питьевые нужды","Квартиры с общими душами на этаже",null,null,null,null,null,0,null,null,0,0,0,0,0]
["1.13."," хозяйственно-питьевые нужды","Квартиры с ваннами длиной от 1500 до 1700 мм, оборудованными душами",null,null,null,null,null,0,null,null,0,0,0,0,0]
["1.14."," хозяйственно-питьевые нужды","Квартиры с ваннами длиной от 1500 до 1700 мм, оборудованными душами",null,null,null,null,null,0,null,null,0,0,0,0,0]
["1.15."," хозяйственно-питьевые нужды","Квартиры с общими душами в секции",null,null,null,null,null,0,null,null,0,0,0,0,0]
["1.16."," хозяйственно-питьевые нужды","Квартиры с ваннами длиной от 1500 до 1700 мм, оборудованными душами",null,null,null,null,null,0,null,null,0,0,0,0,0]
["1.17."," хозяйственно-питьевые нужды","с водопроводом без канализации",null,null,null,null,null,0,null,null,0,0,0,0,0]
["1.18."," хозяйственно-питьевые нужды","водопровод, ванны без ГВС и кан-ции",null,null,null,null,null,0,null,null,0,0,0,0,0]
["1.19."," хозяйственно-питьевые нужды","с ваннами, оборудованными душами и с канализацией",null,null,null,null,null,0,null,null,0,0,0,0,0]
["1.20."," хозяйственно-питьевые нужды","с водопроводом без канализации",null,null,null,null,null,0,null,null,0,0,0,0,0]
["1.21."," хозяйственно-питьевые нужды","водопровод, ванны без ГВС и кан-ции",null,null,null,null,null,0,null,null,0,0,0,0,0]
["1.22."," хозяйственно-питьевые нужды","с ваннами, оборудованными душами и с канализацией",null,null,null,null,null,0,null,null,0,0,0,0,0]
["1.23."," хозяйственно-питьевые нужды","с водопроводом без канализации",null,null,null,null,null,0,null,null,0,0,0,0,0]
["1.24."," хозяйственно-питьевые нужды","водопровод, ванны без ГВС и кан-ции",null,null,null,null,null,0,null,null,0,0,0,0,0]
["1.25."," хозяйственно-питьевые нужды","с ваннами, оборудованными душами и с канализацией",null,null,null,null,null,0,null,null,0,0,0,0,0]
["1.26.",null,null,null,null,null,null,null,0,null,null,0,0,0,0,0]
[null,"перерасчеты",null,"х","х","х",null,null,"х","контроль",null,"х","х","х","х"]
[null,"Итого население",null,null,{"$f":"SUM(E12:E37)","v":0},{"$f":"SUM(F12:F37)","v":0},{"$f":"SUM(G12:G37)","v":0},0,0,{"$f":"I39-SUM('полезный отпуск'!F14:F19)","v":0},null,{"$f":"SUM(L12:L37)","v":0},0,0,0,{"$f":"SUM(P12:P38)","v":0}]
["2.","Итого бюджет",null,null,null,null,null,null,0,{"$f":"I40-SUM('полезный отпуск'!E14:E19)","v":0},null,{"$f":"E40*$J$12","v":0},{"$f":"F40*$J$12","v":0},{"$f":"G40*$K$12","v":0},{"$f":"H40*$K$12","v":0},{"$f":"SUM(L40:O40)","v":0}]
["3.","Итого прочие",null,null,null,null,null,null,0,{"$f":"I41-SUM('полезный отпуск'!G14:G19)","v":0},null,0,0,0,0,{"$f":"SUM(L41:O41)","v":0}]
["4.","ВСЕГО 1-е полугодие",null,null,{"$f":"SUM(E39:E41)","v":0},{"$f":"SUM(F39:F41)","v":0},0,0,0,{"$f":"I42-SUM('полезный отпуск'!D14:D19)","v":0},null,{"$f":"SUM(L39:L41)","v":0},0,0,0,0]
[null,"2-е полугодие 2016 года"]
["1.","Население "]
[{"$f":"IF(A12=\"\",\"\",A12)","v":"1.1."}," хозяйственно-питьевые нужды","Квартиры с ваннами длиной от 1500 до 1700 мм, оборудованными душами",null,null,null,null,null,{"$f":"SUM(E45:H45)","v":0},{"$f":"'данные об организации'!I18","v":0},{"$f":"'данные об организации'!I18-'данные об организации'!I24","v":0},{"$f":"E45*$J$45","v":0},{"$f":"F45*$J$45","v":0},{"$f":"G45*$K$45","v":0},{"$f":"H45*$K$45","v":0},{"$f":"SUM(L45:O45)","v":0}]
["1.2."," хозяйственно-питьевые нужды","Квартиры  без ванн,  без ГВС и кан-ции",null,null,null,null,null,{"$f":"SUM(E46:H46)","v":0},null,null,{"$f":"E46*$J$45","v":0},{"$f":"F46*$J$45","v":0},{"$f":"G46*$K$45","v":0},{"$f":"H46*$K$45","v":0},{"$f":"SUM(L46:O46)","v":0}]
["1.3."," хозяйственно-питьевые нужды","Квартиры с ваннами длиной от 1500 до 1700 мм, оборудованными душами",null,null,null,null,null,0,null,null,0,0,0,0,0]
["1.4."," хозяйственно-питьевые нужды","Квартиры с  общими душами на этаже",null,null,null,null,null,0,null,null,0,0,0,0,0]
["1.5."," хозяйственно-питьевые нужды","Квартиры  с ваннами и местным  ГВС (индивид эл.бойлера)",null,null,null,null,null,0,null,null,0,0,0,0,0]
["1.6."," хозяйственно-питьевые нужды","Квартиры  с ваннами и местным  ГВС (общий т/обменник от отопления 252 дня)",null,null,null,null,null,0,null,null,0,0,0,0,0]
["1.7."," хозяйственно-питьевые нужды","Квартиры с ваннами длиной от 1500 до 1700 мм, оборудованными душами",null,null,null,null,null,0,null,null,0,0,0,0,0]
["1.8."," хозяйственно-питьевые нужды","Квартиры  с ваннами и местным  ГВС (индивид эл.бойлера)",null,null,null,null,null,0,null,null,0,0,0,0,0]
["1.9."," хозяйственно-питьевые нужды","Квартиры с ваннами длиной от 1500 до 1700 мм, оборудованными душами",null,null,null,null,null,0,null,null,0,0,0,0,0]
["1.10."," хозяйственно-питьевые нужды","Квартиры с ваннами длиной от 1500 до 1700 мм, оборудованными душами",null,null,null,null,null,0,null,null,0,0,0,0,0]
["1.11."," хозяйственно-питьевые нужды","Квартиры с ваннами сидячими, оборудованными душами",null,null,null,null,null,0,null,null,0,0,0,0,0]
["1.12."," хозяйственно-питьевые нужды","Квартиры с общими душами на этаже",null,null,null,null,null,0,null,null,0,0,0,0,0]
["1.13."," хозяйственно-питьевые нужды","Квартиры с ваннами длиной от 1500 до 1700 мм, оборудованными душами",null,null,null,null,null,0,null,null,0,0,0,0,0]
["1.14."," хозяйственно-питьевые нужды","Квартиры с ваннами длиной от 1500 до 1700 мм, оборудованными душами",null,null,null,null,null,0,null,null,0,0,0,0,0]
["1.15."," хозяйственно-питьевые нужды","Квартиры с общими душами в секции",null,null,null,null,null,0,null,null,0,0,0,0,0]
["1.16."," хозяйственно-питьевые нужды","Квартиры с ваннами длиной от 1500 до 1700 мм, оборудованными душами",null,null,null,null,null,0,null,null,0,0,0,0,0]
["1.17."," хозяйственно-питьевые нужды","с водопроводом без канализации",null,null,null,null,null,0,null,null,0,0,0,0,0]
["1.18."," хозяйственно-питьевые нужды","водопровод, ванны без ГВС и кан-ции",null,null,null,null,null,0,null,null,0,0,0,0,0]
["1.19."," хозяйственно-питьевые нужды","с ваннами, оборудованными душами и с канализацией",null,null,null,null,null,0,null,null,0,0,0,0,0]
["1.20."," хозяйственно-питьевые нужды","с водопроводом без канализации",null,null,null,null,null,0,null,null,0,0,0,0,0]
["1.21."," хозяйственно-питьевые нужды","водопровод, ванны без ГВС и кан-ции",null,null,null,null,null,0,null,null,0,0,0,0,0]
["1.22."," хозяйственно-питьевые нужды","с ваннами, оборудованными душами и с канализацией",null,null,null,null,null,0,null,null,0,0,0,0,0]
["1.23."," хозяйственно-питьевые нужды","с водопроводом без канализации",null,null,null,null,null,0,null,null,0,0,0,0,0]
["1.24."," хозяйственно-питьевые нужды","водопровод, ванны без ГВС и кан-ции",null,null,null,null,null,0,null,null,0,0,0,0,0]
["1.25."," хозяйственно-питьевые нужды","с ваннами, оборудованными душами и с канализацией",null,null,null,null,null,0,null,null,0,0,0,0,0]
["1.26.","","",{"$f":"IF(C70=\"\",\"\",\"х\")","v":""},null,null,null,null,0,null,null,0,0,0,0,0]
[null,"перерасчеты",null,"х","х","х",null,null,"х","контроль",null,"х","х","х","х"]
[null,"Итого население",null,null,{"$f":"SUM(E45:E70)","v":0},{"$f":"SUM(F45:F70)","v":0},{"$f":"SUM(G45:G70)","v":0},0,{"$f":"SUM(E72:H72)","v":0},{"$f":"I72-SUM('полезный отпуск'!F20:F25)","v":0},null,{"$f":"SUM(L45:L70)","v":0},0,0,0,{"$f":"SUM(P45:P71)","v":0}]
["2.","Итого бюджет",null,null,null,null,null,null,0,{"$f":"I73-SUM('полезный отпуск'!E20:E25)","v":0},null,{"$f":"E73*$J$45","v":0},{"$f":"F73*$J$45","v":0},{"$f":"G73*$K$45","v":0},{"$f":"H73*$K$45","v":0},{"$f":"SUM(L73:O73)","v":0}]
["3.","Итого прочие",null,null,null,null,null,null,0,{"$f":"I74-SUM('полезный отпуск'!G20:G25)","v":0},null,0,0,0,0,{"$f":"SUM(L74:O74)","v":0}]
["4.","ВСЕГО 2-е полугодие",null,null,{"$f":"SUM(E72:E74)","v":0},{"$f":"SUM(F72:F74)","v":0},{"$f":"SUM(G72:G74)","v":0},{"$f":"SUM(H72:H74)","v":0},0,{"$f":"I75-SUM('полезный отпуск'!D20:D25)","v":0},null,{"$f":"SUM(L72:L74)","v":0},0,0,0,0]
[]
["5.","ГОД ВСЕГО",null,null,{"$f":"E42+E75","v":0},{"$f":"F42+F75","v":0},0,0,0,null,null,0,0,0,0,{"$f":"P42+P75","v":0}]

{"sheet":"Смета факт","index":7,"n_rows":20,"n_cols":6,"rows_kept":20,"cut":false,"hidden":false,"merged":[[0,0,0,2],[1,0,1,2],[2,0,2,2],[8,4,9,4],[7,4,7,5],[8,5,9,5],[7,0,9,0],[7,1,9,1],[8,2,9,2]]}
["Фактическая смета расходов и НВВ по установленному тарифу в сфере водоснабжения за 2016 год"]
[{"$f":"Титульный!C19","v":"горячее водоснабжение"}]
[{"$f":"Титульный!C21","v":0}]
["район",{"$f":"Титульный!C6","v":0}]
[]
["МО",{"$f":"Титульный!C7","v":0}]
[]
["№ п/п","Наименование статьи","Сумма, руб",null,"Анализ эксперта"]
[null,null,"ВСЕГО",null,"ВСЕГО по отчету по реализации","по форме 2"]
[]
["1.","Стоимость покупной воды",null,null,{"$f":"('отчет по реализации'!E42+'отчет по реализации'!F42+SUM('полезный отпуск'!C14:C19))*('отчет по реализации'!J12-'отчет по реализации'!K12)+('отчет по реализации'!E75+'отчет по реализации'!F75+SUM('полезный отпуск'!C20:C25))*('отчет по реализации'!J45-'отчет по реализации'!K45)","v":0}]
["2.","Стоимость тепловой энергии на подогрев воды",null,null,{"$f":"('отчет по реализации'!I42+SUM('полезный отпуск'!C14:C19))*'отчет по реализации'!K12+('отчет по реализации'!I75+SUM('полезный отпуск'!C20:C25))*'отчет по реализации'!K45","v":0}]
["3.","Финансовый результат "]
["IХ","НЕОБХОДИМАЯ ВАЛОВАЯ ВЫРУЧКА",{"$f":"C11+C12","v":0},null,{"$f":"E11+E12","v":0}]
["16.","Товарная продукция",null,null,{"$f":"'отчет по реализации'!P77","v":0},{"$f":"'форма №2'!C11","v":0}]
["17.","Затраты на собственное потребление",null,null,{"$f":"E14-E15","v":0}]
["18.","Отпущено воды всего, м3, в том числе: ",{"$f":"'полезный отпуск'!B26","v":0},null,{"$f":"C17","v":0}]
["18.1.","на собственное потребление",{"$f":"'полезный отпуск'!C26","v":0},null,{"$f":"C18","v":0}]
["18.2.","сторонним потребителям",{"$f":"'полезный отпуск'!D26","v":0},null,{"$f":"C19","v":0}]
["X","Цена (тариф) на горячую воду, руб./м3",{"$f":"IF(C17=0,0,C14/C17)","v":0},null,{"$f":"IF(E17=0,0,E14/E17)","v":0}]

{"sheet":"форма №2","index":8,"n_rows":170,"n_cols":3,"rows_kept":170,"cut":false,"hidden":false,"merged":[[0,0,0,2],[1,0,1,2],[3,2,4,2],[3,0,4,0],[3,1,4,1]]}
["Отчёт по бухгалтерской форме № 2 за 2016 год  с детализацией по видам деятельности"]
[{"$f":"Титульный!C10","v":" "}]
[]
["№ п/п","Наименование показателя","Сумма по данным организации, руб"]
[]
["I","Доходы и расходы по обычным видам деятельности"]
["1.1","Выручка (нетто) от продажи товаров, продукции, работ, услуг (за минусом налога на добавленную стоимость, акцизов и аналогичных обязательных платежей)",{"$f":"SUM(C8:C22)","v":0}]
["1.1.1","тепловая энергия"]
["1.1.2","электроэнергия"]
["1.1.3","холодная вода"]
["1.1.4",{"$f":"Титульный!C19","v":"горячее водоснабжение"}]
["1.1.5","водоотведение (очистка сточных вод)"]
["1.1.6","водоотведение"]
["1.1.7","очистка сточных вод"]
["1.1.8","техническая вода"]
["1.1.9","очистка воды"]
["1.1.10"]
["1.1.11"]
["1.1.12"]
["1.1.13"]
["1.1.14"]
["1.1.15","прочие (нерегулируемые) виды деятельности"]
["1.2","Себестоимость проданных товаров, продукции, работ, услуг",{"$f":"SUM(C24:C38)","v":0}]
["1.2.1",{"$f":"B8","v":"тепловая энергия"}]
["1.2.2","электроэнергия"]
["1.2.3","холодная вода"]
["1.2.4","горячее водоснабжение"]
["1.2.5","водоотведение (очистка сточных вод)"]
["1.2.6","водоотведение"]
["1.2.7","очистка сточных вод"]
["1.2.8","техническая вода"]
["1.2.9","очистка воды"]
["1.2.10",0]
["1.2.11",0]
["1.2.12",0]
["1.2.13",0]
["1.2.14",0]
["1.2.15","прочие (нерегулируемые) виды деятельности"]
["1.3","Валовая прибыль",{"$f":"SUM(C40:C54)","v":0}]
["1.3.1",{"$f":"B24","v":"тепловая энергия"},{"$f":"C8-C24","v":0}]
["1.3.2","электроэнергия",{"$f":"C9-C25","v":0}]
["1.3.3","холодная вода",0]
["1.3.4","горячее водоснабжение",0]
["1.3.5","водоотведение (очистка сточных вод)",0]
["1.3.6","водоотведение",0]
["1.3.7","очистка сточных вод",0]
["1.3.8","техническая вода",0]
["1.3.9","очистка воды",0]
["1.3.10",0,0]
["1.3.11",0,0]
["1.3.12",0,0]
["1.3.13",0,0]
["1.3.14",0,0]
["1.3.15","прочие (нерегулируемые) виды деятельности",0]
["1.4","Коммерческие расходы",{"$f":"SUM(C56:C70)","v":0}]
["1.4.1",{"$f":"B40","v":"тепловая энергия"}]
["1.4.2","электроэнергия"]
["1.4.3","холодная вода"]
["1.4.4","горячее водоснабжение"]
["1.4.5","водоотведение (очистка сточных вод)"]
["1.4.6","водоотведение"]
["1.4.7","очистка сточных вод"]
["1.4.8","техническая вода"]
["1.4.9","очистка воды"]
["1.4.10",0]
["1.4.11",0]
["1.4.12",0]
["1.4.13",{"$f":"B52","v":0}]
["1.4.14",0]
["1.4.15","прочие (нерегулируемые) виды деятельности"]
["1.5","Управленческие расходы",{"$f":"SUM(C72:C86)","v":0}]
["1.5.1",{"$f":"B56","v":"тепловая энергия"}]
["1.5.2","электроэнергия"]
["1.5.3","холодная вода"]
["1.5.4","горячее водоснабжение"]
["1.5.5","водоотведение (очистка сточных вод)"]
["1.5.6","водоотведение"]
["1.5.7","очистка сточных вод"]
["1.5.8","техническая вода"]
["1.5.9","очистка воды"]
["1.5.10",0]
["1.5.11",0]
["1.5.12",0]
["1.5.13",{"$f":"B68","v":0}]
["1.5.14",0]
["1.5.15","прочие (нерегулируемые) виды деятельности"]
["1.6","Прибыль (убыток) от продаж ",{"$f":"SUM(C88:C102)","v":0}]
["1.6.1",{"$f":"B8","v":"тепловая энергия"},{"$f":"C40-C56-C72","v":0}]
["1.6.2","электроэнергия",{"$f":"C41-C57-C73","v":0}]
["1.6.3","холодная вода",0]
["1.6.4","горячее водоснабжение",0]
["1.6.5","водоотведение (очистка сточных вод)",0]
["1.6.6","водоотведение",0]
["1.6.7","очистка сточных вод",0]
["1.6.8","техническая вода",0]
["1.6.9","очистка воды",0]
["1.6.10",0,0]
["1.6.11",0,0]
["1.6.12",0,0]
["1.6.13",0,0]
["1.6.14",0,0]
["1.6.15","прочие (нерегулируемые) виды деятельности",0]
["II","Прочие доходы и расходы",{"$f":"C104-C120","v":0}]
["2.3","Прочие доходы",{"$f":"SUM(C105:C119)","v":0}]
["2.3.1",{"$f":"B88","v":"тепловая энергия"}]
["2.3.2",{"$f":"B89","v":"электроэнергия"}]
["2.3.3","холодная вода"]
["2.3.4","горячее водоснабжение"]
["2.3.5","водоотведение (очистка сточных вод)"]
["2.3.6","водоотведение"]
["2.3.7","очистка сточных вод"]
["2.3.8","техническая вода"]
["2.3.9","очистка воды"]
["2.3.10",0]
["2.3.11",0]
["2.3.12",0]
["2.3.13",0]
["2.3.14",0]
["2.3.15","прочие (нерегулируемые) виды деятельности"]
["2.4","Прочие расходы",{"$f":"SUM(C121:C135)","v":0}]
["2.4.1",{"$f":"B105","v":"тепловая энергия"}]
["2.4.2",{"$f":"B106","v":"электроэнергия"}]
["2.4.3","холодная вода"]
["2.4.4","горячее водоснабжение"]
["2.4.5","водоотведение (очистка сточных вод)"]
["2.4.6","водоотведение"]
["2.4.7","очистка сточных вод"]
["2.4.8","техническая вода"]
["2.4.9","очистка воды"]
["2.4.10",0]
["2.4.11",0]
["2.4.12",0]
["2.4.13",0]
["2.4.14",0]
["2.4.15","прочие (нерегулируемые) виды деятельности"]
["3","Прибыль (убыток) до налогообложения ",{"$f":"SUM(C137:C151)","v":0}]
["3.1.1",{"$f":"B8","v":"тепловая энергия"},{"$f":"C88+C105-C121","v":0}]
["3.1.2",{"$f":"B9","v":"электроэнергия"},{"$f":"C89+C106-C122","v":0}]
["3.1.3","холодная вода",0]
["3.1.4","горячее водоснабжение",0]
["3.1.5","водоотведение (очистка сточных вод)",0]
["3.1.6","водоотведение",0]
["3.1.7","очистка сточных вод",0]
["3.1.8","техническая вода",0]
["3.1.9","очистка воды",0]
["3.1.10",0,0]
["3.1.11",0,0]
["3.1.12",0,0]
["3.1.13",0,0]
["3.1.14",0,0]
["3.1.15","прочие (нерегулируемые) виды деятельности",0]
["3.2.2","Текущий налог на прибыль",{"$f":"SUM(C153:C167)","v":0}]
["3.2.2.1",{"$f":"B24","v":"тепловая энергия"}]
["3.2.2.2",{"$f":"B25","v":"электроэнергия"}]
["3.2.2.3","холодная вода"]
["3.2.2.4","горячее водоснабжение"]
["3.2.2.5","водоотведение (очистка сточных вод)"]
["3.2.2.6","водоотведение"]
["3.2.2.7","очистка сточных вод"]
["3.2.2.8","техническая вода"]
["3.2.2.9","очистка воды"]
["3.2.2.10",0]
["3.2.2.11",0]
["3.2.2.12",0]
["3.2.2.13",0]
["3.2.2.14",0]
["3.2.2.15","прочие (нерегулируемые) виды деятельности"]
[]
[]
["5.","Чистая прибыль (убыток) отчетного периода",{"$f":"C136-C152+C168+C169","v":0}]

{"sheet":"показатели надежн и качества","index":9,"n_rows":22,"n_cols":19,"rows_kept":22,"cut":false,"hidden":false,"merged":[[13,13,13,15],[13,16,13,17],[13,18,13,19],[0,0,0,4],[0,12,0,19],[1,0,1,4],[6,12,7,12],[6,13,7,15],[6,16,7,17],[7,18,7,19],[9,12,9,19],[10,13,10,15],[10,16,10,17],[10,18,10,19],[16,0,16,4],[16,12,16,19],[20,0,20,4],[2,0,2,4],[6,3,6,6],[6,0,8,0],[6,1,8,1],[6,2,8,2],[7,5,7,6],[7,3,8,3],[7,4,8,4],[9,0,9,4],[17,13,17,15],[17,16,17,17],[17,18,17,19],[6,18,6,19]]}
["Фактические значения показателей надежности, качества и энергетической эффективности объектов централизованных систем водоснабжения",null,null,null,null,null,null,null,null,null,null,null,"V. Плановые значения показателей надежности, качества и энергетической эффективности объектов централизованных систем водоснабжения"]
[{"$f":"Титульный!C19","v":"горячее водоснабжение"}]
[{"$f":"Титульный!C21","v":0}]
["район",{"$f":"Титульный!C6","v":0}]
["МО",{"$f":"Титульный!C7","v":0}]
[]
["№ п/п","Наименование показателя","ед. изм.","2016 год",null,null,null,null,null,null,null,null,"№ п/п","Наименование показателя",null,null,"ед. изм.",null,{"$f":"#REF!","v":{"$error":"#REF!"}}]
[null,null,null,"план","факт","отклонение",null,null,null,null,null,null,null,null,null,null,null,null,"Значение"]
[null,null,null,null,null,"абс.","относ., %"]
["Показатели качества воды",null,null,null,null,null,null,null,null,null,null,null,"Показатели качества воды"]
[1,"Доля проб горячей воды в тепловой сети или в сети горячего водоснабжения, не соответствующих требованиям по температуре, в общем объеме проб, отобранных по результатам производственного контроля качества горячей воды","%",null,{"$f":"IF(E12=0,0,E13/E12*100)","v":0},{"$f":"E11-D11","v":0},{"$f":"IF(D11=0,,F11/D11)*100","v":0},"приложить отчеты о проведении исследований!",null,null,null,null,1,"Доля проб питьевой воды, подаваемой с водопроводных станций в распределительную водопроводную сеть, не соответствующих установленным требованиям, в общем объеме проб, отобранных по результатам производственного контроля качества питьевой воды",null,null,"%"]
["1.1.","количество проб горячей воды всего","ед",null,null,null,null,"если исследования не проводились поставить прочерк"]
["1.2.","количество проб проб горячей воды, не соответствующих требованиям по температуре","ед"]
[2,"Доля проб горячей воды в тепловой сети или в сети горячего водоснабжения, не соответствующих установленным требованиям (за исключением температуры), в общем объеме проб, отобранных по результатам производственного контроля качества горячей воды","%",null,{"$f":"IF(E15=0,0,E16/E15*100)","v":0},{"$f":"E14-D14","v":0},{"$f":"IF(D14=0,,F14/D14)*100","v":0},"приложить отчеты о проведении исследований!",null,null,null,null,2,"Доля проб питьевой воды в распределительной водопроводной сети, не соответствующих установленным требованиям, в общем объеме проб, отобранных по результатам производственного контроля качества питьевой воды",null,null,"%"]
["2..1.","количество проб питьевой воды всего","ед"]
["2.2.","количество проб горячей воды, не соответствующих установленным требованиям (за исключением температуры)","ед"]
["Показатели надежности и бесперебойности водоснабжения",null,null,null,null,null,null,null,null,null,null,null,"Показатели надежности и бесперебойности водоснабжения"]
[1,"Количество зафиксированных перерывов в подаче горячей воды, возникших в результате аварий, повреждений и иных технологических нарушений","ед в год/ км",null,{"$f":"IF(E20=0,0,E19/E20)","v":0},{"$f":"E18-D18","v":0},{"$f":"IF(D18=0,,F18/D18)*100","v":0},"приложить подтверждающие документы!",null,null,null,null,1,"Количество зафиксированных перерывов в подаче холодной воды, возникших в результате аварий, повреждений и иных технологических нарушений",null,null,"ед в год/ км"]
["1.1.","количество зафиксированных перерывов в подаче горячей воды","ед"]
["1.2.","протяженность водопроводных сетей","км",null,{"$f":"'[1]Техн характер системы'!D16+'[1]Техн характер системы (бсх)'!D16/1000","v":0}]
["Показатели энергетической эффективности использования ресурсов"]
[1,"Удельное количество тепловой энергии, расходуемое на подогрев горячей воды","Гкал/куб.м.","-",null,"-","-","при применении двухкомпонентного тарифа приложить подтверждающие документы!"]

{"sheet":"отчет ПП","index":10,"n_rows":42,"n_cols":8,"rows_kept":42,"cut":false,"hidden":false,"merged":[[14,1,14,4],[8,5,8,7],[9,2,9,3],[9,4,9,5],[8,0,8,1],[4,0,4,1],[4,2,4,7],[5,0,5,1],[5,2,5,7],[12,5,12,7],[12,1,13,4],[6,0,6,1],[6,2,6,7],[7,0,7,1],[7,2,7,7],[27,1,28,4],[29,1,29,4],[2,0,2,1],[2,2,2,7],[3,0,3,1],[27,5,27,7],[26,2,26,3],[26,4,26,5],[27,0,28,0],[25,0,25,7],[21,0,22,0],[18,2,18,3],[18,4,18,5],[11,2,11,3],[11,4,11,5],[12,0,13,0],[41,1,41,3],[39,1,39,3],[37,1,37,3],[36,1,36,3],[35,0,35,7],[38,0,38,7],[3,2,3,7],[1,0,1,1],[1,2,1,3],[1,4,1,5],[40,0,40,7],[15,1,15,4],[33,1,34,3],[33,0,34,0],[33,4,34,4],[33,5,33,7],[16,1,16,4],[17,1,17,4],[21,5,21,7],[21,1,22,4],[31,0,31,7],[23,1,23,4]]}
["I. Отчет о выполнении производственной программы за 2016 год"]
[]
["Полное наименование организации",null,{"$f":"Титульный!C10","v":" "}]
["Юридический адрес, телефон, факс",null,{"$f":"CONCATENATE('данные об организации'!C4,'данные об организации'!C5)","v":""}]
["ИНН",null,{"$f":"Титульный!C9","v":0}]
["Сфера деятельности",null,{"$f":"Титульный!C15","v":"Водоснабжение"}]
["Наименование уполномоченного органа",null,"Департамент тарифного регулирования Томской   области"]
["Юридический адрес, телефон, факс",null,"634041, г. Томск, пр. Кирова 41, тел./факс: (3822)   560-373"]
["Период реализации производственной программы (график реализации мероприятий производственной программы)",null,"с ",{"$f":"'данные об организации'!H16","v":"2016-01-01"},"по","2016-12-31"]
[]
["II. Выполнение плановых мероприятий"]
[]
["№ п/п","Вид плановых мероприятий",null,null,null,"Сумма за 2016 год, тыс.руб"]
[null,null,null,null,null,"план","факт","откл"]
[1,"Плановые мероприятия: по ремонту объектов водоснабжения и водопроводных сетей, направленные на улучшение качества горячей воды, обслуживания абонентов",null,null,null,0,0,0]
[2,"Плановые мероприятия по энергосбережению и повышению энергетической эффективности, в том числе по снижению потерь воды при транспортировке",null,null,null,0,0,0]
[3,"Другие мероприятия",null,null,null,0,0,0]
[null,"Итого",null,null,null,{"$f":"SUM(F15:F17)","v":0},{"$f":"SUM(G15:G17)","v":0},{"$f":"G18-F18","v":0}]
[]
["III. Объем подачи воды"]
[]
["№ п/п","Наименование показателя",null,null,null,"Объем за 2016 год, тыс. куб.м."]
[null,null,null,null,null,"план","факт","откл"]
[1,"Объем реализации",null,null,null,null,{"$f":"'полезный отпуск'!B26/1000","v":0},{"$f":"G24-F24","v":0}]
[]
["IV. Объем финансовых потребностей, необходимых для реализации производственной программы"]
[]
["№ п/п","Наименование показателя",null,null,null,"Сумма за 2016 год, тыс.руб"]
[null,null,null,null,null,"план","факт","откл"]
[1,"Необходимая валовая выручка",null,null,null,null,{"$f":"'Смета факт'!C14/1000","v":0},{"$f":"G30-F30","v":0}]
[]
["V. Выполнение плановые значения показателей надежности, качества и энергетической эффективности объектов централизованных систем водоснабжения"]
[]
["№ п/п","Наименование показателя",null,null,"ед. изм.","Значение за 2016 год"]
[null,null,null,null,null,"план","факт","откл"]
["Показатели качества воды"]
[1,"Доля проб горячей воды в тепловой сети или в сети горячего водоснабжения, не соответствующих требованиям по температуре, в общем объеме проб, отобранных по результатам производственного контроля качества горячей воды",null,null,"%",{"$f":"'показатели надежн и качества'!D11","v":0},{"$f":"'показатели надежн и качества'!E11","v":0},{"$f":"G37-F37","v":0}]
[2,"Доля проб горячей воды в тепловой сети или в сети горячего водоснабжения, не соответствующих установленным требованиям (за исключением температуры), в общем объеме проб, отобранных по результатам производственного контроля качества горячей воды",null,null,"%",{"$f":"'показатели надежн и качества'!D14","v":0},{"$f":"'показатели надежн и качества'!E14","v":0},{"$f":"G38-F38","v":0}]
["Показатели надежности и бесперебойности водоснабжения"]
[1,"Количество зафиксированных перерывов в подаче горячей воды, возникших в результате аварий, повреждений и иных технологических нарушений",null,null,"ед в год/ км",{"$f":"'показатели надежн и качества'!D18","v":0},{"$f":"'показатели надежн и качества'!E18","v":0},{"$f":"G40-F40","v":0}]
["Показатели энергетической эффективности использования ресурсов"]
[1,"Удельное количество тепловой энергии, расходуемое на подогрев горячей воды",null,null,"Гкал/куб.м.","-",{"$f":"'показатели надежн и качества'!E22","v":0},"-"]

{"sheet":"Смета 2016","index":11,"n_rows":122,"n_cols":17,"rows_kept":122,"cut":false,"hidden":true,"merged":[[3,13,3,14],[0,2,0,16],[1,2,1,16],[2,2,2,6],[2,7,2,11],[2,12,2,16],[3,15,4,15],[3,16,4,16],[3,2,4,2],[3,3,3,4],[3,5,4,5],[3,6,4,6],[3,7,4,7],[0,0,4,0],[0,1,4,1],[3,8,3,9],[3,12,4,12]]}
["№ п/п","Наименование статей","период регулирования"]
[null,null,"2016 год"]
[null,null,"всего",null,null,null,null,"01.01.-30.06",null,null,null,null,"01.07.-31.12"]
[null,null,"итого","подъем, транспортировка, очистка",null,"общехозяйственные расходы","Транспортные расходы","итого","подъем, транспортировка, очистка",null,"общехозяйственные расходы","Транспортные расходы","итого","подъем, транспортировка, очистка",null,"общехозяйственные расходы","Транспортные расходы"]
[null,null,null,"оформленное имущество","бесхозяйное имущество",null,null,null,"оформленное имущество","бесхозяйное имущество","по распределению","индексация 2015 года",null,"оформленное имущество","бесхозяйное имущество"]
[]
["I","ПРОИЗВОДСТВЕННЫЕ РАСХОДЫ"]
["1.","Материалы , в том числе:"]
["1.1.","реагенты"]
["1.2.","закупка заполнителей фильтров (песок, гравий и пр.)"]
["1.3.","горюче-смазочные материалы"]
["1.4.","материалы и малоценные основные средства, в т.ч."]
["1.4.1.","материалы на техническое обслуживание"]
["1.4.2.","специальная одежда"]
["1.4.3.","хозяйственный инвентарь и другие  вспомогательные материалы"]
["2.","Расходы на энергетические ресурсы"]
["2.1.","Расходы на электроэнергию, в том числе"]
["2.1.1.","                      по показаниям счетчика "]
["2.1.2.","                      за заявленную мощность "]
["2.2.","Расходы на тепловую энергию "]
["2.3.","Расходы воды на хозбытовые нужды"]
["2.4.","Расходы на услуги по водоотведению для хозбытовых нужд"]
["2.5.","Расходы на прочие энергоресурсы"]
["2.6.","Расходы на покупку холодной воды, в том числе:"]
["2.6.1.","                      технического качества"]
["2.6.2.","                      в том числе: покупка потерь"]
["2.6.3.","                      питьевого качества "]
["2.6.4.","                      в том числе: покупка потерь"]
["3.","Услуги, оказываемые сторонними организациями"]
["3.1.","Услуги по подъему воды, оказываемые сторонними       организациями"]
["3.2.","Услуги по очистке воды, оказываемые сторонними организациями"]
["3.3.","Услуги  по транспортированию воды, оказываемые сторонними организациями, всего"]
["3.3.1.","                  в том числе:    услуги по транспортированию неочищенной воды, оказываемые сторонними организациями"]
["3.3.2.","                  услуги  по транспортированию очищенной воды, оказываемые сторонними организациями               "]
["4.","Расходы на оплату труда и отчисления на социальные нужды"]
["4.1.","Расходы на оплату труда"]
["4.2.","Численность по регулируемому виду деятельности, чел"]
["4.2.1.","Ставка рабочего 1-го разряда (с учетом отраслевого коэффициента)"]
["4.3.","Отчисления на социальные нужды от расходов на оплату труда"]
["4.3.1."," % расходов на уплату страховых взносов в ПФ, ФСС, ОМС"]
["4.3.2.","% платежей в фонд социального страхования от несчастных случаев"]
["5.","Прочие производственные расходы"]
["5.1.","Расходы на проведение аварийно-восстановительных работ, в том числе:"]
["5.1.1.","Заработная плата "]
["5.1.2.","Среднемесячная оплата труда "]
["5.1.3.","Численность персонала"]
["5.1.4.","Отчисления на соц.нужды от заработной платы"]
["5.1.5.","Прочие расходы"]
["5.2.","охрана труда всего, в том числе:"]
["5.2.1.","моющие средства"]
["5.2.2.","специальное питание"]
["5.2.3.","страхование персонала (кроме ДМС)"]
["5.2.4.","аттестация"]
["5.2.5.","медицинский осмотр"]
["5.3.","расходы на льготный проезд"]
["5.4.","расходы на содержание зданий (за исключением расходов на энергетические ресурсы)"]
["5.5.","Производственный контроль качества воды"]
["5.5.1."," контроль качества воды"]
["5.5.2.","оборудование  лаборатории"]
["II","РЕМОНТНЫЕ РАСХОДЫ"]
["6.","Ремонт и техническое обслуживание основных средств, в том числе:"]
["6.1.","Текущий ремонт, в том числе:"]
["6.1.1.","  затраты на ремонт хоз. способом:"]
["6.1.1.1.","              заработная плата ремонтного персонала"]
["6.1.1.2.","              отчисления на соц. нужды от заработной платы                                                  ремонтного  персонала"]
["6.1.1.3.","              материалы"]
["6.1.2.","  затраты на ремонт подрядным способом"]
["6.2.","Капитальный ремонт основных средств, в том числе:"]
["6.2.1.","  затраты на ремонт хоз.способом:"]
["6.2.1.1.","            заработная плата ремонтного персонала"]
["6.2.1.2.","            отчисления на соц.нужды от заработной платы ремонтного персонала"]
["6.2.1.3.","            материалы"]
["6.2.2.","  затраты на ремонт подрядным способом"]
["6.3.","Отчисления в ремонтный фонд в случае его формирования "]
["III","ПРОЧИЕ РАСХОДЫ"]
["7.1.","Расходы на оплату работ и услуг, выполняемых сторонними организациями (услуги связи, вневедомственная охрана, юридические, аудиторкие, информационные услуги и т.д.)"]
["7.2.","Расходы на служебные командировки"]
["7.3.","Расходы на обучение персонала"]
["7.4.","Расходы на страхование производственных объектов"]
["7.5.","Прочие расходы"]
["IV","СБЫТОВЫЕ РАСХОДЫ"]
["8.","в т.ч. расходы по сомнительным долгам"]
["V","РАСХОДЫ НА АМОРТИЗАЦИЮ ОСНОВНЫХ СРЕДСТВ И НЕМАТЕРИАЛЬНЫХ АКТИВОВ"]
["9.","Амортизация основных средств"]
["VI","РАСХОДЫ НА АРЕНДНУЮ ПЛАТУ, ЛИЗИНГОВЫЕ ПЛАТЕЖИ, КОНЦЕССИОННУЮ ПЛАТУ"]
["10.","Аренда основных средств, из них:"]
["10.1.","        по договорам лизинга"]
["10.2.","        по концессионным соглашениям"]
["10.3.","        по другим договорам"]
["11.","Аренда земельных участков"]
["VII","РАСХОДЫ, СВЯЗАННЫЕ С ОПЛАТОЙ НАЛОГОВ И СБОРОВ"]
["12.1.","             водный налог"]
["12.2.","             налог на землю"]
["12.3.","             налог на имущество"]
["12.4.","             плата за загрязнение окружающей среды"]
["12.5.","             транспортный налог"]
["12.6.","             прочие налоги и сборы"]
["VIII","НОРМАТИВНАЯ ПРИБЫЛЬ"]
["13.","Финансовый результат от реализации"]
["13.1.","в том числе в %"]
["13.2.","средства на возврат займов и кредитов и процентов по ним"]
["13.3.","расходы на капитальные вложения (инвестиции)"]
["13.4.","денежные выплаты социального характера (по коллективному договору)"]
["13.5.","другие расходы, не учитываемые при определении налоговой бызы налога на прибыль"]
["13.6.","прибыль, обеспечивающая финансирование других расходов, не учитываемых  при определении налоговой бызы налога на прибыль (остающаяся в распоряжении организации)"]
["13.6.1.","налог на прибыль"]
["13.6.2."," (или)единый налог при УСН "]
["14.","Недополученный по независящим причинам доход"]
["14.1.","выпадающие расходы/экономия (в целях выравнивания сметы между полугодия регулируемого периода)"]
["14.2.","экономически обоснованные расходы, понесённые за отчётные периоды "]
["14.3.","выпадающие доходы за отчётные периоды регулирования, связанные с изменением объёмов реализации  "]
["14.4.","Избыток средств, полученный за отчётные периоды регулирования"]
["15.","Расчетная предпринимательская прибыль гарантирующей организации"]
["IХ","НЕОБХОДИМАЯ ВАЛОВАЯ ВЫРУЧКА"]
["16.","Товарная продукция"]
["17.","Затраты на собственное потребление"]
["18.","Отпущено воды всего, м3, в том числе: "]
["18.1.","на собственное потребление"]
["18.2.","сторонним потребителям"]
["X","Цена (тариф) на холодную воду, руб./м3"]
["ХI","Дествующий тариф, руб./м3"]
[null,"Темп роста"]

{"sheet":"анализ факт сметы","index":12,"n_rows":231,"n_cols":20,"rows_kept":231,"cut":false,"hidden":true,"merged":[[0,0,0,17],[1,0,1,17],[2,0,2,17],[5,0,6,0],[5,1,6,1],[5,2,5,6],[5,7,5,11],[5,12,5,16],[5,17,6,17]]}
["Анализ фактической  сметы расходов и НВВ по установленному тарифу в сфере водоснабжения за 2016 год"]
[{"$f":"Титульный!C10","v":" "}]
[{"$f":"Титульный!C19","v":"горячее водоснабжение"}]
["район",{"$f":"Титульный!C6","v":0},{"$f":"Титульный!C7","v":0}]
[]
["№ п/п","Наименование статьи","ВСЕГО",null,null,null,null,"имущество, переданное по договору аренды (концессионному соглашению) или находящееся в собственности",null,null,null,null,"бесхозяйное имущество",null,null,null,null,"Примечание"]
[null,null,"план","факт организации","факт, принятый ДТР","Абсолютное отклонение","Относительное отклонение","план","факт организации","факт, принятый ДТР","Абсолютное отклонение","Относительное отклонение","план","факт организации","факт, принятый ДТР","Абсолютное отклонение","Относительное отклонение"]
["I","ПРОИЗВОДСТВЕННЫЕ РАСХОДЫ",{"$f":"C9+C17+C30+C36+C43","v":0},{"$f":"D9+D17+D30+D36+D43","v":{"$error":"#REF!"}},{"$f":"E9+E17+E30+E36+E43","v":{"$error":"#REF!"}},{"$f":"E8-C8","v":{"$error":"#REF!"}},{"$f":"IF(C8=0,0,E8/C8)","v":0},0,{"$error":"#REF!"},{"$error":"#REF!"},{"$f":"K9+K17+K30+K36+K43","v":{"$error":"#REF!"}},{"$f":"IF(H8=0,0,J8/H8)","v":0},{"$f":"M9+M17+M30+M36+M43","v":0},{"$error":"#REF!"},{"$error":"#REF!"},{"$f":"P9+P17+P30+P36+P43","v":{"$error":"#REF!"}},{"$f":"IF(M8=0,0,O8/M8)","v":0}]
["1.","Расходы на приобретение сырья и материалов и их хранения",{"$f":"C10+C11+C12+C13","v":0},{"$f":"D10+D11+D12+D13","v":0},{"$f":"E10+E11+E12+E13","v":0},0,0,0,0,0,{"$f":"K10+K11+K12+K13","v":0},0,{"$f":"M10+M11+M12+M13","v":0},0,0,{"$f":"P10+P11+P12+P13","v":0},0]
["1.1.","реагенты",{"$f":"H10+M10","v":0},{"$f":"I10+N10","v":0},0,0,0,{"$f":"'Смета 2016'!D9","v":0},{"$f":"'Смета факт'!D14","v":0},null,{"$f":"J10-H10","v":0},0,{"$f":"'Смета 2016'!E9","v":0},{"$f":"'Смета факт'!E14","v":0},null,{"$f":"O10-M10","v":0},0]
["1.2.","заполнители фильтров (песок, гравий и пр.)",{"$f":"H11+M11","v":0},{"$f":"I11+N11","v":0},{"$f":"J11+O11","v":0},0,0,{"$f":"'Смета 2016'!D10","v":0},{"$f":"'Смета факт'!D15","v":0},null,{"$f":"J11-H11","v":0},0,{"$f":"'Смета 2016'!E10","v":0},{"$f":"'Смета факт'!E15","v":0},null,{"$f":"O11-M11","v":0},0]
["1.3.","горюче-смазочные материалы",0,0,0,0,0,{"$f":"'Смета 2016'!D11","v":0},{"$f":"'Смета факт'!D16","v":0},null,0,0,{"$f":"'Смета 2016'!E11","v":0},{"$f":"'Смета факт'!E16","v":0},null,0,0]
["1.4.","материалы и малоценные основные средства, в т.ч.",{"$f":"C14+C15+C16","v":0},{"$f":"D14+D15+D16","v":0},{"$f":"E14+E15+E16","v":0},0,0,0,{"$f":"'Смета факт'!D17","v":0},0,{"$f":"K14+K15+K16","v":0},0,{"$f":"M14+M15+M16","v":0},{"$f":"'Смета факт'!E17","v":0},0,{"$f":"P14+P15+P16","v":0},0]
["1.4.1.","материалы на техническое обслуживание",{"$f":"H14+M14","v":0},{"$f":"I14+N14","v":0},{"$f":"J14+O14","v":0},0,0,{"$f":"'Смета 2016'!D13","v":0},{"$f":"'Смета факт'!D18","v":0},null,{"$f":"J14-H14","v":0},0,{"$f":"'Смета 2016'!E13","v":0},{"$f":"'Смета факт'!E18","v":0},null,{"$f":"O14-M14","v":0},0]
["1.4.2.","специальная одежда",0,0,0,{"$f":"E15-C15","v":0},0,{"$f":"'Смета 2016'!D14","v":0},{"$f":"'Смета факт'!D19","v":0},null,{"$f":"J15-H15","v":0},0,{"$f":"'Смета 2016'!E14","v":0},{"$f":"'Смета факт'!E19","v":0},null,0,0]
["1.4.3.","хозяйственный инвентарь и другие  вспомогательные материалы",0,0,0,0,0,{"$f":"'Смета 2016'!D15","v":0},{"$f":"'Смета факт'!D20","v":0},null,{"$f":"J16-H16","v":0},0,{"$f":"'Смета 2016'!E15","v":0},{"$f":"'Смета факт'!E20","v":0},null,0,0]
["2.","Расходы на энергетические ресурсы и холодную воду",{"$f":"C18+C21+C22+C23+C24+C25","v":0},{"$f":"D18+D21+D22+D23+D24+D25","v":{"$error":"#REF!"}},{"$f":"E18+E21+E22+E23+E24+E25","v":{"$error":"#REF!"}},{"$error":"#REF!"},0,0,{"$error":"#REF!"},{"$error":"#REF!"},{"$error":"#REF!"},0,{"$f":"M18+M21+M22+M23+M24+M25","v":0},{"$error":"#REF!"},{"$error":"#REF!"},{"$error":"#REF!"},0]
["2.1.","Электроэнергия, в том числе",{"$f":"H18+M18","v":0},{"$f":"I18+N18","v":{"$error":"#REF!"}},{"$f":"J18+O18","v":{"$error":"#REF!"}},{"$error":"#REF!"},0,{"$f":"H19+H20","v":0},{"$error":"#REF!"},{"$f":"#REF!","v":{"$error":"#REF!"}},{"$error":"#REF!"},0,{"$f":"M19+M20","v":0},{"$error":"#REF!"},{"$f":"#REF!","v":{"$error":"#REF!"}},{"$error":"#REF!"},0]
["2.1.1.","активная",0,{"$error":"#REF!"},0,0,0,{"$f":"'Смета 2016'!D18","v":0},{"$f":"'Смета факт'!#REF!","v":{"$error":"#REF!"}},null,0,0,{"$f":"'Смета 2016'!E18","v":0},{"$f":"'Смета факт'!#REF!","v":{"$error":"#REF!"}},null,0,0]
["2.1.2.","мощность",0,{"$error":"#REF!"},0,0,0,{"$f":"'Смета 2016'!D19","v":0},{"$f":"'Смета факт'!#REF!","v":{"$error":"#REF!"}},null,0,0,{"$f":"'Смета 2016'!E19","v":0},{"$f":"'Смета факт'!#REF!","v":{"$error":"#REF!"}},null,0,0]
["2.2.","Тепловая энергия",0,{"$error":"#REF!"},0,0,0,{"$f":"'Смета 2016'!D20","v":0},{"$f":"'Смета факт'!#REF!","v":{"$error":"#REF!"}},null,0,0,{"$f":"'Смета 2016'!E20","v":0},{"$f":"'Смета факт'!#REF!","v":{"$error":"#REF!"}},null,0,0]
["2.3.","Вода на собственные нужды",{"$f":"H22+M22","v":0},{"$f":"I22+N22","v":{"$error":"#REF!"}},{"$f":"J22+O22","v":0},0,0,{"$f":"'Смета 2016'!D21","v":0},{"$f":"'Смета факт'!#REF!","v":{"$error":"#REF!"}},null,0,0,{"$f":"'Смета 2016'!E21","v":0},{"$f":"'Смета факт'!#REF!","v":{"$error":"#REF!"}},null,0,0]
["2.4.","Водоотведение на собственные нужды",0,{"$error":"#REF!"},0,0,0,{"$f":"'Смета 2016'!D22","v":0},{"$f":"'Смета факт'!#REF!","v":{"$error":"#REF!"}},null,0,0,{"$f":"'Смета 2016'!E22","v":0},{"$f":"'Смета факт'!#REF!","v":{"$error":"#REF!"}},null,0,0]
["2.5.","Прочие энергоресурсы",0,{"$error":"#REF!"},0,0,0,{"$f":"'Смета 2016'!D23","v":0},{"$f":"'Смета факт'!#REF!","v":{"$error":"#REF!"}},null,{"$f":"J24-H24","v":0},0,{"$f":"'Смета 2016'!E23","v":0},{"$f":"'Смета факт'!#REF!","v":{"$error":"#REF!"}},null,0,0]
["2.6.","Расходы на покупку холодной воды, в том числе:",{"$f":"C26+C28","v":0},{"$f":"D26+D28","v":{"$error":"#REF!"}},{"$f":"E26+E28","v":0},0,0,0,{"$error":"#REF!"},0,{"$f":"K26+K28","v":0},0,{"$f":"M26+M28","v":0},{"$error":"#REF!"},0,0,0]
["2.6.1.","технического качества",{"$f":"H26+M26","v":0},{"$f":"I26+N26","v":{"$error":"#REF!"}},{"$f":"J26+O26","v":0},0,0,{"$f":"'Смета 2016'!D25","v":0},{"$f":"'Смета факт'!#REF!","v":{"$error":"#REF!"}},null,{"$f":"J26-H26","v":0},0,{"$f":"'Смета 2016'!E25","v":0},{"$f":"'Смета факт'!#REF!","v":{"$error":"#REF!"}},null,{"$f":"O26-M26","v":0},0]
["2.6.2.","в том числе: покупка потерь",0,{"$error":"#REF!"},0,0,0,{"$f":"'Смета 2016'!D26","v":0},{"$f":"'Смета факт'!#REF!","v":{"$error":"#REF!"}},null,0,0,{"$f":"'Смета 2016'!E26","v":0},{"$f":"'Смета факт'!#REF!","v":{"$error":"#REF!"}},null,0,0]
["2.6.3.","питьевого качества ",0,{"$error":"#REF!"},0,0,0,{"$f":"'Смета 2016'!D27","v":0},{"$f":"'Смета факт'!#REF!","v":{"$error":"#REF!"}},null,0,0,{"$f":"'Смета 2016'!E27","v":0},{"$f":"'Смета факт'!#REF!","v":{"$error":"#REF!"}},null,0,0]
["2.6.4.","в том числе: покупка потерь",0,{"$error":"#REF!"},0,0,0,{"$f":"'Смета 2016'!D28","v":0},{"$f":"'Смета факт'!#REF!","v":{"$error":"#REF!"}},null,0,0,{"$f":"'Смета 2016'!E28","v":0},{"$f":"'Смета факт'!#REF!","v":{"$error":"#REF!"}},null,0,0]
["3.","Расходы на оплат уработ и услуг, выполняемых сторонними организациями,  связанные с эксплуатацией централизованных систем либо объектов в составе таких систем, по регулируемым тарифам",{"$f":"C31+C32+C33","v":0},{"$f":"D31+D32+D33","v":{"$error":"#REF!"}},{"$f":"E31+E32+E33","v":0},0,0,0,{"$error":"#REF!"},0,{"$f":"K31+K32+K33","v":0},0,{"$f":"M31+M32+M33","v":0},{"$error":"#REF!"},0,{"$f":"P31+P32+P33","v":0},0]
["3.1.","Услуги по подъему воды",{"$f":"H31+M31","v":0},{"$f":"I31+N31","v":{"$error":"#REF!"}},{"$f":"J31+O31","v":0},0,0,{"$f":"'Смета 2016'!D30","v":0},{"$f":"'Смета факт'!#REF!","v":{"$error":"#REF!"}},null,{"$f":"J31-H31","v":0},0,{"$f":"'Смета 2016'!E30","v":0},{"$f":"'Смета факт'!#REF!","v":{"$error":"#REF!"}},null,{"$f":"O31-M31","v":0},0]
["3.2.","Услуги по очистке воды",0,{"$error":"#REF!"},0,0,0,{"$f":"'Смета 2016'!D31","v":0},{"$f":"'Смета факт'!#REF!","v":{"$error":"#REF!"}},null,0,0,{"$f":"'Смета 2016'!E31","v":0},{"$f":"'Смета факт'!#REF!","v":{"$error":"#REF!"}},null,0,0]
["3.3.","Услуги  по транспортировке воды, в том числе",{"$f":"C34+C35","v":0},{"$f":"D34+D35","v":{"$error":"#REF!"}},{"$f":"E34+E35","v":0},0,0,0,{"$error":"#REF!"},0,{"$f":"K34+K35","v":0},0,{"$f":"M34+M35","v":0},{"$error":"#REF!"},0,{"$f":"P34+P35","v":0},0]
["3.3.1.","транспортировка технической воды",{"$f":"H34+M34","v":0},{"$f":"I34+N34","v":{"$error":"#REF!"}},{"$f":"J34+O34","v":0},0,0,{"$f":"'Смета 2016'!D33","v":0},{"$f":"'Смета факт'!#REF!","v":{"$error":"#REF!"}},null,{"$f":"J34-H34","v":0},0,{"$f":"'Смета 2016'!E33","v":0},{"$f":"'Смета факт'!#REF!","v":{"$error":"#REF!"}},null,{"$f":"O34-M34","v":0},0]
["3.3.2.","транспортировка питьевой воды     ",0,{"$error":"#REF!"},0,0,0,{"$f":"'Смета 2016'!D34","v":0},{"$f":"'Смета факт'!#REF!","v":{"$error":"#REF!"}},null,0,0,{"$f":"'Смета 2016'!E34","v":0},{"$f":"'Смета факт'!#REF!","v":{"$error":"#REF!"}},null,0,0]
["4.","Расходы на оплату труда и отчисления на социальные нужды",{"$f":"C37+C40","v":0},{"$f":"D37+D40","v":{"$error":"#REF!"}},{"$f":"E37+E40","v":0},0,0,0,{"$error":"#REF!"},0,{"$f":"K37+K40","v":0},0,{"$f":"M37+M40","v":0},{"$error":"#REF!"},0,{"$f":"P37+P40","v":0},0]
["4.1.","Расходы на оплату труда основного персонала",{"$f":"H37+M37","v":0},{"$f":"I37+N37","v":{"$error":"#REF!"}},{"$f":"J37+O37","v":0},0,0,{"$f":"'Смета 2016'!D36","v":0},{"$f":"'Смета факт'!#REF!","v":{"$error":"#REF!"}},null,{"$f":"J37-H37","v":0},0,{"$f":"'Смета 2016'!E36","v":0},{"$f":"'Смета факт'!#REF!","v":{"$error":"#REF!"}},null,{"$f":"O37-M37","v":0},0]
["4.2.","Численность основного персонала, относимого на регулируемый вид деятельности, чел",0,{"$error":"#REF!"},0,0,0,{"$f":"'Смета 2016'!D37","v":0},{"$f":"'Смета факт'!#REF!","v":{"$error":"#REF!"}},null,0,0,{"$f":"'Смета 2016'!E37","v":0},{"$f":"'Смета факт'!#REF!","v":{"$error":"#REF!"}},null,0,0]
["4.2.1.","средняя заработная плата",{"$f":"IF(C38=0,,C37/C38/12)","v":0},{"$error":"#REF!"},0,0,0,{"$f":"IF(H38=0,,H37/H38/12)","v":0},{"$f":"IF(I38=0,,I37/I38/12)","v":{"$error":"#REF!"}},{"$f":"IF(J38=0,,J37/J38/12)","v":0},0,0,{"$f":"IF(M38=0,,M37/M38/12)","v":0},{"$error":"#REF!"},0,0,0]
["4.3.","Отчисления на социальные нужды от расходов на оплату труда",{"$f":"H40+M40","v":0},{"$f":"I40+N40","v":{"$error":"#REF!"}},{"$f":"J40+O40","v":0},0,0,{"$f":"'Смета 2016'!D39","v":0},{"$f":"'Смета факт'!#REF!","v":{"$error":"#REF!"}},null,0,0,{"$f":"'Смета 2016'!E39","v":0},{"$f":"'Смета факт'!#REF!","v":{"$error":"#REF!"}},null,0,0]
["4.3.1."," % расходов на уплату страховых взносов в ПФ, ФСС, ОМС",{"$f":"IF(C37=0,,C40/C37*100-C42)","v":0},{"$error":"#REF!"},0,0,0,{"$f":"IF(H37=0,,H40/H37*100-H42)","v":0},{"$f":"IF(I37=0,,I40/I37*100-I42)","v":{"$error":"#REF!"}},0,0,0,{"$f":"IF(M37=0,,M40/M37*100-M42)","v":0},{"$error":"#REF!"},0,0,0]
["4.3.2.","% платежей в фонд социального страхования от несчастных случаев",{"$f":"H42","v":0},{"$error":"#REF!"},{"$f":"J42","v":0.2},0.2,0,{"$f":"'Смета 2016'!D41","v":0},{"$f":"'Смета факт'!#REF!","v":{"$error":"#REF!"}},0.2,0.2,0,{"$f":"'Смета 2016'!E41","v":0},{"$f":"'Смета факт'!#REF!","v":{"$error":"#REF!"}},0.2,0.2,0,null,null,"м"]
["5.","Прочие производственные расходы",{"$f":"C44+C69+C75+C76+C77","v":0},{"$f":"D44+D69+D75+D76+D77","v":{"$error":"#REF!"}},{"$f":"E44+E69+E75+E76+E77","v":0},0,0,{"$f":"H44+H69+H75+H76+H77","v":0},{"$f":"I44+I69+I75+I76+I77","v":{"$error":"#REF!"}},{"$f":"J44+J69+J75+J76+J77","v":0},{"$f":"K44+K69+K75+K76+K77","v":0},0,{"$f":"M44+M69+M75+M76+M77","v":0},{"$f":"N44+N69+N75+N76+N77","v":{"$error":"#REF!"}},{"$f":"O44+O69+O75+O76+O77","v":0},{"$f":"P44+P69+P75+P76+P77","v":0},0]
["5.1.","Услуги собственных подразделений",{"$f":"C45+C51+C57+C63","v":0},{"$f":"D45+D51+D57+D63","v":{"$error":"#REF!"}},{"$f":"E45+E51+E57+E63","v":0},0,0,{"$f":"H45+H51+H57+H63","v":0},{"$f":"I45+I51+I57+I63","v":{"$error":"#REF!"}},{"$f":"J45+J51+J57+J63","v":0},{"$f":"K45+K51+K57+K63","v":0},0,{"$f":"M45+M51+M57+M63","v":0},{"$f":"N45+N51+N57+N63","v":{"$error":"#REF!"}},{"$f":"O45+O51+O57+O63","v":0},{"$f":"P45+P51+P57+P63","v":0},0]
["5.1.1.","Услуги вспомогательных производств",{"$f":"C46+C49+C50","v":0},{"$f":"D46+D49+D50","v":{"$error":"#REF!"}},{"$f":"E46+E49+E50","v":0},0,0,{"$f":"H46+H49+H50","v":0},{"$f":"I46+I49+I50","v":{"$error":"#REF!"}},{"$f":"J46+J49+J50","v":0},{"$f":"K46+K49+K50","v":0},0,{"$f":"M46+M49+M50","v":0},{"$f":"N46+N49+N50","v":{"$error":"#REF!"}},{"$f":"O46+O49+O50","v":0},{"$f":"P46+P49+P50","v":0},0]
["5.1.1.1.","Расходы на оплату труда, относимую на регулируемый вид деятельности",{"$f":"H46+M46","v":0},{"$f":"I46+N46","v":{"$error":"#REF!"}},{"$f":"J46+O46","v":0},0,0,null,{"$f":"'Смета факт'!#REF!","v":{"$error":"#REF!"}},null,{"$f":"J46-H46","v":0},0,null,{"$f":"'Смета факт'!#REF!","v":{"$error":"#REF!"}},null,{"$f":"O46-M46","v":0},0]
["5.1.1.1.1.","Численность, относимая на регулируемый вид деятельности, чел",0,{"$error":"#REF!"},0,0,0,null,{"$f":"'Смета факт'!#REF!","v":{"$error":"#REF!"}},null,0,0,null,{"$f":"'Смета факт'!#REF!","v":{"$error":"#REF!"}},null,0,0]
[null,"средняя заработная плата",{"$f":"IF(C47=0,,C46/C47/12)","v":0},{"$error":"#REF!"},0,0,0,{"$f":"IF(H47=0,,H46/H47/12)","v":0},{"$f":"IF(I47=0,,I46/I47/12)","v":{"$error":"#REF!"}},0,{"$f":"J48-H48","v":0},{"$f":"IF(H48=0,0,J48/H48)","v":0},{"$f":"IF(M47=0,,M46/M47/12)","v":0},{"$error":"#REF!"},0,{"$f":"O48-M48","v":0},{"$f":"IF(M48=0,0,O48/M48)","v":0}]
["5.1.1.2.","Отчисления на социальные нужды от расходов на оплату труда",0,{"$error":"#REF!"},0,0,{"$f":"IF(C49=0,0,E49/C49)","v":0},null,{"$f":"'Смета факт'!#REF!","v":{"$error":"#REF!"}},null,0,0,null,{"$f":"'Смета факт'!#REF!","v":{"$error":"#REF!"}},null,0,0]
["5.1.1.3.","Прочие расходы",0,{"$error":"#REF!"},0,0,0,null,{"$f":"'Смета факт'!#REF!","v":{"$error":"#REF!"}},null,0,0,null,{"$f":"'Смета факт'!#REF!","v":{"$error":"#REF!"}},null,0,0]
["5.1.2.","Транспортные расходы",{"$f":"C52+C55+C56","v":0},{"$f":"D52+D55+D56","v":{"$error":"#REF!"}},{"$f":"E52+E55+E56","v":0},0,0,0,{"$error":"#REF!"},0,{"$f":"K52+K55+K56","v":0},0,{"$f":"M52+M55+M56","v":0},{"$error":"#REF!"},0,{"$f":"P52+P55+P56","v":0},0]
["5.1.2.1.","Расходы на оплату труда, относимую на регулируемый вид деятельности",{"$f":"H52+M52","v":0},{"$f":"I52+N52","v":{"$error":"#REF!"}},{"$f":"J52+O52","v":0},0,0,{"$f":"'Смета 2016'!G36","v":0},{"$f":"'Смета факт'!#REF!","v":{"$error":"#REF!"}},null,{"$f":"J52-H52","v":0},0,null,{"$f":"'Смета факт'!#REF!","v":{"$error":"#REF!"}},null,{"$f":"O52-M52","v":0},0]
["5.1.2.1.1.","Численность, относимая на регулируемый вид деятельности, чел",0,{"$error":"#REF!"},0,0,0,{"$f":"'Смета 2016'!G37","v":0},{"$f":"'Смета факт'!#REF!","v":{"$error":"#REF!"}},null,0,0,null,{"$f":"'Смета факт'!#REF!","v":{"$error":"#REF!"}},null,0,0]
[null,"средняя заработная плата",{"$f":"IF(C53=0,,C52/C53/12)","v":0},{"$error":"#REF!"},0,0,0,{"$f":"IF(H53=0,,H52/H53/12)","v":0},{"$f":"IF(I53=0,,I52/I53/12)","v":{"$error":"#REF!"}},0,{"$f":"J54-H54","v":0},{"$f":"IF(H54=0,0,J54/H54)","v":0},{"$f":"IF(M53=0,,M52/M53/12)","v":0},{"$error":"#REF!"},0,{"$f":"O54-M54","v":0},{"$f":"IF(M54=0,0,O54/M54)","v":0}]
["5.1.2.2.","Отчисления на социальные нужды от расходов на оплату труда",0,{"$error":"#REF!"},0,0,{"$f":"IF(C55=0,0,E55/C55)","v":0},{"$f":"'Смета 2016'!G39","v":0},{"$f":"'Смета факт'!#REF!","v":{"$error":"#REF!"}},null,0,0,null,{"$f":"'Смета факт'!#REF!","v":{"$error":"#REF!"}},null,0,0]
["5.1.2.3.","Прочие расходы",0,{"$error":"#REF!"},0,0,0,{"$f":"'Смета 2016'!G114-H52-H55","v":0},{"$f":"'Смета факт'!#REF!","v":{"$error":"#REF!"}},null,0,0,null,{"$f":"'Смета факт'!#REF!","v":{"$error":"#REF!"}},null,0,0]
["5.1.3.","Цеховые расходы",{"$f":"C58+C61+C62","v":0},{"$f":"D58+D61+D62","v":{"$error":"#REF!"}},{"$f":"E58+E61+E62","v":0},0,0,0,{"$error":"#REF!"},0,{"$f":"K58+K61+K62","v":0},0,{"$f":"M58+M61+M62","v":0},{"$error":"#REF!"},0,{"$f":"P58+P61+P62","v":0},0]
["5.1.3.1.","Расходы на оплату труда, относимую на регулируемый вид деятельности",{"$f":"H58+M58","v":0},{"$f":"I58+N58","v":{"$error":"#REF!"}},{"$f":"J58+O58","v":0},0,0,null,{"$f":"'Смета факт'!#REF!","v":{"$error":"#REF!"}},null,{"$f":"J58-H58","v":0},0,null,{"$f":"'Смета факт'!#REF!","v":{"$error":"#REF!"}},null,{"$f":"O58-M58","v":0},0]
["5.1.3.1.1.","Численность, относимая на регулируемый вид деятельности, чел",0,{"$error":"#REF!"},0,0,0,null,{"$f":"'Смета факт'!#REF!","v":{"$error":"#REF!"}},null,0,0,null,{"$f":"'Смета факт'!#REF!","v":{"$error":"#REF!"}},null,0,0]
[null,"средняя заработная плата",{"$f":"IF(C59=0,,C58/C59/12)","v":0},{"$error":"#REF!"},0,{"$f":"E60-C60","v":0},{"$f":"IF(C60=0,0,E60/C60)","v":0},{"$f":"IF(H59=0,,H58/H59/12)","v":0},{"$f":"IF(I59=0,,I58/I59/12)","v":{"$error":"#REF!"}},0,{"$f":"J60-H60","v":0},{"$f":"IF(H60=0,0,J60/H60)","v":0},{"$f":"IF(M59=0,,M58/M59/12)","v":0},{"$error":"#REF!"},0,{"$f":"O60-M60","v":0},{"$f":"IF(M60=0,0,O60/M60)","v":0}]
["5.1.3.2.","Отчисления на социальные нужды от расходов на оплату труда",0,{"$error":"#REF!"},0,0,0,null,{"$f":"'Смета факт'!#REF!","v":{"$error":"#REF!"}},null,0,0,null,{"$f":"'Смета факт'!#REF!","v":{"$error":"#REF!"}},null,0,0]
["5.1.3.3.","Прочие расходы",0,{"$error":"#REF!"},0,0,0,null,{"$f":"'Смета факт'!#REF!","v":{"$error":"#REF!"}},null,0,0,null,{"$f":"'Смета факт'!#REF!","v":{"$error":"#REF!"}},null,0,0]
["5.1.4.","Общепроизводственные расходы",{"$f":"C64+C67+C68","v":0},{"$f":"D64+D67+D68","v":{"$error":"#REF!"}},{"$f":"E64+E67+E68","v":0},0,0,0,{"$error":"#REF!"},0,{"$f":"K64+K67+K68","v":0},0,{"$f":"M64+M67+M68","v":0},{"$error":"#REF!"},0,{"$f":"P64+P67+P68","v":0},0]
["5.1.4.1.","Расходы на оплату труда, относимую на регулируемый вид деятельности",{"$f":"H64+M64","v":0},{"$f":"I64+N64","v":{"$error":"#REF!"}},{"$f":"J64+O64","v":0},0,0,null,{"$f":"'Смета факт'!#REF!","v":{"$error":"#REF!"}},null,{"$f":"J64-H64","v":0},0,null,{"$f":"'Смета факт'!#REF!","v":{"$error":"#REF!"}},null,{"$f":"O64-M64","v":0},0]
["5.1.4.1.1.","Численность, относимая на регулируемый вид деятельности, чел",0,{"$error":"#REF!"},0,0,0,null,{"$f":"'Смета факт'!#REF!","v":{"$error":"#REF!"}},null,0,0,null,{"$f":"'Смета факт'!#REF!","v":{"$error":"#REF!"}},null,0,0]
[null,"средняя заработная плата",{"$f":"IF(C65=0,,C64/C65/12)","v":0},{"$error":"#REF!"},0,{"$f":"E66-C66","v":0},{"$f":"IF(C66=0,0,E66/C66)","v":0},{"$f":"IF(H65=0,,H64/H65/12)","v":0},{"$f":"IF(I65=0,,I64/I65/12)","v":{"$error":"#REF!"}},0,{"$f":"J66-H66","v":0},{"$f":"IF(H66=0,0,J66/H66)","v":0},{"$f":"IF(M65=0,,M64/M65/12)","v":0},{"$error":"#REF!"},0,{"$f":"O66-M66","v":0},{"$f":"IF(M66=0,0,O66/M66)","v":0}]
["5.1.4.2.","Отчисления на социальные нужды от расходов на оплату труда",0,{"$error":"#REF!"},0,0,0,null,{"$f":"'Смета факт'!#REF!","v":{"$error":"#REF!"}},null,0,0,null,{"$f":"'Смета факт'!#REF!","v":{"$error":"#REF!"}},null,0,0]
["5.1.4.3.","Прочие расходы",0,{"$error":"#REF!"},0,0,0,null,{"$f":"'Смета факт'!#REF!","v":{"$error":"#REF!"}},null,0,0,null,{"$f":"'Смета факт'!#REF!","v":{"$error":"#REF!"}},null,0,0]
["5.2.","Охрана труда всего, в том числе:",{"$f":"SUM(C70:C74)","v":0},{"$f":"SUM(D70:D74)","v":{"$error":"#REF!"}},{"$f":"SUM(E70:E74)","v":0},0,0,0,{"$error":"#REF!"},0,{"$f":"SUM(K70:K74)","v":0},0,{"$f":"SUM(M70:M74)","v":0},{"$error":"#REF!"},0,{"$f":"SUM(P70:P74)","v":0},0]
["5.2.1.","моющие средства",{"$f":"H70+M70","v":0},{"$f":"I70+N70","v":{"$error":"#REF!"}},{"$f":"J70+O70","v":0},0,0,{"$f":"'Смета 2016'!D50","v":0},{"$f":"'Смета факт'!#REF!","v":{"$error":"#REF!"}},null,{"$f":"J70-H70","v":0},0,{"$f":"'Смета 2016'!E50","v":0},{"$f":"'Смета факт'!#REF!","v":{"$error":"#REF!"}},null,{"$f":"O70-M70","v":0},0]
["5.2.2.","специальное питание",0,{"$error":"#REF!"},0,0,0,{"$f":"'Смета 2016'!D51","v":0},{"$f":"'Смета факт'!#REF!","v":{"$error":"#REF!"}},null,0,0,{"$f":"'Смета 2016'!E51","v":0},{"$f":"'Смета факт'!#REF!","v":{"$error":"#REF!"}},null,0,0]
["5.2.3.","страхование персонала (кроме ДМС)",0,{"$error":"#REF!"},0,0,0,{"$f":"'Смета 2016'!D52","v":0},{"$f":"'Смета факт'!#REF!","v":{"$error":"#REF!"}},null,0,0,{"$f":"'Смета 2016'!E52","v":0},{"$f":"'Смета факт'!#REF!","v":{"$error":"#REF!"}},null,0,0]
["5.2.4.","аттестация",0,{"$error":"#REF!"},0,0,0,{"$f":"'Смета 2016'!D53","v":0},{"$f":"'Смета факт'!#REF!","v":{"$error":"#REF!"}},null,0,0,{"$f":"'Смета 2016'!E53","v":0},{"$f":"'Смета факт'!#REF!","v":{"$error":"#REF!"}},null,0,0]
["5.2.5.","медицинский осмотр",0,{"$error":"#REF!"},0,{"$f":"E74-C74","v":0},0,{"$f":"'Смета 2016'!D54","v":0},{"$f":"'Смета факт'!#REF!","v":{"$error":"#REF!"}},null,0,0,{"$f":"'Смета 2016'!E54","v":0},{"$f":"'Смета факт'!#REF!","v":{"$error":"#REF!"}},null,0,0]
["5.3.","Расходы на льготный проезд",0,{"$error":"#REF!"},0,0,0,{"$f":"'Смета 2016'!D55","v":0},{"$f":"'Смета факт'!#REF!","v":{"$error":"#REF!"}},null,0,0,{"$f":"'Смета 2016'!E55","v":0},{"$f":"'Смета факт'!#REF!","v":{"$error":"#REF!"}},null,0,0]
["5.4.","Расходы на содержание зданий (вывоз ТБО, дератизация, дезинсекция)",0,{"$error":"#REF!"},0,0,0,{"$f":"'Смета 2016'!D56","v":0},{"$f":"'Смета факт'!#REF!","v":{"$error":"#REF!"}},null,0,{"$f":"IF(H76=0,0,J76/H76)","v":0},{"$f":"'Смета 2016'!E56","v":0},{"$f":"'Смета факт'!#REF!","v":{"$error":"#REF!"}},null,0,{"$f":"IF(M76=0,0,O76/M76)","v":0}]
["5.5.","Производственный контроль качества воды",{"$f":"SUM(C78:C79)","v":0},{"$f":"SUM(D78:D79)","v":{"$error":"#REF!"}},{"$f":"SUM(E78:E79)","v":0},0,0,0,{"$error":"#REF!"},0,{"$f":"SUM(K78:K79)","v":0},0,{"$f":"SUM(M78:M79)","v":0},{"$error":"#REF!"},0,{"$f":"SUM(P78:P79)","v":0},0]
["5.5.1."," контроль качества воды",{"$f":"H78+M78","v":0},{"$f":"I78+N78","v":{"$error":"#REF!"}},{"$f":"J78+O78","v":0},0,0,{"$f":"'Смета 2016'!D58","v":0},{"$f":"'Смета факт'!#REF!","v":{"$error":"#REF!"}},null,{"$f":"J78-H78","v":0},0,{"$f":"'Смета 2016'!E58","v":0},{"$f":"'Смета факт'!#REF!","v":{"$error":"#REF!"}},null,{"$f":"O78-M78","v":0},0]
["5.5.2.","затраты лаборатории без ФОТ",0,{"$error":"#REF!"},0,0,0,{"$f":"'Смета 2016'!D59","v":0},{"$f":"'Смета факт'!#REF!","v":{"$error":"#REF!"}},null,0,0,{"$f":"'Смета 2016'!E59","v":0},{"$f":"'Смета факт'!#REF!","v":{"$error":"#REF!"}},null,0,0]
["II","РЕМОНТНЫЕ РАСХОДЫ",{"$f":"C81+C93","v":0},{"$f":"D81+D93","v":{"$error":"#REF!"}},{"$f":"E81+E93","v":0},0,0,{"$f":"H81+H93","v":0},{"$error":"#REF!"},0,{"$f":"K81+K93","v":0},0,{"$f":"M81+M93","v":0},{"$f":"N81+N93","v":{"$error":"#REF!"}},0,{"$f":"P81+P93","v":0},0]
["6.1.","Текущий ремонт централизованных систем водоснабжения, объектов, входящих в состав таких систем, в том числе:",{"$f":"C82+C92","v":0},{"$f":"D82+D92","v":{"$error":"#REF!"}},{"$f":"E82+E92","v":0},0,0,{"$f":"H82+H92","v":0},{"$error":"#REF!"},0,{"$f":"K82+K92","v":0},0,{"$f":"M82+M92","v":0},{"$f":"N82+N92","v":{"$error":"#REF!"}},0,{"$f":"P82+P92","v":0},0]
["6.1.1.","затраты на ремонт хоз. способом:",{"$f":"SUM(C83:C91)","v":0},{"$f":"SUM(D83:D91)","v":{"$error":"#REF!"}},{"$f":"SUM(E83:E91)","v":0},0,0,{"$f":"H83+H86+H87+H88+H89+H90+H91","v":0},{"$error":"#REF!"},0,{"$f":"SUM(K83:K91)","v":0},0,{"$f":"M83+M86+M87+M88+M89+M90+M91","v":0},{"$f":"SUM(N83:N91)","v":{"$error":"#REF!"}},0,{"$f":"SUM(P83:P91)","v":0},0]
["6.1.1.1.","заработная плата ремонтного персонала",{"$f":"H83+M83","v":0},{"$f":"I83+N83","v":{"$error":"#REF!"}},{"$f":"J83+O83","v":0},0,0,{"$f":"'Смета 2016'!D64","v":0},{"$f":"'Смета факт'!#REF!","v":{"$error":"#REF!"}},null,{"$f":"J83-H83","v":0},0,{"$f":"'Смета 2016'!E64","v":0},{"$f":"'Смета факт'!#REF!","v":{"$error":"#REF!"}},null,{"$f":"O83-M83","v":0},0]
["6.1.1.1.1.","Численность, относимая на регулируемый вид деятельности, чел",0,{"$error":"#REF!"},0,0,0,null,{"$f":"'Смета факт'!#REF!","v":{"$error":"#REF!"}},null,0,0,null,{"$f":"'Смета факт'!#REF!","v":{"$error":"#REF!"}},null,0,0]
[null,"средняя заработная плата",{"$f":"IF(C84=0,,C83/C84/12)","v":0},{"$error":"#REF!"},0,{"$f":"E85-C85","v":0},{"$f":"IF(C85=0,0,E85/C85)","v":0},{"$f":"IF(H84=0,,H83/H84/12)","v":0},{"$f":"IF(I84=0,,I83/I84/12)","v":{"$error":"#REF!"}},0,{"$f":"J85-H85","v":0},{"$f":"IF(H85=0,0,J85/H85)","v":0},{"$f":"IF(M84=0,,M83/M84/12)","v":0},{"$error":"#REF!"},0,{"$f":"O85-M85","v":0},{"$f":"IF(M85=0,0,O85/M85)","v":0}]
["6.1.1.2.","отчисления на социальные нужды от расходов на оплату труда",0,{"$error":"#REF!"},0,0,0,{"$f":"'Смета 2016'!D65","v":0},{"$f":"'Смета факт'!#REF!","v":{"$error":"#REF!"}},null,0,0,{"$f":"'Смета 2016'!E65","v":0},{"$f":"'Смета факт'!#REF!","v":{"$error":"#REF!"}},null,0,0]
["6.1.1.3.","материалы",0,{"$error":"#REF!"},0,0,0,{"$f":"'Смета 2016'!D66","v":0},{"$f":"'Смета факт'!#REF!","v":{"$error":"#REF!"}},null,0,0,{"$f":"'Смета 2016'!E66","v":0},{"$f":"'Смета факт'!#REF!","v":{"$error":"#REF!"}},null,0,0]
["6.1.1.4.","услуги вспомогательных производств",0,{"$error":"#REF!"},0,0,0,null,{"$f":"'Смета факт'!#REF!","v":{"$error":"#REF!"}},null,0,0,null,{"$f":"'Смета факт'!#REF!","v":{"$error":"#REF!"}},null,0,0]
["6.1.1.5.","транспортные расходы",0,{"$error":"#REF!"},0,0,0,null,{"$f":"'Смета факт'!#REF!","v":{"$error":"#REF!"}},null,0,0,null,{"$f":"'Смета факт'!#REF!","v":{"$error":"#REF!"}},null,0,0]
["6.1.1.6.","цеховые расходы",0,{"$error":"#REF!"},0,0,{"$f":"IF(C90=0,0,E90/C90)","v":0},null,{"$f":"'Смета факт'!#REF!","v":{"$error":"#REF!"}},null,0,0,null,{"$f":"'Смета факт'!#REF!","v":{"$error":"#REF!"}},null,0,0]
["6.1.1.7.","общехозяйственные расходы",0,{"$error":"#REF!"},0,0,0,null,{"$f":"'Смета факт'!#REF!","v":{"$error":"#REF!"}},null,0,0,null,{"$f":"'Смета факт'!#REF!","v":{"$error":"#REF!"}},null,0,0]
["6.1.2.","затраты на ремонт подрядным способом",0,{"$error":"#REF!"},0,0,0,{"$f":"'Смета 2016'!D67","v":0},{"$f":"'Смета факт'!#REF!","v":{"$error":"#REF!"}},null,0,0,{"$f":"'Смета 2016'!E67","v":0},{"$f":"'Смета факт'!#REF!","v":{"$error":"#REF!"}},null,0,0]
["6.2.","Капитальный ремонт централизованных систем водоснабжения, объектов, входящих в состав таких систем, в том числе:",{"$f":"C94+C104","v":0},{"$f":"D94+D104","v":{"$error":"#REF!"}},{"$f":"E94+E104","v":0},0,0,{"$f":"H94+H104","v":0},{"$f":"I94+I104","v":{"$error":"#REF!"}},{"$f":"J94+J104","v":0},{"$f":"K94+K104","v":0},0,{"$f":"M94+M104","v":0},{"$f":"N94+N104","v":{"$error":"#REF!"}},{"$f":"O94+O104","v":0},{"$f":"P94+P104","v":0},0]
["6.2.1."," затраты на ремонт хоз.способом:",{"$f":"SUM(C95:C103)","v":0},{"$f":"SUM(D95:D103)","v":{"$error":"#REF!"}},{"$f":"SUM(E95:E103)","v":0},0,0,{"$f":"H95+H98+H99+H100+H101+H102+H103","v":0},{"$f":"SUM(I95:I103)","v":{"$error":"#REF!"}},{"$f":"SUM(J95:J103)","v":0},{"$f":"SUM(K95:K103)","v":0},0,{"$f":"M95+M98+M99+M100+M101+M102+M103","v":0},{"$f":"SUM(N95:N103)","v":{"$error":"#REF!"}},{"$f":"SUM(O95:O103)","v":0},{"$f":"SUM(P95:P103)","v":0},0]
["6.2.1.1.","заработная плата ремонтного персонала",{"$f":"H95+M95","v":0},{"$f":"I95+N95","v":{"$error":"#REF!"}},{"$f":"J95+O95","v":0},0,0,{"$f":"IF('Смета 2016'!D70=\"х\",0,'Смета 2016'!D70)","v":0},{"$f":"'Смета факт'!#REF!","v":{"$error":"#REF!"}},null,{"$f":"J95-H95","v":0},0,{"$f":"IF('Смета 2016'!E70=\"х\",0,'Смета 2016'!E70)","v":0},{"$f":"'Смета факт'!#REF!","v":{"$error":"#REF!"}},null,{"$f":"O95-M95","v":0},0]
[null,"Численность, относимая на регулируемый вид деятельности, чел",0,{"$error":"#REF!"},0,0,0,null,{"$f":"'Смета факт'!#REF!","v":{"$error":"#REF!"}},null,0,0,null,{"$f":"'Смета факт'!#REF!","v":{"$error":"#REF!"}},null,0,0]
[null,"средняя заработная плата",{"$f":"IF(C96=0,,C95/C96/12)","v":0},{"$error":"#REF!"},0,{"$f":"E97-C97","v":0},{"$f":"IF(C97=0,0,E97/C97)","v":0},{"$f":"IF(H96=0,,H95/H96/12)","v":0},{"$f":"IF(I96=0,,I95/I96/12)","v":{"$error":"#REF!"}},0,{"$f":"J97-H97","v":0},{"$f":"IF(H97=0,0,J97/H97)","v":0},{"$f":"IF(M96=0,,M95/M96/12)","v":0},{"$error":"#REF!"},0,{"$f":"O97-M97","v":0},{"$f":"IF(M97=0,0,O97/M97)","v":0}]
["6.2.1.2.","отчисления на социальные нужды от расходов на оплату труда",0,{"$error":"#REF!"},0,0,0,{"$f":"'Смета 2016'!D71","v":0},{"$f":"'Смета факт'!#REF!","v":{"$error":"#REF!"}},null,0,0,{"$f":"'Смета 2016'!E71","v":0},{"$f":"'Смета факт'!#REF!","v":{"$error":"#REF!"}},null,0,0]
["6.2.1.3.","материалы",0,{"$error":"#REF!"},0,0,0,{"$f":"'Смета 2016'!D72","v":0},{"$f":"'Смета факт'!#REF!","v":{"$error":"#REF!"}},null,0,0,{"$f":"'Смета 2016'!E72","v":0},{"$f":"'Смета факт'!#REF!","v":{"$error":"#REF!"}},null,0,0]
["6.2.1.4.","услуги вспомогательных производств",0,{"$error":"#REF!"},0,0,0,null,{"$f":"'Смета факт'!#REF!","v":{"$error":"#REF!"}},null,0,0,null,{"$f":"'Смета факт'!#REF!","v":{"$error":"#REF!"}},null,0,0]
["6.2.1.5.","транспортные расходы",0,{"$error":"#REF!"},0,0,0,null,{"$f":"'Смета факт'!#REF!","v":{"$error":"#REF!"}},null,0,0,null,{"$f":"'Смета факт'!#REF!","v":{"$error":"#REF!"}},null,0,0]
["6.2.1.6.","цеховые расходы",0,{"$error":"#REF!"},0,0,0,null,{"$f":"'Смета факт'!#REF!","v":{"$error":"#REF!"}},null,0,0,null,{"$f":"'Смета факт'!#REF!","v":{"$error":"#REF!"}},null,0,0]
["6.2.1.7.","общехозяйственные расходы",0,{"$error":"#REF!"},0,0,0,null,{"$f":"'Смета факт'!#REF!","v":{"$error":"#REF!"}},null,0,0,null,{"$f":"'Смета факт'!#REF!","v":{"$error":"#REF!"}},null,0,0]
["6.2.2.","затраты на ремонт подрядным способом",0,{"$error":"#REF!"},0,0,0,{"$f":"'Смета 2016'!D73","v":0},{"$f":"'Смета факт'!#REF!","v":{"$error":"#REF!"}},null,0,0,{"$f":"'Смета 2016'!E73","v":0},{"$f":"'Смета факт'!#REF!","v":{"$error":"#REF!"}},null,0,0]
["III","ПРОЧИЕ РАСХОДЫ",{"$f":"SUM(C106:C112)","v":0},{"$f":"SUM(D106:D112)","v":{"$error":"#REF!"}},{"$f":"SUM(E106:E112)","v":0},0,0,{"$f":"SUM(H106:H112)","v":0},{"$f":"SUM(I106:I112)","v":{"$error":"#REF!"}},{"$f":"SUM(J106:J112)","v":0},{"$f":"SUM(K106:K112)","v":0},0,{"$f":"SUM(M106:M112)","v":0},{"$f":"SUM(N106:N112)","v":{"$error":"#REF!"}},{"$f":"SUM(O106:O112)","v":0},{"$f":"SUM(P106:P112)","v":0},0]
["7.1.","Расходы на услуги связи",{"$f":"H106+M106","v":0},{"$f":"I106+N106","v":{"$error":"#REF!"}},{"$f":"J106+O106","v":0},0,0,null,{"$f":"'Смета факт'!#REF!","v":{"$error":"#REF!"}},null,{"$f":"J106-H106","v":0},0,null,{"$f":"'Смета факт'!#REF!","v":{"$error":"#REF!"}},null,{"$f":"O106-M106","v":0},0]
["7.2.","Вневедомственная охрана объектов и территории",0,{"$error":"#REF!"},0,0,0,null,{"$f":"'Смета факт'!#REF!","v":{"$error":"#REF!"}},null,0,0,null,{"$f":"'Смета факт'!#REF!","v":{"$error":"#REF!"}},null,0,0]
["7.3.","Расходы на обучение персонала",0,{"$error":"#REF!"},0,0,0,{"$f":"'Смета 2016'!D78","v":0},{"$f":"'Смета факт'!#REF!","v":{"$error":"#REF!"}},null,0,0,{"$f":"'Смета 2016'!E78","v":0},{"$f":"'Смета факт'!#REF!","v":{"$error":"#REF!"}},null,0,0]
["7.4.","Расходы на служебные командировки",0,{"$error":"#REF!"},0,0,0,{"$f":"'Смета 2016'!D77","v":0},{"$f":"'Смета факт'!#REF!","v":{"$error":"#REF!"}},null,0,0,{"$f":"'Смета 2016'!E77","v":0},{"$f":"'Смета факт'!#REF!","v":{"$error":"#REF!"}},null,0,0]
["7.6.","Расходы на страхование производственных объектов",0,{"$error":"#REF!"},0,0,0,{"$f":"'Смета 2016'!D79","v":0},{"$f":"'Смета факт'!#REF!","v":{"$error":"#REF!"}},null,0,0,{"$f":"'Смета 2016'!E79","v":0},{"$f":"'Смета факт'!#REF!","v":{"$error":"#REF!"}},null,0,0]
["7.7.","Лицензирование",0,{"$error":"#REF!"},0,0,0,null,{"$f":"'Смета факт'!#REF!","v":{"$error":"#REF!"}},null,0,0,null,{"$f":"'Смета факт'!#REF!","v":{"$error":"#REF!"}},null,0,0]
["7.8.","Прочие расходы",{"$f":"SUM(C113:C132)","v":0},{"$f":"SUM(D113:D132)","v":{"$error":"#REF!"}},{"$f":"SUM(E113:E132)","v":0},0,0,0,{"$error":"#REF!"},0,{"$f":"SUM(K113:K132)","v":0},0,{"$f":"SUM(M113:M132)","v":0},{"$error":"#REF!"},0,{"$f":"SUM(P113:P132)","v":0},0]
[null,{"$f":"'Смета факт'!#REF!","v":{"$error":"#REF!"}},{"$f":"H113+M113","v":0},{"$f":"I113+N113","v":{"$error":"#REF!"}},{"$f":"J113+O113","v":0},0,0,null,{"$f":"'Смета факт'!#REF!","v":{"$error":"#REF!"}},null,{"$f":"J113-H113","v":0},0,null,{"$f":"'Смета факт'!#REF!","v":{"$error":"#REF!"}},null,{"$f":"O113-M113","v":0},0]
[null,{"$f":"'Смета факт'!#REF!","v":{"$error":"#REF!"}},0,{"$error":"#REF!"},0,0,0,null,{"$f":"'Смета факт'!#REF!","v":{"$error":"#REF!"}},null,0,0,null,{"$f":"'Смета факт'!#REF!","v":{"$error":"#REF!"}},null,0,0]
[null,{"$f":"'Смета факт'!#REF!","v":{"$error":"#REF!"}},0,{"$error":"#REF!"},0,0,0,null,{"$f":"'Смета факт'!#REF!","v":{"$error":"#REF!"}},null,0,0,null,{"$f":"'Смета факт'!#REF!","v":{"$error":"#REF!"}},null,0,0]
[null,{"$f":"'Смета факт'!#REF!","v":{"$error":"#REF!"}},0,{"$error":"#REF!"},0,0,0,null,{"$f":"'Смета факт'!#REF!","v":{"$error":"#REF!"}},null,0,0,null,{"$f":"'Смета факт'!#REF!","v":{"$error":"#REF!"}},null,0,0]
[null,{"$f":"'Смета факт'!#REF!","v":{"$error":"#REF!"}},0,{"$error":"#REF!"},0,0,0,null,{"$f":"'Смета факт'!#REF!","v":{"$error":"#REF!"}},null,0,0,null,{"$f":"'Смета факт'!#REF!","v":{"$error":"#REF!"}},null,0,0]
[null,{"$f":"'Смета факт'!#REF!","v":{"$error":"#REF!"}},0,{"$error":"#REF!"},0,0,0,null,{"$f":"'Смета факт'!#REF!","v":{"$error":"#REF!"}},null,0,0,null,{"$f":"'Смета факт'!#REF!","v":{"$error":"#REF!"}},null,0,0]
[null,{"$f":"'Смета факт'!#REF!","v":{"$error":"#REF!"}},0,{"$error":"#REF!"},0,0,0,null,{"$f":"'Смета факт'!#REF!","v":{"$error":"#REF!"}},null,0,0,null,{"$f":"'Смета факт'!#REF!","v":{"$error":"#REF!"}},null,0,0]
[null,{"$f":"'Смета факт'!#REF!","v":{"$error":"#REF!"}},0,{"$error":"#REF!"},0,0,0,null,{"$f":"'Смета факт'!#REF!","v":{"$error":"#REF!"}},null,0,0,null,{"$f":"'Смета факт'!#REF!","v":{"$error":"#REF!"}},null,0,0]
[null,{"$f":"'Смета факт'!#REF!","v":{"$error":"#REF!"}},0,{"$error":"#REF!"},0,0,0,null,{"$f":"'Смета факт'!#REF!","v":{"$error":"#REF!"}},null,0,0,null,{"$f":"'Смета факт'!#REF!","v":{"$error":"#REF!"}},null,0,0]
[null,{"$f":"'Смета факт'!#REF!","v":{"$error":"#REF!"}},0,{"$error":"#REF!"},0,0,0,null,{"$f":"'Смета факт'!#REF!","v":{"$error":"#REF!"}},null,0,0,null,{"$f":"'Смета факт'!#REF!","v":{"$error":"#REF!"}},null,0,0]
[null,{"$f":"'Смета факт'!#REF!","v":{"$error":"#REF!"}},0,{"$error":"#REF!"},0,0,{"$f":"IF(C123=0,0,E123/C123)","v":0},null,{"$f":"'Смета факт'!#REF!","v":{"$error":"#REF!"}},null,0,0,null,{"$f":"'Смета факт'!#REF!","v":{"$error":"#REF!"}},null,0,0]
[null,{"$f":"'Смета факт'!#REF!","v":{"$error":"#REF!"}},0,{"$error":"#REF!"},0,0,0,null,{"$f":"'Смета факт'!#REF!","v":{"$error":"#REF!"}},null,0,0,null,{"$f":"'Смета факт'!#REF!","v":{"$error":"#REF!"}},null,0,0]
[null,{"$f":"'Смета факт'!#REF!","v":{"$error":"#REF!"}},0,{"$error":"#REF!"},0,0,0,null,{"$f":"'Смета факт'!#REF!","v":{"$error":"#REF!"}},null,0,0,null,{"$f":"'Смета факт'!#REF!","v":{"$error":"#REF!"}},null,0,0]
[null,{"$f":"'Смета факт'!#REF!","v":{"$error":"#REF!"}},0,{"$error":"#REF!"},0,0,0,null,{"$f":"'Смета факт'!#REF!","v":{"$error":"#REF!"}},null,0,0,null,{"$f":"'Смета факт'!#REF!","v":{"$error":"#REF!"}},null,0,0]
[null,{"$f":"'Смета факт'!#REF!","v":{"$error":"#REF!"}},0,{"$error":"#REF!"},0,0,0,null,{"$f":"'Смета факт'!#REF!","v":{"$error":"#REF!"}},null,0,0,null,{"$f":"'Смета факт'!#REF!","v":{"$error":"#REF!"}},null,0,0]
[null,{"$f":"'Смета факт'!#REF!","v":{"$error":"#REF!"}},0,{"$error":"#REF!"},0,0,0,null,{"$f":"'Смета факт'!#REF!","v":{"$error":"#REF!"}},null,0,0,null,{"$f":"'Смета факт'!#REF!","v":{"$error":"#REF!"}},null,0,0]
[null,{"$f":"'Смета факт'!#REF!","v":{"$error":"#REF!"}},0,{"$error":"#REF!"},0,0,0,null,{"$f":"'Смета факт'!#REF!","v":{"$error":"#REF!"}},null,0,0,null,{"$f":"'Смета факт'!#REF!","v":{"$error":"#REF!"}},null,0,0]
[null,{"$f":"'Смета факт'!#REF!","v":{"$error":"#REF!"}},0,{"$error":"#REF!"},0,0,0,null,{"$f":"'Смета факт'!#REF!","v":{"$error":"#REF!"}},null,0,0,null,{"$f":"'Смета факт'!#REF!","v":{"$error":"#REF!"}},null,0,0]
[null,{"$f":"'Смета факт'!#REF!","v":{"$error":"#REF!"}},0,{"$error":"#REF!"},0,0,0,null,{"$f":"'Смета факт'!#REF!","v":{"$error":"#REF!"}},null,0,0,null,{"$f":"'Смета факт'!#REF!","v":{"$error":"#REF!"}},null,0,0]
[null,"прочие",0,{"$error":"#REF!"},0,0,0,{"$f":"'Смета 2016'!D76+'Смета 2016'!D80","v":0},{"$f":"'Смета факт'!#REF!","v":{"$error":"#REF!"}},null,0,0,{"$f":"'Смета 2016'!E76+'Смета 2016'!E80","v":0},{"$f":"'Смета факт'!#REF!","v":{"$error":"#REF!"}},null,0,0]
["IV","ОБЩЕХОЗЯЙСТВЕННЫЕ РАСХОДЫ",{"$f":"C134+C137+C138","v":0},{"$f":"D134+D137+D138","v":{"$error":"#REF!"}},{"$f":"E134+E137+E138","v":0},0,0,0,{"$error":"#REF!"},0,{"$f":"K134+K137+K138","v":0},0,{"$f":"M134+M137+M138","v":0},{"$error":"#REF!"},{"$f":"O134+O137+O138","v":0},{"$f":"O133-M133","v":0},0]
["8.1.","Расходы на оплату труда, относимую на регулируемый вид деятельности",{"$f":"H134+M134","v":0},{"$f":"I134+N134","v":{"$error":"#REF!"}},{"$f":"J134+O134","v":0},0,0,{"$f":"'Смета 2016'!F36","v":0},{"$f":"'Смета факт'!#REF!","v":{"$error":"#REF!"}},null,{"$f":"J134-H134","v":0},0,null,{"$f":"'Смета факт'!#REF!","v":{"$error":"#REF!"}},null,0,0]
["8.1.1.","Численность, относимая на регулируемый вид деятельности, чел",0,{"$error":"#REF!"},0,0,0,{"$f":"'Смета 2016'!F37","v":0},{"$f":"'Смета факт'!#REF!","v":{"$error":"#REF!"}},null,0,0,null,{"$f":"'Смета факт'!#REF!","v":{"$error":"#REF!"}},null,0,0]
[null,"средняя заработная плата",{"$f":"IF(C135=0,,C134/C135/12)","v":0},{"$error":"#REF!"},0,0,0,{"$f":"IF(H135=0,,H134/H135/12)","v":0},{"$f":"IF(I135=0,,I134/I135/12)","v":{"$error":"#REF!"}},0,{"$f":"J136-H136","v":0},{"$f":"IF(H136=0,0,J136/H136)","v":0},{"$f":"IF(M135=0,,M134/M135/12)","v":0},{"$error":"#REF!"},0,0,0]
["8.2.","Отчисления на социальные нужды от расходов на оплату труда",0,{"$error":"#REF!"},0,0,{"$f":"IF(C137=0,0,E137/C137)","v":0},{"$f":"'Смета 2016'!F39","v":0},{"$f":"'Смета факт'!#REF!","v":{"$error":"#REF!"}},null,0,0,null,{"$f":"'Смета факт'!#REF!","v":{"$error":"#REF!"}},null,0,0]
["8.3.","Прочие расходы",{"$f":"SUM(C139:C153)","v":0},{"$f":"SUM(D139:D153)","v":{"$error":"#REF!"}},{"$f":"SUM(E139:E153)","v":0},0,0,0,{"$error":"#REF!"},0,{"$f":"SUM(K139:K153)","v":0},0,null,{"$f":"SUM(N139:N153)","v":{"$error":"#REF!"}},0,0,0]
[null,{"$f":"'Смета факт'!#REF!","v":{"$error":"#REF!"}},{"$f":"H139+M139","v":0},{"$f":"I139+N139","v":{"$error":"#REF!"}},{"$f":"J139+O139","v":0},0,0,null,{"$f":"'Смета факт'!#REF!","v":{"$error":"#REF!"}},null,{"$f":"J139-H139","v":0},0,null,{"$f":"'Смета факт'!#REF!","v":{"$error":"#REF!"}},null,{"$f":"O139-M139","v":0},0]
[null,{"$f":"'Смета факт'!#REF!","v":{"$error":"#REF!"}},0,{"$error":"#REF!"},0,{"$f":"E140-C140","v":0},0,null,{"$f":"'Смета факт'!#REF!","v":{"$error":"#REF!"}},null,0,0,null,{"$f":"'Смета факт'!#REF!","v":{"$error":"#REF!"}},null,0,0]
[null,{"$f":"'Смета факт'!#REF!","v":{"$error":"#REF!"}},0,{"$error":"#REF!"},0,0,0,null,{"$f":"'Смета факт'!#REF!","v":{"$error":"#REF!"}},null,0,0,null,{"$f":"'Смета факт'!#REF!","v":{"$error":"#REF!"}},null,0,0]
[null,{"$f":"'Смета факт'!#REF!","v":{"$error":"#REF!"}},0,{"$error":"#REF!"},0,0,0,null,{"$f":"'Смета факт'!#REF!","v":{"$error":"#REF!"}},null,0,0,null,{"$f":"'Смета факт'!#REF!","v":{"$error":"#REF!"}},null,0,0]
[null,{"$f":"'Смета факт'!#REF!","v":{"$error":"#REF!"}},0,{"$error":"#REF!"},0,0,0,null,{"$f":"'Смета факт'!#REF!","v":{"$error":"#REF!"}},null,0,{"$f":"IF(H143=0,0,J143/H143)","v":0},null,{"$f":"'Смета факт'!#REF!","v":{"$error":"#REF!"}},null,0,{"$f":"IF(M143=0,0,O143/M143)","v":0}]
[null,{"$f":"'Смета факт'!#REF!","v":{"$error":"#REF!"}},0,{"$error":"#REF!"},0,0,0,null,{"$f":"'Смета факт'!#REF!","v":{"$error":"#REF!"}},null,0,0,null,{"$f":"'Смета факт'!#REF!","v":{"$error":"#REF!"}},null,0,0]
[null,{"$f":"'Смета факт'!#REF!","v":{"$error":"#REF!"}},0,{"$error":"#REF!"},0,0,0,null,{"$f":"'Смета факт'!#REF!","v":{"$error":"#REF!"}},null,0,0,null,{"$f":"'Смета факт'!#REF!","v":{"$error":"#REF!"}},null,0,0]
[null,{"$f":"'Смета факт'!#REF!","v":{"$error":"#REF!"}},0,{"$error":"#REF!"},0,0,0,null,{"$f":"'Смета факт'!#REF!","v":{"$error":"#REF!"}},null,0,0,null,{"$f":"'Смета факт'!#REF!","v":{"$error":"#REF!"}},null,0,0]
[null,{"$f":"'Смета факт'!#REF!","v":{"$error":"#REF!"}},0,{"$error":"#REF!"},0,0,0,null,{"$f":"'Смета факт'!#REF!","v":{"$error":"#REF!"}},null,0,0,null,{"$f":"'Смета факт'!#REF!","v":{"$error":"#REF!"}},null,0,0]
[null,{"$f":"'Смета факт'!#REF!","v":{"$error":"#REF!"}},0,{"$error":"#REF!"},0,0,0,null,{"$f":"'Смета факт'!#REF!","v":{"$error":"#REF!"}},null,0,0,null,{"$f":"'Смета факт'!#REF!","v":{"$error":"#REF!"}},null,0,0]
[null,{"$f":"'Смета факт'!#REF!","v":{"$error":"#REF!"}},0,{"$error":"#REF!"},0,0,0,null,{"$f":"'Смета факт'!#REF!","v":{"$error":"#REF!"}},null,0,0,null,{"$f":"'Смета факт'!#REF!","v":{"$error":"#REF!"}},null,0,0]
[null,{"$f":"'Смета факт'!#REF!","v":{"$error":"#REF!"}},0,{"$error":"#REF!"},0,0,0,null,{"$f":"'Смета факт'!#REF!","v":{"$error":"#REF!"}},null,0,0,null,{"$f":"'Смета факт'!#REF!","v":{"$error":"#REF!"}},null,0,0]
[null,{"$f":"'Смета факт'!#REF!","v":{"$error":"#REF!"}},0,{"$error":"#REF!"},0,0,0,null,{"$f":"'Смета факт'!#REF!","v":{"$error":"#REF!"}},null,0,0,null,{"$f":"'Смета факт'!#REF!","v":{"$error":"#REF!"}},null,0,0]
[null,{"$f":"'Смета факт'!#REF!","v":{"$error":"#REF!"}},0,{"$error":"#REF!"},0,0,0,null,{"$f":"'Смета факт'!#REF!","v":{"$error":"#REF!"}},null,0,0,null,{"$f":"'Смета факт'!#REF!","v":{"$error":"#REF!"}},null,0,0]
[null,"прочие",0,{"$error":"#REF!"},0,0,0,{"$f":"'Смета 2016'!F114-H134-H137-SUM(H139:H152)","v":0},{"$f":"'Смета факт'!#REF!","v":{"$error":"#REF!"}},null,0,0,null,{"$f":"'Смета факт'!#REF!","v":{"$error":"#REF!"}},null,0,0]
["IV","СБЫТОВЫЕ РАСХОДЫ",{"$f":"SUM(C155:C156)","v":0},{"$f":"SUM(D155:D156)","v":{"$error":"#REF!"}},{"$f":"SUM(E155:E156)","v":0},0,0,0,{"$error":"#REF!"},0,{"$f":"SUM(K155:K156)","v":0},0,{"$f":"SUM(M155:M156)","v":0},{"$error":"#REF!"},0,{"$f":"SUM(P155:P156)","v":0},0]
["9.1.","Расходы по сомнительным долгам (для ГО)",{"$f":"H155+M155","v":0},{"$f":"I155+N155","v":{"$error":"#REF!"}},{"$f":"J155+O155","v":0},0,0,{"$f":"'Смета 2016'!D82","v":0},{"$f":"'Смета факт'!#REF!","v":{"$error":"#REF!"}},null,{"$f":"J155-H155","v":0},0,{"$f":"'Смета 2016'!E82","v":0},{"$f":"'Смета факт'!#REF!","v":{"$error":"#REF!"}},null,{"$f":"O155-M155","v":0},0]
["9.2.","Прочие сбытовые расходы",0,{"$error":"#REF!"},0,0,0,{"$f":"'Смета 2016'!D81-'Смета 2016'!D82","v":0},{"$f":"'Смета факт'!#REF!","v":{"$error":"#REF!"}},null,0,0,{"$f":"'Смета 2016'!E81-'Смета 2016'!E82","v":0},{"$f":"'Смета факт'!#REF!","v":{"$error":"#REF!"}},null,0,0]
["V","РАСХОДЫ НА АМОРТИЗАЦИЮ ОСНОВНЫХ СРЕДСТВ И НЕМАТЕРИАЛЬНЫХ АКТИВОВ",{"$f":"SUM(C158:C159)","v":0},{"$f":"SUM(D158:D159)","v":{"$error":"#REF!"}},{"$f":"SUM(E158:E159)","v":0},0,0,0,{"$error":"#REF!"},0,{"$f":"SUM(K158:K159)","v":0},0,{"$f":"SUM(M158:M159)","v":0},{"$error":"#REF!"},0,{"$f":"SUM(P158:P159)","v":0},0]
["10.1.","Амортизация основных средств,относимых к объектам централизованной системы водоснабжения",{"$f":"H158+M158","v":0},{"$f":"I158+N158","v":{"$error":"#REF!"}},{"$f":"J158+O158","v":0},0,0,{"$f":"'Смета 2016'!D84","v":0},{"$f":"'Смета факт'!#REF!","v":{"$error":"#REF!"}},null,{"$f":"J158-H158","v":0},0,{"$f":"'Смета 2016'!E84","v":0},{"$f":"'Смета факт'!#REF!","v":{"$error":"#REF!"}},null,{"$f":"O158-M158","v":0},0]
["10.2.","Амортизация нематериальных активов,относимых к объектам централизованной системы водоснабжения",0,{"$error":"#REF!"},0,0,0,{"$f":"'Смета 2016'!D83-'Смета 2016'!D84","v":0},{"$f":"'Смета факт'!#REF!","v":{"$error":"#REF!"}},null,0,0,{"$f":"'Смета 2016'!E83-'Смета 2016'!E84","v":0},{"$f":"'Смета факт'!#REF!","v":{"$error":"#REF!"}},null,0,0]
["VI","РАСХОДЫ НА АРЕНДНУЮ ПЛАТУ, ЛИЗИНГОВЫЕ ПЛАТЕЖИ, КОНЦЕССИОННУЮ ПЛАТУ",{"$f":"SUM(C161:C164)","v":0},{"$f":"SUM(D161:D164)","v":{"$error":"#REF!"}},0,0,0,0,{"$error":"#REF!"},0,{"$f":"SUM(K161:K164)","v":0},0,{"$f":"SUM(M161:M164)","v":0},{"$error":"#REF!"},{"$f":"SUM(O161:O164)","v":0},0,0]
["11.1.","лизинговые платежи",{"$f":"H161+M161","v":0},{"$f":"I161+N161","v":{"$error":"#REF!"}},{"$f":"J161+O161","v":0},0,0,{"$f":"'Смета 2016'!D87","v":0},{"$f":"'Смета факт'!#REF!","v":{"$error":"#REF!"}},null,{"$f":"J161-H161","v":0},0,{"$f":"'Смета 2016'!E87","v":0},{"$f":"'Смета факт'!#REF!","v":{"$error":"#REF!"}},null,{"$f":"O161-M161","v":0},0]
["11.2.","концессионная плата",0,{"$error":"#REF!"},0,0,0,{"$f":"'Смета 2016'!D88","v":0},{"$f":"'Смета факт'!#REF!","v":{"$error":"#REF!"}},null,0,0,{"$f":"'Смета 2016'!E88","v":0},{"$f":"'Смета факт'!#REF!","v":{"$error":"#REF!"}},null,0,0]
["11.3.","аренда имущества",0,{"$error":"#REF!"},0,0,0,{"$f":"'Смета 2016'!D89","v":0},{"$f":"'Смета факт'!#REF!","v":{"$error":"#REF!"}},null,0,0,{"$f":"'Смета 2016'!E89","v":0},{"$f":"'Смета факт'!#REF!","v":{"$error":"#REF!"}},null,0,0]
["11.4.","аренда земельных участков",0,{"$error":"#REF!"},0,0,0,{"$f":"'Смета 2016'!D90","v":0},{"$f":"'Смета факт'!#REF!","v":{"$error":"#REF!"}},null,0,0,{"$f":"'Смета 2016'!E90","v":0},{"$f":"'Смета факт'!#REF!","v":{"$error":"#REF!"}},null,0,0]
["VII","РАСХОДЫ, СВЯЗАННЫЕ С ОПЛАТОЙ НАЛОГОВ И СБОРОВ",{"$f":"SUM(C166:C171)","v":0},{"$f":"SUM(D166:D171)","v":{"$error":"#REF!"}},{"$f":"SUM(E166:E171)","v":0},0,0,0,{"$error":"#REF!"},0,{"$f":"SUM(K166:K171)","v":0},0,{"$f":"SUM(M166:M171)","v":0},{"$error":"#REF!"},0,{"$f":"SUM(P166:P171)","v":0},0]
["11.5.","водный налог",{"$f":"H166+M166","v":0},{"$f":"I166+N166","v":{"$error":"#REF!"}},{"$f":"J166+O166","v":0},0,0,{"$f":"'Смета 2016'!D92","v":0},{"$f":"'Смета факт'!#REF!","v":{"$error":"#REF!"}},null,{"$f":"J166-H166","v":0},0,{"$f":"'Смета 2016'!E92","v":0},{"$f":"'Смета факт'!#REF!","v":{"$error":"#REF!"}},null,{"$f":"O166-M166","v":0},0]
["11.6.","налог на землю",0,{"$error":"#REF!"},0,0,0,{"$f":"'Смета 2016'!D93","v":0},{"$f":"'Смета факт'!#REF!","v":{"$error":"#REF!"}},null,0,0,{"$f":"'Смета 2016'!E93","v":0},{"$f":"'Смета факт'!#REF!","v":{"$error":"#REF!"}},null,0,0]
["11.7.","налог на имущество",0,{"$error":"#REF!"},0,0,0,{"$f":"'Смета 2016'!D94","v":0},{"$f":"'Смета факт'!#REF!","v":{"$error":"#REF!"}},null,0,0,{"$f":"'Смета 2016'!E94","v":0},{"$f":"'Смета факт'!#REF!","v":{"$error":"#REF!"}},null,0,0]
["11.8.","плата за загрязнение окружающей среды",0,{"$error":"#REF!"},0,0,{"$f":"IF(C169=0,0,E169/C169)","v":0},{"$f":"'Смета 2016'!D95","v":0},{"$f":"'Смета факт'!#REF!","v":{"$error":"#REF!"}},null,0,0,{"$f":"'Смета 2016'!E95","v":0},{"$f":"'Смета факт'!#REF!","v":{"$error":"#REF!"}},null,0,0]
["11.9.","транспортный налог",0,{"$error":"#REF!"},0,0,0,{"$f":"'Смета 2016'!D96","v":0},{"$f":"'Смета факт'!#REF!","v":{"$error":"#REF!"}},null,0,0,{"$f":"'Смета 2016'!E96","v":0},{"$f":"'Смета факт'!#REF!","v":{"$error":"#REF!"}},null,0,0]
["11.10.","прочие налоги и сборы",0,{"$error":"#REF!"},0,0,0,{"$f":"'Смета 2016'!D97","v":0},{"$f":"'Смета факт'!#REF!","v":{"$error":"#REF!"}},null,0,0,{"$f":"'Смета 2016'!E97","v":0},{"$f":"'Смета факт'!#REF!","v":{"$error":"#REF!"}},null,0,0]
["VIII","ВСЕГО СЕБЕСТОИМОСТЬ",{"$f":"C174+C175+C176+C177+C178+C179","v":0},{"$f":"D174+D175+D176+D177+D178+D179","v":{"$error":"#REF!"}},{"$error":"#REF!"},{"$f":"E172-C172","v":{"$error":"#REF!"}},{"$f":"IF(C172=0,0,E172/C172)","v":0},{"$f":"SUM(H8,H80,H105,H133,H154,H157,H160,H165)","v":0},{"$f":"SUM(I8,I80,I105,I133,I154,I157,I160,I165)","v":{"$error":"#REF!"}},{"$error":"#REF!"},{"$f":"J172-H172","v":{"$error":"#REF!"}},{"$f":"IF(H172=0,0,J172/H172)","v":0},{"$f":"SUM(M8,M80,M105,M133,M154,M157,M160,M165)","v":0},{"$f":"SUM(N8,N80,N105,N133,N154,N157,N160,N165)","v":{"$error":"#REF!"}},{"$error":"#REF!"},{"$f":"O172-M172","v":{"$error":"#REF!"}},{"$f":"IF(M172=0,0,O172/M172)","v":0}]
["IХ","Финансовый результат от реализации",{"$f":"C175+C176+C177+C178+C179+C180","v":0},{"$error":"#REF!"},0,0,0,{"$f":"'Смета 2016'!C99","v":0},{"$f":"'Смета факт'!#REF!","v":{"$error":"#REF!"}},{"$f":"J175+J176+J177+J178+J179+J180","v":0},0,0,0,{"$f":"'Смета факт'!#REF!","v":{"$error":"#REF!"}},{"$f":"O175+O176+O177+O178+O179+O180","v":0},0,0]
["12.1.","то же в %",{"$f":"IF(SUM(C8,C80,C105,C133,C154,C157,C160,C165,C179:C180)=0,0,SUM(C175:C178)/SUM(C8,C80,C105,C133,C154,C157,C160,C165,C179:C180)*100)","v":0},{"$f":"IF(SUM(D8,D80,D105,D133,D154,D157,D160,D165,D179:D180)=0,0,SUM(D175:D178)/SUM(D8,D80,D105,D133,D154,D157,D160,D165,D179:D180)*100)","v":{"$error":"#REF!"}},{"$f":"IF(SUM(E8,E80,E105,E133,E154,E157,E160,E165,E179:E180)=0,0,SUM(E175:E178)/SUM(E8,E80,E105,E133,E154,E157,E160,E165,E179:E180)*100)","v":{"$error":"#REF!"}},{"$error":"#REF!"},0,{"$f":"IF(SUM(H8,H80,H105,H133,H154,H157,H160,H165,H179:H180)=0,0,SUM(H175:H178)/SUM(H8,H80,H105,H133,H154,H157,H160,H165,H179:H180)*100)","v":0},{"$error":"#REF!"},{"$f":"IF(SUM(J8,J80,J105,J133,J154,J157,J160,J165,J179:J180)=0,0,SUM(J175:J178)/SUM(J8,J80,J105,J133,J154,J157,J160,J165,J179:J180)*100)","v":{"$error":"#REF!"}},{"$error":"#REF!"},0,{"$f":"IF(SUM(M8,M80,M105,M133,M154,M157,M160,M165,M179:M180)=0,0,SUM(M175:M178)/SUM(M8,M80,M105,M133,M154,M157,M160,M165,M179:M180)*100)","v":0},{"$error":"#REF!"},{"$f":"IF(SUM(O8,O80,O105,O133,O154,O157,O160,O165,O179:O180)=0,0,SUM(O175:O178)/SUM(O8,O80,O105,O133,O154,O157,O160,O165,O179:O180)*100)","v":{"$error":"#REF!"}},{"$error":"#REF!"},0]
["12.2.","средства на возврат займов и кредитов и процентов по ним",{"$f":"H175+M175","v":0},{"$f":"I175+N175","v":{"$error":"#REF!"}},{"$f":"J175+O175","v":0},0,0,{"$f":"'Смета 2016'!D101","v":0},{"$f":"'Смета факт'!#REF!","v":{"$error":"#REF!"}},null,0,0,{"$f":"'Смета 2016'!E101","v":0},{"$f":"'Смета факт'!#REF!","v":{"$error":"#REF!"}},null,0,0]
["12.3.","расходы на капитальные вложения (инвестиции)",0,{"$error":"#REF!"},0,0,0,{"$f":"'Смета 2016'!D102","v":0},{"$f":"'Смета факт'!#REF!","v":{"$error":"#REF!"}},null,0,0,{"$f":"'Смета 2016'!E102","v":0},{"$f":"'Смета факт'!#REF!","v":{"$error":"#REF!"}},null,0,0]
["12.4.","денежные выплаты социального характера (по коллективному договору)",0,{"$error":"#REF!"},0,0,0,{"$f":"'Смета 2016'!D103","v":0},{"$f":"'Смета факт'!#REF!","v":{"$error":"#REF!"}},null,0,0,{"$f":"'Смета 2016'!E103","v":0},{"$f":"'Смета факт'!#REF!","v":{"$error":"#REF!"}},null,0,0]
["12.5.","прибыль, обеспечивающая финансирование других расходов, не учитываемых  при определении налоговой бызы налога на прибыль (остающаяся в распоряжении организации)",0,{"$error":"#REF!"},0,0,0,{"$f":"'Смета 2016'!D104+'Смета 2016'!D105","v":0},{"$f":"'Смета факт'!#REF!","v":{"$error":"#REF!"}},null,0,0,{"$f":"'Смета 2016'!E104+'Смета 2016'!E105","v":0},{"$f":"'Смета факт'!#REF!","v":{"$error":"#REF!"}},null,0,0]
["13.1.","налог на прибыль",0,{"$error":"#REF!"},0,0,0,{"$f":"'Смета 2016'!D106","v":0},{"$f":"'Смета факт'!#REF!","v":{"$error":"#REF!"}},null,0,0,{"$f":"'Смета 2016'!E106","v":0},{"$f":"'Смета факт'!#REF!","v":{"$error":"#REF!"}},null,0,0]
["13.2."," (или)единый налог при УСН ",0,{"$error":"#REF!"},0,0,0,{"$f":"'Смета 2016'!C107","v":0},{"$f":"'Смета факт'!#REF!","v":{"$error":"#REF!"}},null,0,0,{"$f":"'Смета 2016'!H107","v":0},{"$f":"'Смета факт'!#REF!","v":{"$error":"#REF!"}},null,0,0]
["IХ","НЕОБХОДИМАЯ ВАЛОВАЯ ВЫРУЧКА",{"$f":"C173+C165+C160+C157+C154+C133+C105+C80+C8","v":0},{"$f":"D173+D165+D160+D157+D154+D133+D105+D80+D8","v":{"$error":"#REF!"}},{"$f":"E173+E165+E160+E157+E154+E133+E105+E80+E8","v":{"$error":"#REF!"}},{"$error":"#REF!"},0,{"$f":"H173+H165+H160+H157+H154+H133+H105+H80+H8","v":0},{"$f":"I173+I165+I160+I157+I154+I133+I105+I80+I8","v":{"$error":"#REF!"}},{"$f":"J173+J165+J160+J157+J154+J133+J105+J80+J8","v":{"$error":"#REF!"}},{"$error":"#REF!"},0,{"$f":"M173+M165+M160+M157+M154+M133+M105+M80+M8","v":0},{"$f":"N173+N165+N160+N157+N154+N133+N105+N80+N8","v":{"$error":"#REF!"}},{"$f":"O173+O165+O160+O157+O154+O133+O105+O80+O8","v":{"$error":"#REF!"}},{"$error":"#REF!"},0]
["16.","Товарная продукция",{"$f":"H182+M182","v":0},{"$f":"I182+N182","v":0},{"$f":"J182+O182","v":0},0,0,{"$f":"'Смета 2016'!D115","v":0},{"$f":"'форма №2'!C11","v":0},{"$f":"'форма №2'!C11","v":0},0,0,null,null,null,0,0]
["17.","Затраты на собственное потребление",0,0,0,0,0,null,null,null,null,0,null,null,null,0,0]
["18.","Отпущено воды всего, м3, в том числе: ",{"$f":"H184","v":{"$error":"#REF!"}},{"$f":"I184","v":{"$error":"#REF!"}},{"$error":"#REF!"},{"$error":"#REF!"},{"$error":"#REF!"},{"$f":"#REF!","v":{"$error":"#REF!"}},{"$f":"#REF!","v":{"$error":"#REF!"}},{"$f":"#REF!","v":{"$error":"#REF!"}},{"$error":"#REF!"},{"$error":"#REF!"},{"$f":"#REF!","v":{"$error":"#REF!"}},{"$f":"J184","v":{"$error":"#REF!"}},{"$f":"N184","v":{"$error":"#REF!"}},{"$error":"#REF!"},{"$error":"#REF!"}]
["18.1.","на собственное потребление",{"$f":"H185","v":{"$error":"#REF!"}},{"$error":"#REF!"},{"$error":"#REF!"},{"$error":"#REF!"},{"$error":"#REF!"},{"$f":"#REF!","v":{"$error":"#REF!"}},{"$f":"#REF!","v":{"$error":"#REF!"}},{"$f":"#REF!","v":{"$error":"#REF!"}},{"$error":"#REF!"},{"$error":"#REF!"},{"$f":"#REF!","v":{"$error":"#REF!"}},{"$f":"J185","v":{"$error":"#REF!"}},{"$f":"N185","v":{"$error":"#REF!"}},{"$error":"#REF!"},{"$error":"#REF!"}]
["18.2.","сторонним потребителям",{"$error":"#REF!"},{"$error":"#REF!"},{"$error":"#REF!"},{"$error":"#REF!"},{"$error":"#REF!"},{"$f":"H184-H185","v":{"$error":"#REF!"}},{"$f":"I184-I185","v":{"$error":"#REF!"}},{"$f":"J184-J185","v":{"$error":"#REF!"}},{"$error":"#REF!"},{"$error":"#REF!"},{"$f":"M184-M185","v":{"$error":"#REF!"}},{"$f":"N184-N185","v":{"$error":"#REF!"}},{"$f":"O184-O185","v":{"$error":"#REF!"}},{"$error":"#REF!"},{"$error":"#REF!"}]
["X","Цена (тариф) на холодную воду, руб./м3",{"$f":"IF(C184=0,0,C181/C184)","v":{"$error":"#REF!"}},{"$f":"IF(D184=0,0,D181/D184)","v":{"$error":"#REF!"}},{"$f":"IF(E184=0,0,E181/E184)","v":{"$error":"#REF!"}},{"$error":"#REF!"},{"$error":"#REF!"},{"$f":"IF(H184=0,,H181/H184)","v":{"$error":"#REF!"}},{"$f":"IF(I184=0,0,I181/I184)","v":{"$error":"#REF!"}},{"$f":"IF(J184=0,0,J181/J184)","v":{"$error":"#REF!"}},{"$error":"#REF!"},{"$error":"#REF!"},{"$f":"IF(M184=0,,M181/M184)","v":{"$error":"#REF!"}},{"$f":"IF(N184=0,0,N181/N184)","v":{"$error":"#REF!"}},{"$f":"IF(O184=0,0,O181/O184)","v":{"$error":"#REF!"}},{"$error":"#REF!"},{"$error":"#REF!"}]
[null,null,{"$f":"C181-'Смета 2016'!C114","v":0},{"$f":"'Смета факт'!#REF!-D181","v":{"$error":"#REF!"}},null,null,null,{"$f":"H181-('Смета 2016'!C114-'Смета 2016'!E114)","v":0},{"$f":"I181-'Смета факт'!#REF!","v":{"$error":"#REF!"}},null,null,null,{"$f":"M181-'Смета 2016'!E114","v":0},{"$f":"N181-'Смета факт'!#REF!","v":{"$error":"#REF!"}}]
[]
[]
[null,null,null,null,null,null,null,"Итоги по смете"]
[null,null,null,null,null,null,null,"Себестоимость"]
[null,null,null,null,null,null,null,"наименование расходов, номер счета, субсчета","сумма, рублей","принято экспертом, рублей","Примечание"]
[null,null,null,null,null,null,null,{"$f":"'Смета факт'!#REF!","v":{"$error":"#REF!"}},{"$f":"'Смета факт'!#REF!","v":{"$error":"#REF!"}}]
[null,null,null,null,null,null,null,{"$f":"'Смета факт'!#REF!","v":{"$error":"#REF!"}},{"$f":"'Смета факт'!#REF!","v":{"$error":"#REF!"}}]
[null,null,null,null,null,null,null,{"$f":"'Смета факт'!#REF!","v":{"$error":"#REF!"}},{"$f":"'Смета факт'!#REF!","v":{"$error":"#REF!"}}]
[null,null,null,null,null,null,null,{"$f":"'Смета факт'!#REF!","v":{"$error":"#REF!"}},{"$f":"'Смета факт'!#REF!","v":{"$error":"#REF!"}}]
[null,null,null,null,null,null,null,{"$f":"'Смета факт'!#REF!","v":{"$error":"#REF!"}},{"$f":"'Смета факт'!#REF!","v":{"$error":"#REF!"}}]
[null,null,null,null,null,null,null,{"$f":"'Смета факт'!#REF!","v":{"$error":"#REF!"}},{"$f":"'Смета факт'!#REF!","v":{"$error":"#REF!"}}]
[null,null,null,null,null,null,null,{"$f":"'Смета факт'!#REF!","v":{"$error":"#REF!"}},{"$f":"'Смета факт'!#REF!","v":{"$error":"#REF!"}}]
[null,null,null,null,null,null,null,{"$f":"'Смета факт'!#REF!","v":{"$error":"#REF!"}},{"$f":"'Смета факт'!#REF!","v":{"$error":"#REF!"}}]
[null,null,null,null,null,null,null,{"$f":"'Смета факт'!#REF!","v":{"$error":"#REF!"}},{"$f":"'Смета факт'!#REF!","v":{"$error":"#REF!"}}]
[null,null,null,null,null,null,null,{"$f":"'Смета факт'!#REF!","v":{"$error":"#REF!"}},{"$f":"'Смета факт'!#REF!","v":{"$error":"#REF!"}}]
[null,null,null,null,null,null,null,{"$f":"'Смета факт'!#REF!","v":{"$error":"#REF!"}},{"$f":"'Смета факт'!#REF!","v":{"$error":"#REF!"}}]
[null,null,null,null,null,null,null,"итого",{"$f":"SUM(I194:I204)","v":{"$error":"#REF!"}},{"$f":"SUM(J194:J204)","v":0}]
[]
[null,null,null,null,null,null,null,"Не принято в отчет"]
[null,null,null,null,null,null,null,"наименование расходов, номер счета, субсчета","сумма, рублей","сумма эксперта, рублей","Примечание"]
[null,null,null,null,null,null,null,{"$f":"'Смета факт'!#REF!","v":{"$error":"#REF!"}},{"$f":"'Смета факт'!#REF!","v":{"$error":"#REF!"}}]
[null,null,null,null,null,null,null,{"$f":"'Смета факт'!#REF!","v":{"$error":"#REF!"}},{"$f":"'Смета факт'!#REF!","v":{"$error":"#REF!"}}]
[null,null,null,null,null,null,null,{"$f":"'Смета факт'!#REF!","v":{"$error":"#REF!"}},{"$f":"'Смета факт'!#REF!","v":{"$error":"#REF!"}}]
[null,null,null,null,null,null,null,{"$f":"'Смета факт'!#REF!","v":{"$error":"#REF!"}},{"$f":"'Смета факт'!#REF!","v":{"$error":"#REF!"}}]
[null,null,null,null,null,null,null,{"$f":"'Смета факт'!#REF!","v":{"$error":"#REF!"}},{"$f":"'Смета факт'!#REF!","v":{"$error":"#REF!"}}]
[null,null,null,null,null,null,null,{"$f":"'Смета факт'!#REF!","v":{"$error":"#REF!"}},{"$f":"'Смета факт'!#REF!","v":{"$error":"#REF!"}}]
[null,null,null,null,null,null,null,{"$f":"'Смета факт'!#REF!","v":{"$error":"#REF!"}},{"$f":"'Смета факт'!#REF!","v":{"$error":"#REF!"}}]
[null,null,null,null,null,null,null,"итого",{"$f":"SUM(I209:I215)","v":{"$error":"#REF!"}},{"$f":"SUM(J209:J215)","v":0},{"$f":"SUM(K209:K215)","v":0}]
[]
[null,null,null,null,null,null,null,"91 счет"]
[null,null,null,null,null,null,null,"наименование расходов, номер счета, субсчета","сумма, рублей","принято экспертом, рублей","Примечание"]
[null,null,null,null,null,null,null,{"$f":"'Смета факт'!#REF!","v":{"$error":"#REF!"}},{"$f":"'Смета факт'!#REF!","v":{"$error":"#REF!"}}]
[null,null,null,null,null,null,null,{"$f":"'Смета факт'!#REF!","v":{"$error":"#REF!"}},{"$f":"'Смета факт'!#REF!","v":{"$error":"#REF!"}}]
[null,null,null,null,null,null,null,{"$f":"'Смета факт'!#REF!","v":{"$error":"#REF!"}},{"$f":"'Смета факт'!#REF!","v":{"$error":"#REF!"}}]
[null,null,null,null,null,null,null,{"$f":"'Смета факт'!#REF!","v":{"$error":"#REF!"}},{"$f":"'Смета факт'!#REF!","v":{"$error":"#REF!"}}]
[null,null,null,null,null,null,null,{"$f":"'Смета факт'!#REF!","v":{"$error":"#REF!"}},{"$f":"'Смета факт'!#REF!","v":{"$error":"#REF!"}}]
[null,null,null,null,null,null,null,{"$f":"'Смета факт'!#REF!","v":{"$error":"#REF!"}},{"$f":"'Смета факт'!#REF!","v":{"$error":"#REF!"}}]
[null,null,null,null,null,null,null,{"$f":"'Смета факт'!#REF!","v":{"$error":"#REF!"}},{"$f":"'Смета факт'!#REF!","v":{"$error":"#REF!"}}]
[null,null,null,null,null,null,null,"итого",{"$f":"SUM(I220:I226)","v":{"$error":"#REF!"}},{"$f":"SUM(J220:J226)","v":0},{"$f":"SUM(K220:K226)","v":0}]
[]
[null,null,null,null,null,null,null,"ВСЕГО НВВ по смете",{"$f":"I205-I216+I227","v":{"$error":"#REF!"}},{"$f":"J205-J216+J227","v":0}]
[]
[null,null,null,null,null,null,null,null,{"$f":"I229-I181","v":{"$error":"#REF!"}},{"$f":"J229-J181","v":{"$error":"#REF!"}}]

{"sheet":"расчет выпадающих","index":13,"n_rows":25,"n_cols":10,"rows_kept":25,"cut":false,"hidden":true,"merged":[[11,5,12,7],[11,8,12,9],[0,0,0,9],[2,0,4,0],[2,1,4,1],[2,2,3,4],[2,5,3,7],[2,8,3,9],[9,0,9,9],[11,0,13,0],[11,1,13,1],[11,2,12,4]]}
["Расчет выпадающих по полезному отпуску"]
[]
["№ п/п","Наименование показателя","План",null,null,"Факт по данным организации",null,null,"Отклонение"]
[]
[null,null,"01.01.-30.06.","01.07.-31.12.","2016 год","01.01.-30.06.","01.07.-31.12.","2016 год","абсолютное","в %"]
[1,"Полезный отпуск, куб.м",{"$f":"'Смета 2016'!C117/2","v":0},{"$f":"C6","v":0},{"$f":"C6+D6","v":0},{"$f":"SUM('полезный отпуск'!B14:B19)","v":0},{"$f":"SUM('полезный отпуск'!B20:B25)","v":0},{"$f":"F6+G6","v":0},{"$f":"H6-E6","v":0},{"$f":"IF(E6=0,0,H6/E6*100)","v":0}]
[2,"Тариф, руб/куб.м.",{"$f":"F7","v":0},{"$f":"G7","v":0},null,{"$f":"'данные об организации'!I16","v":0},{"$f":"'данные об организации'!I18","v":0}]
[3,"Выручка, руб.",{"$f":"C6*C7","v":0},{"$f":"D6*D7","v":0},{"$f":"C8+D8","v":0},{"$f":"F6*F7","v":0},{"$f":"G6*G7","v":0},{"$f":"F8+G8","v":0},{"$f":"H8-E8","v":0},{"$f":"IF(E8=0,0,H8/E8*100)","v":0}]
[]
["Расчет выпадающих по полезному отпуску"]
[]
["№ п/п","Наименование показателя","План",null,null,"Факт по данным эксперта",null,null,"Отклонение"]
[]
[null,null,"01.01.-30.06.","01.07.-31.12.","2016 год","01.01.-30.06.","01.07.-31.12.","2016 год","абсолютное","в %"]
[1,"Полезный отпуск, куб.м",{"$f":"C6","v":0},{"$f":"D6","v":0},{"$f":"C15+D15","v":0},{"$f":"IF(H6=0,,F6/H6*#REF!)","v":0},{"$f":"H15-F15","v":{"$error":"#REF!"}},{"$f":"#REF!","v":{"$error":"#REF!"}},{"$f":"H15-E15","v":{"$error":"#REF!"}},{"$f":"IF(E15=0,0,H15/E15*100)","v":0}]
[2,"Тариф, руб/куб.м.",{"$f":"C7","v":0},{"$f":"D7","v":0},null,{"$f":"F7","v":0},{"$f":"G7","v":0}]
[3,"Выручка, руб.",{"$f":"C15*C16","v":0},{"$f":"D15*D16","v":0},{"$f":"C17+D17","v":0},{"$f":"F15*F16","v":0},{"$f":"G15*G16","v":{"$error":"#REF!"}},{"$f":"F17+G17","v":{"$error":"#REF!"}},{"$f":"H17-E17","v":{"$error":"#REF!"}},{"$f":"IF(E17=0,0,H17/E17*100)","v":0}]
[]
[]
[]
[null,"Корректировка НВВ по результатам 2016 года (МЭОР)"]
[]
[null,"ПО",{"$f":"-'расчет выпадающих'!I17","v":{"$error":"#REF!"}}]
[null,"Смета расходов",{"$f":"'анализ факт сметы'!K181","v":{"$error":"#REF!"}}]
[null,"ВСЕГО",{"$f":"C23+C24","v":{"$error":"#REF!"}}]

{"sheet":"ЭЗ","index":14,"n_rows":80,"n_cols":10,"rows_kept":80,"cut":false,"hidden":true,"merged":[[13,0,14,1],[13,2,13,4],[13,5,14,5],[0,0,0,9],[2,0,4,0],[2,1,4,1],[2,2,3,4],[2,5,3,7],[2,8,3,9]]}
["Расчет выпадающих по полезному отпуску"]
[]
["№ п/п","Наименование показателя","План",null,null,"Факт по данным эксперта",null,null,"Отклонение"]
[]
[null,null,"01.01.-30.06.","01.07.-31.12.","2016 год","01.01.-30.06.","01.07.-31.12.","2016 год","абсолютное","в %"]
[1,"Полезный отпуск, тыс.куб.м",{"$f":"'расчет выпадающих'!C15/1000","v":0},{"$f":"'расчет выпадающих'!D15/1000","v":0},{"$f":"C6+D6","v":0},{"$f":"'расчет выпадающих'!F15/1000","v":0},{"$f":"'расчет выпадающих'!G15/1000","v":{"$error":"#REF!"}},{"$f":"F6+G6","v":{"$error":"#REF!"}},{"$f":"H6-E6","v":{"$error":"#REF!"}},{"$f":"IF(E6=0,0,H6/E6*100)","v":0}]
[2,"Тариф, руб/куб.м.",{"$f":"'расчет выпадающих'!C16","v":0},{"$f":"'расчет выпадающих'!D16","v":0},null,{"$f":"'расчет выпадающих'!F16","v":0},{"$f":"'расчет выпадающих'!G16","v":0}]
[3,"Выручка, тыс.руб.",{"$f":"C6*C7","v":0},{"$f":"D6*D7","v":0},{"$f":"C8+D8","v":0},{"$f":"F6*F7","v":0},{"$f":"G6*G7","v":{"$error":"#REF!"}},{"$f":"F8+G8","v":{"$error":"#REF!"}},{"$f":"H8-E8","v":{"$error":"#REF!"}},{"$f":"IF(E8=0,0,H8/E8*100)","v":0}]
[]
[]
[]
[]
[null,null,null,null,null,"тыс.рублей"]
["Наименование показателя",null,"2016 год",null,null,"отклонение (\"-\" - экономия, \"+\" - перерасход)            гр. 6=(гр. 5-гр.3)"]
[null,null,"план   ДТР ТО по установленным тарифам","факт по данным организации","Факт, принятый экспертом"]
[1,"Производственные расходы",{"$f":"C17+C20+C25+C29+C34","v":0},{"$f":"D17+D20+D25+D29+D34","v":{"$error":"#REF!"}},{"$error":"#REF!"},{"$f":"E16-C16","v":{"$error":"#REF!"}}]
["1.1.","Расходы на приобретение сырья и материалов и их хранение",{"$f":"C18+C19","v":0},{"$f":"D18+D19","v":0},0,{"$f":"E17-C17","v":0}]
["1.1.1.","Реагенты",{"$f":"'анализ факт сметы'!H10/1000","v":0},{"$f":"'анализ факт сметы'!I10/1000","v":0},{"$f":"'анализ факт сметы'!J10/1000","v":0},0]
["1.1.2.","Материалы и малоценные основные средства",{"$f":"'анализ факт сметы'!H9/1000-C18","v":0},{"$f":"'анализ факт сметы'!I9/1000-D18","v":0},{"$f":"'анализ факт сметы'!J9/1000-E18","v":0},0]
["1.2.","Расходы на энергетические ресурсы и холодную воду",{"$f":"C21+C22+C23+C24","v":0},{"$f":"D21+D22+D23+D24","v":{"$error":"#REF!"}},{"$error":"#REF!"},{"$error":"#REF!"}]
["1.2.1.","электроэнергия",{"$f":"'анализ факт сметы'!H18/1000","v":0},{"$f":"'анализ факт сметы'!I18/1000","v":{"$error":"#REF!"}},{"$f":"'анализ факт сметы'!J18/1000","v":{"$error":"#REF!"}},{"$error":"#REF!"}]
["1.2.2.","теплоэнергия",{"$f":"'анализ факт сметы'!H21/1000","v":0},{"$f":"'анализ факт сметы'!I21/1000","v":{"$error":"#REF!"}},{"$f":"'анализ факт сметы'!J21/1000","v":0},0]
["1.2.3.","вода",{"$f":"'анализ факт сметы'!H25/1000","v":0},{"$f":"'анализ факт сметы'!I25/1000","v":{"$error":"#REF!"}},{"$f":"'анализ факт сметы'!J25/1000","v":0},0]
["1.2.4.","прочие энергетические ресурсы на хозбытовые нужды",{"$f":"'анализ факт сметы'!H17/1000-C23-C22-C21","v":0},{"$f":"'анализ факт сметы'!I17/1000-D23-D22-D21","v":{"$error":"#REF!"}},{"$f":"'анализ факт сметы'!J17/1000-E23-E22-E21","v":{"$error":"#REF!"}},{"$error":"#REF!"}]
["1.3.","Услуги, оказываемые сторонними организациями",{"$f":"C26+C27+C28","v":0},{"$f":"D26+D27+D28","v":{"$error":"#REF!"}},0,0]
["1.3.1.","услуги по подъему воды",{"$f":"'анализ факт сметы'!H31/1000","v":0},{"$f":"'анализ факт сметы'!I31/1000","v":{"$error":"#REF!"}},{"$f":"'анализ факт сметы'!J31/1000","v":0},0]
["1.3.2.","услуги по очистке воды",{"$f":"'анализ факт сметы'!H32/1000","v":0},{"$f":"'анализ факт сметы'!I32/1000","v":{"$error":"#REF!"}},{"$f":"'анализ факт сметы'!J32/1000","v":0},0]
["1.3.3.","услуги  по транспортированию воды",{"$f":"'анализ факт сметы'!H33/1000","v":0},{"$f":"'анализ факт сметы'!I33/1000","v":{"$error":"#REF!"}},{"$f":"'анализ факт сметы'!J33/1000","v":0},0]
["1.4.","Расходы на оплату труда и отчисления на социальные нужды основного производственного персонала, в том числе налоги и сборы:",{"$f":"C30+C33","v":0},{"$f":"D30+D33","v":{"$error":"#REF!"}},0,0]
["1.4.1.","Расходы на оплату труда производственного персонала",{"$f":"'анализ факт сметы'!H37/1000","v":0},{"$f":"'анализ факт сметы'!I37/1000","v":{"$error":"#REF!"}},{"$f":"'анализ факт сметы'!J37/1000","v":0},0]
["1.4.1.1","численность ППП, чел",{"$f":"'анализ факт сметы'!H38","v":0},{"$f":"'анализ факт сметы'!I38","v":{"$error":"#REF!"}},{"$f":"'анализ факт сметы'!J38","v":0}]
[null,"средняя заработная плата, руб/чел",{"$f":"IF(C31=0,,C30/12/C31*1000)","v":0},{"$f":"IF(D31=0,,D30/12/D31*1000)","v":{"$error":"#REF!"}},0]
["1.4.2.","Отчисления на социальные нужды производственного персонала, в том числе налоги и сборы",{"$f":"'анализ факт сметы'!H40/1000","v":0},{"$f":"'анализ факт сметы'!I40/1000","v":{"$error":"#REF!"}},{"$f":"'анализ факт сметы'!J40/1000","v":0},0]
["1.5.","Прочие производственные расходы",{"$f":"SUM(C35:C40)","v":0},{"$f":"SUM(D35:D40)","v":{"$error":"#REF!"}},0,0]
["1.5.1.","Услуги вспомогательных производств",{"$f":"'анализ факт сметы'!H45/1000","v":0},{"$f":"'анализ факт сметы'!I45/1000","v":{"$error":"#REF!"}},{"$f":"'анализ факт сметы'!J45/1000","v":0},0]
["1.5.2.","Расходы на эксплуатацию, техническое обслуживание и ремонт автотранспорта",{"$f":"'анализ факт сметы'!H51/1000","v":0},{"$f":"'анализ факт сметы'!I51/1000","v":{"$error":"#REF!"}},{"$f":"'анализ факт сметы'!J51/1000","v":0},0]
["1.5.3.","Цеховые расходы",{"$f":"'анализ факт сметы'!H57/1000","v":0},{"$f":"'анализ факт сметы'!I57/1000","v":{"$error":"#REF!"}},{"$f":"'анализ факт сметы'!J57/1000","v":0},0]
["1.5.4.","Общепроизводственные расходы",{"$f":"'анализ факт сметы'!H63/1000","v":0},{"$f":"'анализ факт сметы'!I63/1000","v":{"$error":"#REF!"}},{"$f":"'анализ факт сметы'!J63/1000","v":0},0]
["1.5.5.","Контроль качества воды и сточных вод",{"$f":"'анализ факт сметы'!H77/1000","v":0},{"$f":"'анализ факт сметы'!I77/1000","v":{"$error":"#REF!"}},{"$f":"'анализ факт сметы'!J77/1000","v":0},0]
["1.5.6.","Прочие расходы",{"$f":"SUM(C41:C44)","v":0},{"$f":"SUM(D41:D44)","v":{"$error":"#REF!"}},0,0]
["1.5.3.2.","расходы на охрану труда",{"$f":"'анализ факт сметы'!H69/1000","v":0},{"$f":"'анализ факт сметы'!I69/1000","v":{"$error":"#REF!"}},{"$f":"'анализ факт сметы'!J69/1000","v":0},0]
["1.5.3.3.","расходы на льготный проезд",{"$f":"'анализ факт сметы'!H75/1000","v":0},{"$f":"'анализ факт сметы'!I75/1000","v":{"$error":"#REF!"}},{"$f":"'анализ факт сметы'!J75/1000","v":0},0]
["1.5.3.4.","расходы на содержание зданий",{"$f":"'анализ факт сметы'!H76/1000","v":0},{"$f":"'анализ факт сметы'!I76/1000","v":{"$error":"#REF!"}},{"$f":"'анализ факт сметы'!J76/1000","v":0},0]
["1.5.3.5.","прочие цеховые расходы",{"$f":"'анализ факт сметы'!H105/1000","v":0},{"$f":"'анализ факт сметы'!I105/1000","v":{"$error":"#REF!"}},{"$f":"'анализ факт сметы'!J105/1000","v":0}]
[2,"Ремонтные расходы",{"$f":"C46+C47","v":0},{"$f":"D46+D47","v":{"$error":"#REF!"}},0,0]
["2.1.","Расходы на текущий ремонт централизованных систем водоснабжения и (или) водоотведения либо объектов, входящих в состав таких систем",{"$f":"'анализ факт сметы'!H81/1000","v":0},{"$f":"'анализ факт сметы'!I81/1000","v":{"$error":"#REF!"}},{"$f":"'анализ факт сметы'!J81/1000","v":0},0]
["2.2.","Расходы на капитальный ремонт централизованных систем водоснабжения и (или) водоотведения либо объектов, входящих в состав таких систем",{"$f":"'анализ факт сметы'!H93/1000","v":0},{"$f":"'анализ факт сметы'!I93/1000","v":{"$error":"#REF!"}},{"$f":"'анализ факт сметы'!J93/1000","v":0},0]
[3,"Расходы на обслуживание и ремонт бесхозяйных сетей",{"$f":"'анализ факт сметы'!M181/1000","v":0},{"$f":"'анализ факт сметы'!N181/1000","v":{"$error":"#REF!"}},{"$f":"'анализ факт сметы'!O181/1000","v":{"$error":"#REF!"}},{"$error":"#REF!"}]
[4,"Административные расходы",{"$f":"C50+C53+C54","v":0},{"$f":"D50+D53+D54","v":{"$error":"#REF!"}},0,0]
["4.1.","Расходы на оплату труда административно-управленческого персонала",{"$f":"'анализ факт сметы'!H134/1000","v":0},{"$f":"'анализ факт сметы'!I134/1000","v":{"$error":"#REF!"}},{"$f":"'анализ факт сметы'!J134/1000","v":0},0]
["4.1.1.","численность персонала, относимого на данный вид деятельности, чел",{"$f":"'анализ факт сметы'!H135","v":0},{"$f":"'анализ факт сметы'!I135","v":{"$error":"#REF!"}},{"$f":"'анализ факт сметы'!J135","v":0}]
["4.1.2.","средняя заработная плата, руб/чел",{"$f":"IF(C51=0,,C50/12/C51*1000)","v":0},{"$f":"IF(D51=0,,D50/12/D51*1000)","v":{"$error":"#REF!"}},0]
["4.2.","Отчисления на социальные нужды административно-управленческого персонала, в том числе налоги и сборы",{"$f":"'анализ факт сметы'!H137/1000","v":0},{"$f":"'анализ факт сметы'!I137/1000","v":{"$error":"#REF!"}},{"$f":"'анализ факт сметы'!J137/1000","v":0},0]
["4.3.","Прочие административные расходы",{"$f":"'анализ факт сметы'!H138/1000","v":0},{"$f":"'анализ факт сметы'!I138/1000","v":{"$error":"#REF!"}},{"$f":"'анализ факт сметы'!J138/1000","v":0},0]
[5,"Сбытовые расходы гарантирующих организаций",{"$f":"'анализ факт сметы'!H154/1000","v":0},{"$f":"'анализ факт сметы'!I154/1000","v":{"$error":"#REF!"}},{"$f":"'анализ факт сметы'!J154/1000","v":0},0]
["5.1.","Расходы ГО по сомнительным долгам, в размере не более 2% НВВ",{"$f":"'анализ факт сметы'!H155/1000","v":0},{"$f":"'анализ факт сметы'!I155/1000","v":{"$error":"#REF!"}},{"$f":"'анализ факт сметы'!J155/1000","v":0},0]
[6,"Амортизация",{"$f":"'анализ факт сметы'!H157/1000","v":0},{"$f":"'анализ факт сметы'!I157/1000","v":{"$error":"#REF!"}},{"$f":"'анализ факт сметы'!J157/1000","v":0},0]
[7,"Расходы на арендную плату, лизинговые платежи, концессионную плату",{"$f":"C59+C60+C61+C62","v":0},{"$f":"D59+D60+D61+D62","v":{"$error":"#REF!"}},0,0]
["7.1.","Аренда имущества",{"$f":"'анализ факт сметы'!H163/1000","v":0},{"$f":"'анализ факт сметы'!I163/1000","v":{"$error":"#REF!"}},{"$f":"'анализ факт сметы'!J163/1000","v":0},0]
["7.2.","Концессионная плата",{"$f":"'анализ факт сметы'!H162/1000","v":0},{"$f":"'анализ факт сметы'!I162/1000","v":{"$error":"#REF!"}},{"$f":"'анализ факт сметы'!J162/1000","v":0},0]
["7.3.","Лизинговые платежи",{"$f":"'анализ факт сметы'!H161/1000","v":0},{"$f":"'анализ факт сметы'!I161/1000","v":{"$error":"#REF!"}},{"$f":"'анализ факт сметы'!J161/1000","v":0},0]
["7.4.","Аренда земельных участков",{"$f":"'анализ факт сметы'!H164/1000","v":0},{"$f":"'анализ факт сметы'!I164/1000","v":{"$error":"#REF!"}},{"$f":"'анализ факт сметы'!J164/1000","v":0},0]
[8,"Расходы, связанные с уплатой налогов и сборов",{"$f":"SUM(C64:C69)","v":0},{"$f":"SUM(D64:D69)","v":{"$error":"#REF!"}},0,0]
["8.1.","водный налог",{"$f":"'анализ факт сметы'!H166/1000","v":0},{"$f":"'анализ факт сметы'!I166/1000","v":{"$error":"#REF!"}},{"$f":"'анализ факт сметы'!J166/1000","v":0},0]
["8.2.","налог на землю",{"$f":"'анализ факт сметы'!H167/1000","v":0},{"$f":"'анализ факт сметы'!I167/1000","v":{"$error":"#REF!"}},{"$f":"'анализ факт сметы'!J167/1000","v":0},0]
["8.3.","налог на имущество",{"$f":"'анализ факт сметы'!H168/1000","v":0},{"$f":"'анализ факт сметы'!I168/1000","v":{"$error":"#REF!"}},{"$f":"'анализ факт сметы'!J168/1000","v":0},0]
["8.4.","плата за загрязнение окружающей среды",{"$f":"'анализ факт сметы'!H169/1000","v":0},{"$f":"'анализ факт сметы'!I169/1000","v":{"$error":"#REF!"}},{"$f":"'анализ факт сметы'!J169/1000","v":0},0]
["8.5.","транспортный налог",{"$f":"'анализ факт сметы'!H170/1000","v":0},{"$f":"'анализ факт сметы'!I170/1000","v":{"$error":"#REF!"}},{"$f":"'анализ факт сметы'!J170/1000","v":0},0]
["8.6.","прочие налоги и сборы",{"$f":"'анализ факт сметы'!H171/1000","v":0},{"$f":"'анализ факт сметы'!I171/1000","v":{"$error":"#REF!"}},{"$f":"'анализ факт сметы'!J171/1000","v":0},0]
[9,"ИТОГО СЕБЕСТОИМОСТЬ (сумма стр 1+стр 2+…+ стр 8)",{"$f":"SUM(C16,C45,C48,C49,C55,C57:C58,C63)","v":0},{"$f":"SUM(D16,D45,D48,D49,D55,D57:D58,D63)","v":{"$error":"#REF!"}},{"$error":"#REF!"}]
[10,"Нормативная прибыль",{"$f":"C73+C74+C75+C76","v":0},{"$f":"D73+D74+D75+D76","v":{"$error":"#REF!"}},0,0]
[null,"в том числе в %",{"$f":"(C71-C77-C78)/C70","v":{"$error":"#DIV/0!"}},{"$f":"(D71-D77-D78)/D70","v":{"$error":"#REF!"}},{"$error":"#REF!"},{"$error":"#REF!"}]
["9.1.","средства на возврат займов и кредитов и процентов по ним",{"$f":"'анализ факт сметы'!H175/1000","v":0},{"$f":"'анализ факт сметы'!I175/1000","v":{"$error":"#REF!"}},{"$f":"'анализ факт сметы'!J175/1000","v":0},0]
["9.2.","расходы на капитальные вложения (инвестиции)",{"$f":"'анализ факт сметы'!H176/1000","v":0},{"$f":"'анализ факт сметы'!I176/1000","v":{"$error":"#REF!"}},{"$f":"'анализ факт сметы'!J176/1000","v":0},0]
["9.3.","денежные выплаты социального характера (по коллективному договору)",{"$f":"'анализ факт сметы'!H177/1000","v":0},{"$f":"'анализ факт сметы'!I177/1000","v":{"$error":"#REF!"}},{"$f":"'анализ факт сметы'!J177/1000","v":0},0]
["9.4.","прибыль, обеспечивающая финансирование других расходов, не учитываемых  при определении налоговой бызы налога на прибыль (остающаяся в распоряжении организации)",{"$f":"'анализ факт сметы'!H178/1000","v":0},{"$f":"'анализ факт сметы'!I178/1000","v":{"$error":"#REF!"}},{"$f":"'анализ факт сметы'!J178/1000","v":0},0]
[11,"Налог на прибыль",{"$f":"'анализ факт сметы'!H179/1000","v":0},{"$f":"'анализ факт сметы'!I179/1000","v":{"$error":"#REF!"}},{"$f":"'анализ факт сметы'!J179/1000","v":0},0]
[null,"(или)единый налог при УСН ",{"$f":"'анализ факт сметы'!H180/1000","v":0},{"$f":"'анализ факт сметы'!I180/1000","v":{"$error":"#REF!"}},{"$f":"'анализ факт сметы'!J180/1000","v":0},0]
[12,"ВСЕГО (стр 9+стр 10+стр11)",{"$f":"C70+C71+C77+C78","v":0},{"$f":"D70+D71+D77+D78","v":{"$error":"#REF!"}},{"$error":"#REF!"},{"$error":"#REF!"}]
[null,null,{"$f":"C79*1000-'анализ факт сметы'!C181","v":0},{"$f":"D79*1000-'анализ факт сметы'!D181","v":{"$error":"#REF!"}},{"$f":"E79*1000-'анализ факт сметы'!E181","v":{"$error":"#REF!"}}]